{"text_format":"3","workbook":"xlsx","n_sheets":38,"sheets":["Index","GeneralInfo","Declaration","Summary","Taxonomy","Shareholding Pattern","IndHUF","SBO","CGAndSG","Banks","OtherIND","Individuals","Government","Institutions","FPIPromoter","OtherForeign","MutuaFund","VentureCap","AIF","FVC","FPI_Insti","Bank_Insti","Insurance","Pension","Other_Insti","CG&SG&PI","Indivisual(aI)","Indivisual(aII)","NBFC","EmpTrust","OD","Other_NonInsti","DRHolder","EBT","Unclaimed_Prom","TextBlock","PAC_Public","Unclaimed_Public"],"not_rendered":{"images":1,"macros":1,"defined_names":5},"read":"whole","date_system":"1900"}

{"sheet":"Index","index":0,"n_rows":59,"n_cols":10,"rows_kept":59,"merged":[[5,4,5,8],[6,5,6,8],[7,5,7,8],[8,5,8,8],[9,5,9,8],[10,5,10,8],[11,5,11,8],[14,3,14,9],[15,3,15,9],[16,3,16,9],[19,3,19,9],[20,3,20,9],[21,3,21,9],[22,3,22,9],[23,3,23,9],[24,3,24,9],[27,3,27,9],[28,4,28,8],[29,4,29,8],[30,4,30,8],[31,4,31,8],[34,3,34,9],[35,3,35,9],[39,3,39,9],[40,3,40,9],[41,3,41,9],[42,3,42,9],[43,3,43,9],[44,3,44,9],[45,3,45,9],[46,3,46,9],[49,3,49,9],[50,3,50,9],[51,3,51,9],[52,3,52,9],[53,3,53,9],[54,3,54,9],[55,3,55,9],[56,3,56,9],[57,3,57,9],[58,3,58,9]]}
[]
[]
[]
[]
[]
[{"$nulls":4},"                                      XBRL Excel Utility"]
[{"$nulls":4},"1.","Overview"]
[{"$nulls":4},"2.","Before you begin"]
[{"$nulls":4},"3.","Index"]
[{"$nulls":4},"4.","Import XBRL file"]
[{"$nulls":4},"5.","Steps for filing Shareholding Pattern"]
[{"$nulls":4},"6.","Fill up the Shareholding Pattern"]
[]
[]
[{"$nulls":3},"1. Overview"]
[{"$nulls":3},"The excel utility can be used for creating the XBRL/XML file for efiling of shareholding pattern. "]
[{"$nulls":3},"Shareholding pattern XBRL filling consists of two processes. Firstly generation of XBRL/XML file of the Shareholding pattern, and upload of generated XBRL/XML file to BSE Listing Center."]
[]
[]
[{"$nulls":3}," 2.  Before you begin"]
[{"$nulls":3},"1. The version of Microsoft Excel in your system should be Microsoft Office Excel 2007 and above."]
[{"$nulls":3},"2. The system should have a file compression software to unzip excel utility file."]
[{"$nulls":3},"3. Make sure that you have downloaded the latest Excel Utility from BSE Website to your local system."]
[{"$nulls":3},"4. Make sure that you have downloaded the Chrome Browser to view report generated from Excel utility"]
[{"$nulls":3},"5. Please enable the Macros (if disabled) as per instructions given in manual, so that all the functionalities of  Excel Utility works fine. Please first go through Enable Macro - Manual attached with zip file."]
[]
[]
[{"$nulls":3},"3. Index "]
[{"$nulls":3},1,"Details of general information about company",{"$nulls":4},"General Info"]
[{"$nulls":3},2,"Declaration",{"$nulls":4},"Declaration"]
[{"$nulls":3},3,"Summary",{"$nulls":4},"Summary"]
[{"$nulls":3},4,"Shareholding Pattern",{"$nulls":4},"Shareholding Pattern"]
[]
[]
[{"$nulls":3},"4. Import XBRL file"]
[{"$nulls":3},"1. Now you can import and view previously generated XBRL files by clicking Import XBRL button on Genenral information sheet. "]
[]
[]
[]
[{"$nulls":3},"5. Steps for Filing Shareholding Pattern"]
[{"$nulls":3},"I.  Fill up the data: Navigate to each field of every section in the sheet to provide applicable data in correct format.  (Formats will get reflected while filling data.)  \n   - Use paste special command to paste data from other sheet.\n"]
[{"$nulls":3},"II. Validating Sheets:  Click on the ''Validate \"  button to ensure that the sheet has been properly filled and also data has been furnished in proper format. If there are some errors on the sheet, excel utility will prompt you about the same."]
[{"$nulls":3},"III. Validate All Sheets:  Click on the ''Home\"  button. And then click on \"Validate All Sheet\" button to ensure that all sheets has been properly filled and validated successfully. If there are some errors on the sheet, excel utility will prompt you about the same and stop validation at the same time. After correction, once again follow the same procedure to validate all sheets."]
[{"$nulls":3},"Excel Utility will not allow you to generate XBRL/XML until you rectify all errors. "]
[{"$nulls":3},"IV. Generate XML :   Excel Utility will not allow you to generate XBRL/XML unless successful validation of all sheet is completed. Now click on 'Generate XML'' to generate XBRL/XML file. \n    - Save the XBRL/XML file in your desired folder in local system. "]
[{"$nulls":3},"V. Generate Report :   Excel Utility will allow you to generate Report. Now click on 'Generate Report'' to generate html report.   \n     - Save the HTML Report file in your desired folder in local system.     \n     - To view HTML Report open \"Chrome Web Browser\" . \n     - To print report in PDF Format, Click on print button and save as PDF. "]
[{"$nulls":3},"VI. Upload XML file to BSE Listing Center: For uploading the XBRL/XML file generated through  Utility, login to BSE Listing Center and upload generated xml file. On Upload screen provide the required information and browse to select XML file and submit the XML.\n"]
[]
[]
[{"$nulls":3},"6. Fill up the Shareholding Pattern"]
[{"$nulls":3},"1. Cells with red fonts indicate mandatory fields. "]
[{"$nulls":3},"2. If mandatory field is left empty, then Utility will not allow you to proceed further for generating XML."]
[{"$nulls":3},"3. You are not allowed to enter data in the Grey Cells."]
[{"$nulls":3},"4. If fields are not applicable to your company then leave it blank. Do not insert Zero unless it is a mandatory field."]
[{"$nulls":3},"5. Data provided must be in correct format, otherwise Utility will not allow you to proceed further for generating XML."]
[{"$nulls":3},"6. Adding new rows: Sections such as Promoters details allow you to enter as much data in a tabular form. You can Click on  \"Add\" to add more rows.\n\nTo add more than one row you must fill data in the mandatory fields of the previous row."]
[{"$nulls":3},"7. Deleting rows: Rows that has been added can be removed by clicking the button \"Delete\". A popup will ask you to provide the range of rows you want to delete. "]
[{"$nulls":3},"8. Select data from \"Dropdown list\" wherever applicable. "]
[{"$nulls":3},"9. Adding Notes:  Click on \"Add Notes\" button to add notes "]

{"sheet":"GeneralInfo","index":1,"n_rows":16,"n_cols":24,"rows_kept":16,"merged":[[4,4,4,5],[17,4,17,5]]}
[{"$nulls":7}," ",{"$nulls":9},"Equity Shares","Pre-listing","June","Yes",null,"Pre-listing"]
[{"$nulls":17},"Preference Shares","Quarterly","September","No",null,"Capital Restructuring"]
[{"$nulls":17},"Differential Voting Rights","Capital Restructuring","December",null,null,"Half yearly"]
[{"$nulls":18},"Half yearly","March",null,null,"Yearly"]
[{"$nulls":4},"General information about company",{"$nulls":13},"Yearly"]
[{"$nulls":4},"Scrip code","531610"]
[{"$nulls":4},"NSE Symbol",{"$nulls":7},"Regulation 31 (1) (a)",{"$nulls":10},"Yes"]
[{"$nulls":4},"MSEI Symbol",{"$nulls":7},"Regulation 31 (1) (b)",{"$nulls":10},"No"]
[{"$nulls":4},"ISIN","INE832E01010",{"$nulls":6},"Regulation 31 (1) (c)"]
[{"$nulls":4},"Name of the company","UFM INDUSTRIES LIMITED",{"$nulls":6},"Regulation 31 (1)"]
[{"$nulls":4},"Whether company is SME","No"]
[{"$nulls":4},"Class of Security","Equity Shares"]
[{"$nulls":4},"Type of report","Quarterly"]
[{"$nulls":4},"Quarter Ended / Half year ended/Date of Report (For Prelisting / Allotment)","31-12-2019"]
[{"$nulls":4},"Date of allotment / extinguishment (in case Capital Restructuring selected) / Listing Date",""]
[{"$nulls":4},"Shareholding pattern filed under",{"$f":"IF(F13=S1,M7,IF(F13=S2,M8,IF(F13=S3,M9,IF(F13=S4,M8,IF(F13=S5,M8,\"\")))))","v":"Regulation 31 (1) (b)"}]

{"sheet":"Declaration","index":2,"n_rows":16,"n_cols":21,"rows_kept":16,"merged":[[15,6,15,8]]}
["Micro@213Vista",{"$nulls":18},"Micro@213Vista","Yes"]
[{"$nulls":20},"No"]
[]
[]
[]
[]
[]
[{"$nulls":3},"Sr. No.","Particular","Yes/No","Promoter and Promoter Group","Public shareholder","Non Promoter- Non Public"]
[{"$nulls":3},1,"Whether the Listed Entity has issued any partly paid up shares?","No","No","No","No",{"$nulls":3},1,1,1,1,null,"Partly Paid Up Shares","Partly Paid Up Shares PPG","Partly Paid Up Shares Public","Partly Paid Up Shares NPNP"]
[{"$nulls":3},2,"Whether the Listed Entity has issued any Convertible Securities ?","No","No","No","No",{"$nulls":3},1,1,1,1,null,"Convertible Securities","Convertible Securities PPG","Convertible Securities Public","Convertible Securities NPNP"]
[{"$nulls":3},3,"Whether the Listed Entity has issued any Warrants ?","No","No","No","No",{"$nulls":3},1,1,1,1,null,"Warrants","Warrants PPG","Warrants Public","Warrants NPNP"]
[{"$nulls":3},4,"Whether the Listed Entity has any shares against which depository receipts are issued?","No","No","No","No",{"$nulls":3},1,1,1,1,null,"Depository Receipts","Depository Receipts PPG","Depository Receipts Public","Depository Receipts NPNP"]
[{"$nulls":3},5,"Whether the Listed Entity has any shares in locked-in?","No","No","No","No",{"$nulls":3},1,1,1,1,null,"Locked In","Locked In PPG","Locked In Public","Locked In NPNP"]
[{"$nulls":3},6,"Whether any shares held by promoters are pledge or otherwise encumbered?","No","No",{"$nulls":5},1,1,0,0,null,"Pledge Or Otherwise Encumbered","Pledge Or Otherwise Encumbered PPG","Pledge Or Otherwise Encumbered Public","Pledge Or Otherwise Encumbered NPNP"]
[{"$nulls":3},7,"Whether company has equity shares with differential voting rights?","No","No","No","No",{"$nulls":3},1,1,1,1,null,"Voting Rights","Voting Rights PPG","Voting Rights Public","Voting Rights NPNP"]
[{"$nulls":3},8,"Whether the listed entity has any significant beneficial owner?","No",{"$nulls":11},"Whether the listed entity has any significant beneficial owner?"]

{"sheet":"Summary","index":3,"n_rows":18,"n_cols":25,"rows_kept":18,"merged":[[7,4,7,24],[8,4,8,24],[9,4,11,4],[9,5,11,5],[9,6,11,6],[9,7,11,7],[9,8,11,8],[9,9,11,9],[9,10,11,10],[9,11,11,11],[9,12,9,15],[9,16,11,16],[9,17,11,17],[9,18,11,18],[9,19,11,19],[9,20,10,21],[9,22,10,23],[9,24,11,24],[10,12,10,14],[10,15,11,15]]}
[]
[{"$nulls":6},"Number of shareholders","Number of fully paid up equity shares","Number of partly paid-up equity shares","Number of shares underlying outstanding depository receipts","Total number of shares","Shareholding as a percentage of total number of shares held by promoters and public shareholders and custodians or DR holders","Number of voting rights held by same class of securities","Number of voting rights held by differential voting rights","Total Number of voting rights","Percentage of total number of voting rights","Number of shares underlying outstanding convertible securities","Number of warrant","Total shareholding as a percentage assuming full conversion of convertible securities","Total shareholding as a percentage assuming full conversion of convertible securities","Number of the locked-in-shares ","Locked-in-shares as a percentage of total number of shares","Pledged or encumbered - number of shares","Pledged or encumbered shares held as percentage of total number of shares","Number of equity shares held in dematerialized form"]
[]
[]
[]
[]
[]
[{"$nulls":4},"Table I - Summary Statement holding of specified securities"]
[{"$nulls":4},"Note  : Data will be automatically populated from shareholding pattern sheet -  Data Entry Restricted in this sheet"]
[{"$nulls":4},"Category\n(I)","Category of shareholder\n(II)","Nos. Of shareholders\n(III)","No. of fully paid up equity shares held\n(IV)","No. Of Partly paid-up equity shares held\n(V)","No. Of shares underlying Depository Receipts\n(VI)","Total nos. shares\nheld\n(VII) = (IV)+(V)+ (VI)","Shareholding as a % of total no. of shares (calculated as per SCRR, 1957)\n(VIII)\nAs a % of (A+B+C2)","Number of Voting Rights\nheld in each class of\nsecurities\n(IX)",{"$nulls":3},"No. Of Shares Underlying Outstanding convertible securities\n(X)","No. of Shares Underlying Outstanding Warrants (Xi)","No. Of Shares Underlying Outstanding convertible securities and No. Of Warrants\n(Xi) (a)","Shareholding , as a % assuming full conversion of convertible securities ( as a percentage of diluted share capital)\n(XI)= (VII)+(X)\nAs a % of (A+B+C2)","Number of Locked in shares\n(XII)",null,"Number of Shares pledged or otherwise encumbered\n(XIII)",null,"Number of equity shares held in dematerialized form \n(XIV)"]
[{"$nulls":12},"No of Voting  (XIV)  Rights",null,null,"Total as a % of\n(A+B+C)"]
[{"$nulls":12},"Class\neg:\nX","Class\neg:y","Total",{"$nulls":5},"No.\n(a)","As a % of total Shares held\n(b)","No.\n(a)","As a % of total Shares held\n(b)"]
[{"$nulls":4},"(A)","Promoter & Promoter Group",{"$f":"+IFERROR(IF(COUNT('Shareholding Pattern'!H26),('Shareholding Pattern'!H26),\"\"),\"\")","v":22},{"$f":"+IFERROR(IF(COUNT('Shareholding Pattern'!I26),('Shareholding Pattern'!I26),\"\"),\"\")","v":3745700},{"$f":"+IFERROR(IF(COUNT('Shareholding Pattern'!J26),('Shareholding Pattern'!J26),\"\"),\"\")","v":""},{"$f":"+IFERROR(IF(COUNT('Shareholding Pattern'!K26),('Shareholding Pattern'!K26),\"\"),\"\")","v":""},{"$f":"+IFERROR(IF(COUNT('Shareholding Pattern'!L26),('Shareholding Pattern'!L26),\"\"),\"\")","v":3745700},{"$f":"+IFERROR(IF(COUNT('Shareholding Pattern'!M26),('Shareholding Pattern'!M26),\"\"),\"\")","v":63.14},{"$f":"+IFERROR(IF(COUNT('Shareholding Pattern'!N26),('Shareholding Pattern'!N26),\"\"),\"\")","v":{"v":3745700,"d":"3,745,700.00"}},{"$f":"+IFERROR(IF(COUNT('Shareholding Pattern'!O26),('Shareholding Pattern'!O26),\"\"),\"\")","v":""},{"$f":"+IFERROR(IF(COUNT('Shareholding Pattern'!P26),('Shareholding Pattern'!P26),\"\"),\"\")","v":{"v":3745700,"d":"3745700.00"}},{"$f":"+IFERROR(IF(COUNT('Shareholding Pattern'!Q26),('Shareholding Pattern'!Q26),\"\"),\"\")","v":63.14},{"$f":"+IFERROR(IF(COUNT('Shareholding Pattern'!R26),('Shareholding Pattern'!R26),\"\"),\"\")","v":""},{"$f":"+IFERROR(IF(COUNT('Shareholding Pattern'!S26),('Shareholding Pattern'!S26),\"\"),\"\")","v":""},{"$f":"+IFERROR(IF(COUNT('Shareholding Pattern'!T26),('Shareholding Pattern'!T26),\"\"),\"\")","v":""},{"$f":"+IFERROR(IF(COUNT('Shareholding Pattern'!U26),('Shareholding Pattern'!U26),\"\"),\"\")","v":63.14},{"$f":"+IFERROR(IF(COUNT('Shareholding Pattern'!V26),('Shareholding Pattern'!V26),\"\"),\"\")","v":""},{"$f":"+IFERROR(IF(COUNT('Shareholding Pattern'!W26),('Shareholding Pattern'!W26),\"\"),\"\")","v":""},{"$f":"+IFERROR(IF(COUNT('Shareholding Pattern'!X26),('Shareholding Pattern'!X26),\"\"),\"\")","v":""},{"$f":"+IFERROR(IF(COUNT('Shareholding Pattern'!Y26),('Shareholding Pattern'!Y26),\"\"),\"\")","v":""},{"$f":"+IFERROR(IF(COUNT('Shareholding Pattern'!Z26),('Shareholding Pattern'!Z26),\"\"),\"\")","v":0}]
[{"$nulls":4},"(B)","Public",{"$f":"+IFERROR(IF(COUNT('Shareholding Pattern'!H50),('Shareholding Pattern'!H50),\"\"),\"\")","v":1548},{"$f":"+IFERROR(IF(COUNT('Shareholding Pattern'!I50),('Shareholding Pattern'!I50),\"\"),\"\")","v":2186900},{"$f":"+IFERROR(IF(COUNT('Shareholding Pattern'!J50),('Shareholding Pattern'!J50),\"\"),\"\")","v":""},{"$f":"+IFERROR(IF(COUNT('Shareholding Pattern'!K50),('Shareholding Pattern'!K50),\"\"),\"\")","v":""},{"$f":"+IFERROR(IF(COUNT('Shareholding Pattern'!L50),('Shareholding Pattern'!L50),\"\"),\"\")","v":2186900},{"$f":"+IFERROR(IF(COUNT('Shareholding Pattern'!M50),('Shareholding Pattern'!M50),\"\"),\"\")","v":36.86},{"$f":"+IFERROR(IF(COUNT('Shareholding Pattern'!N50),('Shareholding Pattern'!N50),\"\"),\"\")","v":{"v":2186900,"d":"2186900.00"}},{"$f":"+IFERROR(IF(COUNT('Shareholding Pattern'!O50),('Shareholding Pattern'!O50),\"\"),\"\")","v":""},{"$f":"+IFERROR(IF(COUNT('Shareholding Pattern'!P50),('Shareholding Pattern'!P50),\"\"),\"\")","v":{"v":2186900,"d":"2186900.00"}},{"$f":"+IFERROR(IF(COUNT('Shareholding Pattern'!Q50),('Shareholding Pattern'!Q50),\"\"),\"\")","v":36.86},{"$f":"+IFERROR(IF(COUNT('Shareholding Pattern'!R50),('Shareholding Pattern'!R50),\"\"),\"\")","v":""},{"$f":"+IFERROR(IF(COUNT('Shareholding Pattern'!S50),('Shareholding Pattern'!S50),\"\"),\"\")","v":""},{"$f":"+IFERROR(IF(COUNT('Shareholding Pattern'!T50),('Shareholding Pattern'!T50),\"\"),\"\")","v":""},{"$f":"+IFERROR(IF(COUNT('Shareholding Pattern'!U50),('Shareholding Pattern'!U50),\"\"),\"\")","v":36.86},{"$f":"+IFERROR(IF(COUNT('Shareholding Pattern'!V50),('Shareholding Pattern'!V50),\"\"),\"\")","v":""},{"$f":"+IFERROR(IF(COUNT('Shareholding Pattern'!W50),('Shareholding Pattern'!W50),\"\"),\"\")","v":""},null,null,{"$f":"+IFERROR(IF(COUNT('Shareholding Pattern'!Z50),('Shareholding Pattern'!Z50),\"\"),\"\")","v":2186900}]
[{"$nulls":4},"(C)","Non Promoter- Non Public",{"$f":"+IFERROR(IF(COUNT('Shareholding Pattern'!H56),('Shareholding Pattern'!H56),\"\"),\"\")","v":""},{"$f":"+IFERROR(IF(COUNT('Shareholding Pattern'!I56),('Shareholding Pattern'!I56),\"\"),\"\")","v":""},{"$f":"+IFERROR(IF(COUNT('Shareholding Pattern'!J56),('Shareholding Pattern'!J56),\"\"),\"\")","v":""},{"$f":"+IFERROR(IF(COUNT('Shareholding Pattern'!K56),('Shareholding Pattern'!K56),\"\"),\"\")","v":""},{"$f":"+IFERROR(IF(COUNT('Shareholding Pattern'!L56),('Shareholding Pattern'!L56),\"\"),\"\")","v":""},null,{"$f":"+IFERROR(IF(COUNT('Shareholding Pattern'!N56),('Shareholding Pattern'!N56),\"\"),\"\")","v":""},{"$f":"+IFERROR(IF(COUNT('Shareholding Pattern'!O56),('Shareholding Pattern'!O56),\"\"),\"\")","v":""},{"$f":"+IFERROR(IF(COUNT('Shareholding Pattern'!P56),('Shareholding Pattern'!P56),\"\"),\"\")","v":""},{"$f":"+IFERROR(IF(COUNT('Shareholding Pattern'!Q56),('Shareholding Pattern'!Q56),\"\"),\"\")","v":""},{"$f":"+IFERROR(IF(COUNT('Shareholding Pattern'!R56),('Shareholding Pattern'!R56),\"\"),\"\")","v":""},{"$f":"+IFERROR(IF(COUNT('Shareholding Pattern'!S56),('Shareholding Pattern'!S56),\"\"),\"\")","v":""},{"$f":"+IFERROR(IF(COUNT('Shareholding Pattern'!T56),('Shareholding Pattern'!T56),\"\"),\"\")","v":""},null,{"$f":"+IFERROR(IF(COUNT('Shareholding Pattern'!V56),('Shareholding Pattern'!V56),\"\"),\"\")","v":""},{"$f":"+IFERROR(IF(COUNT('Shareholding Pattern'!W56),('Shareholding Pattern'!W56),\"\"),\"\")","v":""},null,null,{"$f":"+IFERROR(IF(COUNT('Shareholding Pattern'!Z56),('Shareholding Pattern'!Z56),\"\"),\"\")","v":""}]
[{"$nulls":4},"(C1)","Shares underlying DRs",{"$f":"+IFERROR(IF(COUNT('Shareholding Pattern'!H54),('Shareholding Pattern'!H54),\"\"),\"\")","v":""},{"$f":"+IFERROR(IF(COUNT('Shareholding Pattern'!I54),('Shareholding Pattern'!I54),\"\"),\"\")","v":""},{"$f":"+IFERROR(IF(COUNT('Shareholding Pattern'!J54),('Shareholding Pattern'!J54),\"\"),\"\")","v":""},{"$f":"+IFERROR(IF(COUNT('Shareholding Pattern'!K54),('Shareholding Pattern'!K54),\"\"),\"\")","v":""},{"$f":"+IFERROR(IF(COUNT('Shareholding Pattern'!L54),('Shareholding Pattern'!L54),\"\"),\"\")","v":""},null,{"$f":"+IFERROR(IF(COUNT('Shareholding Pattern'!N54),('Shareholding Pattern'!N54),\"\"),\"\")","v":""},{"$f":"+IFERROR(IF(COUNT('Shareholding Pattern'!O54),('Shareholding Pattern'!O54),\"\"),\"\")","v":""},{"$f":"+IFERROR(IF(COUNT('Shareholding Pattern'!P54),('Shareholding Pattern'!P54),\"\"),\"\")","v":""},{"$f":"+IFERROR(IF(COUNT('Shareholding Pattern'!Q54),('Shareholding Pattern'!Q54),\"\"),\"\")","v":""},{"$f":"+IFERROR(IF(COUNT('Shareholding Pattern'!R54),('Shareholding Pattern'!R54),\"\"),\"\")","v":""},{"$f":"+IFERROR(IF(COUNT('Shareholding Pattern'!S54),('Shareholding Pattern'!S54),\"\"),\"\")","v":""},{"$f":"+IFERROR(IF(COUNT('Shareholding Pattern'!T54),('Shareholding Pattern'!T54),\"\"),\"\")","v":""},null,{"$f":"+IFERROR(IF(COUNT('Shareholding Pattern'!V54),('Shareholding Pattern'!V54),\"\"),\"\")","v":""},{"$f":"+IFERROR(IF(COUNT('Shareholding Pattern'!W54),('Shareholding Pattern'!W54),\"\"),\"\")","v":""},null,null,{"$f":"+IFERROR(IF(COUNT('Shareholding Pattern'!Z54),('Shareholding Pattern'!Z54),\"\"),\"\")","v":""}]
[{"$nulls":4},"(C2)","Shares held by Employee Trusts",{"$f":"+IFERROR(IF(COUNT('Shareholding Pattern'!H55),('Shareholding Pattern'!H55),\"\"),\"\")","v":""},{"$f":"+IFERROR(IF(COUNT('Shareholding Pattern'!I55),('Shareholding Pattern'!I55),\"\"),\"\")","v":""},{"$f":"+IFERROR(IF(COUNT('Shareholding Pattern'!J55),('Shareholding Pattern'!J55),\"\"),\"\")","v":""},{"$f":"+IFERROR(IF(COUNT('Shareholding Pattern'!K55),('Shareholding Pattern'!K55),\"\"),\"\")","v":""},{"$f":"+IFERROR(IF(COUNT('Shareholding Pattern'!L55),('Shareholding Pattern'!L55),\"\"),\"\")","v":""},{"$f":"+IFERROR(IF(COUNT('Shareholding Pattern'!M55),('Shareholding Pattern'!M55),\"\"),\"\")","v":""},{"$f":"+IFERROR(IF(COUNT('Shareholding Pattern'!N55),('Shareholding Pattern'!N55),\"\"),\"\")","v":""},{"$f":"+IFERROR(IF(COUNT('Shareholding Pattern'!O55),('Shareholding Pattern'!O55),\"\"),\"\")","v":""},{"$f":"+IFERROR(IF(COUNT('Shareholding Pattern'!P55),('Shareholding Pattern'!P55),\"\"),\"\")","v":""},{"$f":"+IFERROR(IF(COUNT('Shareholding Pattern'!Q55),('Shareholding Pattern'!Q55),\"\"),\"\")","v":""},{"$f":"+IFERROR(IF(COUNT('Shareholding Pattern'!R55),('Shareholding Pattern'!R55),\"\"),\"\")","v":""},{"$f":"+IFERROR(IF(COUNT('Shareholding Pattern'!S55),('Shareholding Pattern'!S55),\"\"),\"\")","v":""},{"$f":"+IFERROR(IF(COUNT('Shareholding Pattern'!T55),('Shareholding Pattern'!T55),\"\"),\"\")","v":""},{"$f":"+IFERROR(IF(COUNT('Shareholding Pattern'!U55),('Shareholding Pattern'!U55),\"\"),\"\")","v":""},{"$f":"+IFERROR(IF(COUNT('Shareholding Pattern'!V55),('Shareholding Pattern'!V55),\"\"),\"\")","v":""},{"$f":"+IFERROR(IF(COUNT('Shareholding Pattern'!W55),('Shareholding Pattern'!W55),\"\"),\"\")","v":""},null,null,{"$f":"+IFERROR(IF(COUNT('Shareholding Pattern'!Z55),('Shareholding Pattern'!Z55),\"\"),\"\")","v":""}]
[{"$nulls":5},"Total",{"$f":"+IFERROR(IF(COUNT('Shareholding Pattern'!H58),('Shareholding Pattern'!H58),\"\"),\"\")","v":1570},{"$f":"+IFERROR(IF(COUNT('Shareholding Pattern'!I58),('Shareholding Pattern'!I58),\"\"),\"\")","v":5932600},{"$f":"+IFERROR(IF(COUNT('Shareholding Pattern'!J58),('Shareholding Pattern'!J58),\"\"),\"\")","v":""},{"$f":"+IFERROR(IF(COUNT('Shareholding Pattern'!K58),('Shareholding Pattern'!K58),\"\"),\"\")","v":""},{"$f":"+IFERROR(IF(COUNT('Shareholding Pattern'!L58),('Shareholding Pattern'!L58),\"\"),\"\")","v":5932600},{"$f":"+IFERROR(IF(COUNT('Shareholding Pattern'!M58),('Shareholding Pattern'!M58),\"\"),\"\")","v":100},{"$f":"+IFERROR(IF(COUNT('Shareholding Pattern'!N58),('Shareholding Pattern'!N58),\"\"),\"\")","v":{"v":5932600,"d":"5932600.00"}},{"$f":"+IFERROR(IF(COUNT('Shareholding Pattern'!O58),('Shareholding Pattern'!O58),\"\"),\"\")","v":""},{"$f":"+IFERROR(IF(COUNT('Shareholding Pattern'!P58),('Shareholding Pattern'!P58),\"\"),\"\")","v":{"v":5932600,"d":"5932600.00"}},{"$f":"+IFERROR(IF(COUNT('Shareholding Pattern'!Q58),('Shareholding Pattern'!Q58),\"\"),\"\")","v":{"v":100,"d":"100.00"}},{"$f":"+IFERROR(IF(COUNT('Shareholding Pattern'!R58),('Shareholding Pattern'!R58),\"\"),\"\")","v":""},{"$f":"+IFERROR(IF(COUNT('Shareholding Pattern'!S58),('Shareholding Pattern'!S58),\"\"),\"\")","v":""},{"$f":"+IFERROR(IF(COUNT('Shareholding Pattern'!T58),('Shareholding Pattern'!T58),\"\"),\"\")","v":""},{"$f":"+IFERROR(IF(COUNT('Shareholding Pattern'!U58),('Shareholding Pattern'!U58),\"\"),\"\")","v":100},{"$f":"+IFERROR(IF(COUNT('Shareholding Pattern'!V58),('Shareholding Pattern'!V58),\"\"),\"\")","v":""},{"$f":"+IFERROR(IF(COUNT('Shareholding Pattern'!W58),('Shareholding Pattern'!W58),\"\"),\"\")","v":""},{"$f":"+IFERROR(IF(COUNT('Shareholding Pattern'!X58),('Shareholding Pattern'!X58),\"\"),\"\")","v":""},{"$f":"+IFERROR(IF(COUNT('Shareholding Pattern'!Y58),('Shareholding Pattern'!Y58),\"\"),\"\")","v":""},{"$f":"+IFERROR(IF(COUNT('Shareholding Pattern'!Z58),('Shareholding Pattern'!Z58),\"\"),\"\")","v":2186900}]

{"sheet":"Taxonomy","index":4,"n_rows":212,"n_cols":5,"rows_kept":212,"hidden":true}
["element","label","type","periodType","Validation"]
["General Information"]
["ScripCode","Scrip code","in-bse-shp-types:ScripCode","duration","This is a mandatory field. Should be valid SCRIP CODE  as per BSE Scrip Code Format. "]
["Symbol","NSE Symbol","xbrli:stringItemType","duration"]
["MSEISymbol","MSEI Symbol","xbrli:stringItemType","duration"]
["ISIN","ISIN","in-bse-shp-types:ISIN","duration"]
["NameOfTheCompany","Name of the company","xbrli:stringItemType","duration","This is a mandatory field. Please enter company name."]
["WhetherCompanyIsSME","Whether company is SME","xbrli:booleanItemType","instant","This is a mandatory field. Value must be \"Yes\" or \"No\", Select from drop down list."]
["ClassOfSecurity","Class of Security","in-bse-shp-types:ClassOfSecurity","duration"]
["TypeOfReport","Type of report","in-bse-shp-types:TypeOfReport","duration","This is a mandatory field. Please select value from the drop-down."]
["DateOfReport","Quarter Ended / Half year ended/Date of Report (For Prelisting / Allotment)","xbrli:dateItemType","instant","This is a mandatory field if you select type of report as \"Quarterly\". Please enter date in \"dd-mm-yyyy\" format."]
["DateOfAllotment","DateOfAllotment","xbrli:dateItemType","instant","This is a mandatory field if you select type of report as \"Pre-listing\" or \"Capital Restructuring\". Please enter date in \"dd-mm-yyyy\" format."]
["DateOfListing","DateOfListing","xbrli:dateItemType","instant"]
["DateOfAllotmentOrListing","Date of allotment / extinguishment (in case Capital Restructuring selected) / Listing Date","xbrli:dateItemType","instant"]
["ShareholdingPatternFiledUnder","Shareholding pattern filed under","in-bse-shp-types:TypeOfShareholdingPattern","duration"]
["Declaration"]
["WhetherTheListedEntityHasIssuedAnyPartlyPaidUpShares","Partly Paid Up Shares","xbrli:booleanItemType","instant"]
["WhetherTheListedEntityHasIssuedAnyPartlyPaidUpSharesForPromoterAndPromoterGroup","Partly Paid Up Shares PPG","xbrli:booleanItemType","instant"]
["WhetherTheListedEntityHasIssuedAnyPartlyPaidUpSharesForPublicShareHolder","Partly Paid Up Shares Public","xbrli:booleanItemType","instant"]
["WhetherTheListedEntityHasIssuedAnyPartlyPaidUpSharesForNonPromoterNonPublic","Partly Paid Up Shares NPNP","xbrli:booleanItemType","instant"]
["WhetherTheListedEntityHasIssuedAnyConvertibleSecurities","Convertible Securities","xbrli:booleanItemType","instant"]
["WhetherTheListedEntityHasIssuedAnyConvertibleSecuritiesForPromoterAndPromoterGroup","Convertible Securities PPG","xbrli:booleanItemType","instant"]
["WhetherTheListedEntityHasIssuedAnyConvertibleSecuritiesForPublicShareHolder","Convertible Securities Public","xbrli:booleanItemType","instant"]
["WhetherTheListedEntityHasIssuedAnyConvertibleSecuritiesForNonPromoterNonPublic","Convertible Securities NPNP","xbrli:booleanItemType","instant"]
["WhetherTheListedEntityHasIssuedAnyWarrants","Warrants","xbrli:booleanItemType","instant"]
["WhetherTheListedEntityHasIssuedAnyWarrantsForPromoterAndPromoterGroup","Warrants PPG","xbrli:booleanItemType","instant"]
["WhetherTheListedEntityHasIssuedAnyWarrantsForPublicShareHolder","Warrants Public","xbrli:booleanItemType","instant"]
["WhetherTheListedEntityHasIssuedAnyWarrantsForNonPromoterNonPublic","Warrants NPNP","xbrli:booleanItemType","instant"]
["WhetherTheListedEntityHasAnySharesAgainstWhichDepositoryReceiptsAreIssued","Depository Receipts","xbrli:booleanItemType","instant"]
["WhetherTheListedEntityHasAnySharesAgainstWhichDepositoryReceiptsAreIssuedForPromoterAndPromoterGroup","Depository Receipts PPG","xbrli:booleanItemType","instant"]
["WhetherTheListedEntityHasAnySharesAgainstWhichDepositoryReceiptsAreIssuedForPublicShareHolder","Depository Receipts Public","xbrli:booleanItemType","instant"]
["WhetherTheListedEntityHasAnySharesAgainstWhichDepositoryReceiptsAreIssuedForNonPromoterNonPublic","Depository Receipts NPNP","xbrli:booleanItemType","instant"]
["WhetherTheListedEntityHasAnySharesInLockedIn","Locked In","xbrli:booleanItemType","instant"]
["WhetherTheListedEntityHasAnySharesInLockedInForPromoterAndPromoterGroup","Locked In PPG","xbrli:booleanItemType","instant"]
["WhetherTheListedEntityHasAnySharesInLockedInForPublicShareHolder","Locked In Public","xbrli:booleanItemType","instant"]
["WhetherTheListedEntityHasAnySharesInLockedInForNonPromoterNonPublic","Locked In NPNP","xbrli:booleanItemType","instant"]
["WhetherAnySharesHeldByPromotersArePledgeOrOtherwiseEncumbered","Pledge Or Otherwise Encumbered","xbrli:booleanItemType","instant"]
["WhetherAnySharesHeldByPromotersArePledgeOrOtherwiseEncumberedForPromoterAndPromoterGroup","Pledge Or Otherwise Encumbered PPG","xbrli:booleanItemType","instant"]
["WhetherAnySharesHeldByPromotersArePledgeOrOtherwiseEncumberedForPublicShareHolder","Pledge Or Otherwise Encumbered Public","xbrli:booleanItemType","instant"]
["WhetherAnySharesHeldByPromotersArePledgeOrOtherwiseEncumberedForNonPromoterNonPublic","Pledge Or Otherwise Encumbered NPNP","xbrli:booleanItemType","instant"]
["WhetherCompanyHasEquitySharesWithDifferentialVotingRights","Voting Rights","xbrli:booleanItemType","instant"]
["WhetherCompanyHasEquitySharesWithDifferentialVotingRightsForPromoterAndPromoterGroup","Voting Rights PPG","xbrli:booleanItemType","instant"]
["WhetherCompanyHasEquitySharesWithDifferentialVotingRightsForPublicShareHolder","Voting Rights Public","xbrli:booleanItemType","instant"]
["WhetherCompanyHasEquitySharesWithDifferentialVotingRightsForNonPromoterNonPublic","Voting Rights NPNP","xbrli:booleanItemType","instant"]
["Shareholding Pattern"]
["IndividualsOrHinduUndividedFamilyMember","Individuals or Hindu undivided family [Member]","nonnum:domainItemType","duration"]
["CentralGovernmentOrStateGovernmentSMember","Central government or State government(s) [Member]","nonnum:domainItemType","duration"]
["IndianFinancialInstitutionsOrBanksMember","Indian - financial institutions or banks [Member]","nonnum:domainItemType","duration"]
["OtherIndianShareholdersMember","Other Indian shareholders [Member]","nonnum:domainItemType","duration"]
["IndianMember","Indian [Member]","nonnum:domainItemType","duration"]
["NonResidentIndividualsOrForeignIndividualsMember","Non-resident individuals or foreign individuals [Member]","nonnum:domainItemType","duration"]
["ForeignGovernmentMember","Foreign - Government [Member]","nonnum:domainItemType","duration"]
["ForeignInstitutionsMember","Foreign - institutions [Member]","nonnum:domainItemType","duration"]
["ForeignPortfolioInvestorMember","Foreign portfolio investor [Member]","nonnum:domainItemType","duration"]
["OtherForeignShareholdersMember","Other foreign shareholders [Member]","nonnum:domainItemType","duration"]
["ForeignMember","Foreign [Member]","nonnum:domainItemType","duration"]
["ShareholdingOfPromoterAndPromoterGroupMember","Shareholding of promoter and promoter group [Member]","nonnum:domainItemType","duration"]
["MutualFundsOrUtiMember","Mutual funds or UTI [Member]","nonnum:domainItemType","duration"]
["VentureCapitalFundsMember","Venture capital funds [Member]","nonnum:domainItemType","duration"]
["AlternativeInvestmentFundsMember","Alternative investment funds [Member]","nonnum:domainItemType","duration"]
["ForeignVentureCapitalInvestorsMember","Foreign venture capital investors [Member]","nonnum:domainItemType","duration"]
["InstitutionsForeignPortfolioInvestorMember","Institutions - Foreign portfolio investor [Member]","nonnum:domainItemType","duration"]
["FinancialInstitutionOrBanksMember","Financial Institution or Banks [Member]","nonnum:domainItemType","duration"]
["InsuranceCompaniesMember","Insurance Companies [Member]","nonnum:domainItemType","duration"]
["ProvidentFundsOrPensionFundsMember","Provident Funds or pension funds [Member]","nonnum:domainItemType","duration"]
["OtherInstitutionsMember","Other institutions [Member]","nonnum:domainItemType","duration"]
["InstitutionsMember","Institutions [Member]","nonnum:domainItemType","duration"]
["CentralGovernmentOrStateGovernmentSOrPresidentOfIndiaMember","Central Government or State Government(s) or President of India [Member]","nonnum:domainItemType","duration"]
["GovermentsMember","Goverments [Member]","nonnum:domainItemType","duration"]
["IndividualShareholdersHoldingNominalShareCapitalUpToRsTwoLakhMember","Individual shareholders holding nominal share capital up to Rs two lakh [Member]","nonnum:domainItemType","duration"]
["IndividualShareholdersHoldingNominalShareCapitalInExcessOfRsTwoLakhMember","Individual shareholders holding nominal share capital in excess of Rs two lakh [Member]","nonnum:domainItemType","duration"]
["NBFCsRegisteredWithRbiMember","NBFCs registered with RBI [Member]","nonnum:domainItemType","duration"]
["EmployeeTrustsMember","Employee Trusts [Member]","nonnum:domainItemType","duration"]
["OverseasDepositoriesMember","Overseas Depositories [Member]","nonnum:domainItemType","duration"]
["OtherNonInstitutionsMember","Other non-institutions [Member]","nonnum:domainItemType","duration"]
["NonInstitutionsMember","Non-institutions [Member]","nonnum:domainItemType","duration"]
["PublicShareholdingMember","Public shareholding [Member]","nonnum:domainItemType","duration"]
["CustodianOrDRHolderMember","Custodian or DR holder [Member]","nonnum:domainItemType","duration"]
["EmployeeBenefitsTrustsMember","Employee benefits trusts [Member]","nonnum:domainItemType","duration"]
["SharesHeldByNonPromoterNonPublicShareholdersMember","Shares held by non-promoter non-public shareholders [Member]","nonnum:domainItemType","duration"]
["ShareholdingPatternMember","Shareholding pattern [Member]","nonnum:domainItemType","duration"]
[]
["NumberOfShareholders","Number of shareholders","xbrli:decimalItemType","instant"]
["NumberOfFullyPaidUpEquityShares","Number of fully paid up equity shares","xbrli:sharesItemType","instant"]
["NumberOfPartlyPaidUpEquityShares","Number of partly paid-up equity shares","xbrli:sharesItemType","instant"]
["NumberOfSharesUnderlyingOutstandingDepositoryReceipts","Number of shares underlying outstanding depository receipts","xbrli:sharesItemType","instant"]
["NumberOfShares","Total number of shares","xbrli:sharesItemType","instant"]
["ShareholdingAsAPercentageOfTotalNumberOfShares","Shareholding as a percentage of total number of shares held by promoters and public shareholders and custodians or DR holders","num:percentItemType","instant","In case of public share holding percentage can not be less than one percentage."]
["NumberOfVotingRightsHeldBySameClassOfSecurities","Number of voting rights held by same class of securities","xbrli:decimalItemType","instant","Value must be equal to Fully paid up shares"]
["NumberOfVotingRightsHeldByDifferentialVotingRights","Number of voting rights held by differential voting rights","xbrli:decimalItemType","instant"]
["NumberOfVotingRights","Total Number of voting rights","xbrli:decimalItemType","instant"]
["PercentageOfTotalVotingRights","Percentage of total number of voting rights","num:percentItemType","instant","Percentage of total number of voting rights"]
["NumberOfSharesUnderlyingOutstandingConvertibleSecurities","Number of shares underlying outstanding convertible securities","xbrli:sharesItemType","instant"]
["NumberOfWarrants","Number of warrant","xbrli:sharesItemType","instant"]
["NumberOfConvertibleSecuritiesAndWarrants","Number of warrant and convertible securities","xbrli:sharesItemType","instant"]
["ShareholdingAsAPercentageAssumingFullConversionOfConvertibleSecuritiesAndWarrants","Total shareholding as a percentage assuming full conversion of convertible securities","num:percentItemType","instant","Total shareholding as a percentage assuming full conversion of convertible securities"]
["NumberOfTheLockedInShares","Number of the locked-in-shares ","xbrli:sharesItemType","instant","Value should be less than or equal to fully paid up shares"]
["LockedInSharesAsAPercentageOfTotalNumberOfShares","Locked-in-shares as a percentage of total number of shares","num:percentItemType","instant","Locked-in-shares as a percentage of total number of shares"]
["PledgedOrEncumberedNumberOfShares","Pledged or encumbered - number of shares","xbrli:sharesItemType","instant","Value should be less than or equal to fully paid up shares"]
["PledgedOrEncumberedSharesHeldAsPercentageOfTotalNumberOfShares","Pledged or encumbered shares held as percentage of total number of shares","num:percentItemType","instant","Pledged or encumbered shares held as percentage of total number of shares"]
["NumberOfEquitySharesHeldInDematerializedForm","Number of equity shares held in dematerialized form","xbrli:sharesItemType","instant","Value should be less than or equal to fully paid up shares"]
["DisclosureOfNotesOnShareholdingPatternExplanatoryTextBlock","Disclosure of notes on shareholding pattern","nonnum:textBlockItemType","instant"]
["DisclosureOfNotesInCaseOfPromoterHolidingInDematerialsedFormIsLessThan100PercentageExplanatoryTextBlock","Disclosure of notes in case of promoter holiding in dematerialsed form is less than 100 percentage","nonnum:textBlockItemType","instant","This field is mandatory if promoter holiding in dematerialsed form is less than 100 percentage."]
["DisclosureOfNotesInCaseOfPublicShareholdingIsLessThan25PercentageExplanatoryTextBlock","Disclosure of notes in case of public share holding is less than 25 percentage","nonnum:textBlockItemType","instant","This filed is mandatory if public share holding is less than 25 percentage."]
["DisclosureOfNotesOnShareholdingPatternForCompanyRemarksExplanatoryTextBlock","Disclosure of notes on shareholding pattern for company remarks explanatory","nonnum:textBlockItemType","instant"]
["Promoter and Promoter Group"]
["NameOfTheShareholder","Name of shareholder","xbrli:stringItemType","duration"]
["PermanentAccountNumberOfShareholder","Permanent account number of shareholder","in-bse-shp-types:PermanentAccountNumber","duration","[A-Z][A-Z][A-Z][A-Z][A-Z][0-9][0-9][0-9][0-9][A-Z]\n\nIn absence of PAN write : ZZZZZ9999Z"]
["NumberOfFullyPaidUpEquityShares","Number of fully paid up equity shares","xbrli:sharesItemType","instant"]
["NumberOfPartlyPaidUpEquityShares","Number of partly paid-up equity shares","xbrli:sharesItemType","instant"]
["NumberOfSharesUnderlyingOutstandingDepositoryReceipts","Number of shares underlying outstanding depository receipts","xbrli:sharesItemType","instant"]
["NumberOfShares","Total number of shares","xbrli:sharesItemType","instant"]
["ShareholdingAsAPercentageOfTotalNumberOfShares","Shareholding as a percentage of total number of shares held by promoters and public shareholders and custodians or DR holders","num:percentItemType","instant","In case of public share holding percentage can not be less than one percentage."]
["NumberOfVotingRightsHeldBySameClassOfSecurities","Number of voting rights held by same class of securities","xbrli:decimalItemType","instant","Value must be equal to Fully paid up shares"]
["NumberOfVotingRightsHeldByDifferentialVotingRights","Number of voting rights held by differential voting rights","xbrli:decimalItemType","instant"]
["NumberOfVotingRights","Total Number of voting rights","xbrli:decimalItemType","instant"]
["PercentageOfTotalVotingRights","Percentage of total number of voting rights","num:percentItemType","instant","Percentage of total number of voting rights"]
["NumberOfSharesUnderlyingOutstandingConvertibleSecurities","Number of shares underlying outstanding convertible securities","xbrli:sharesItemType","instant"]
["NumberOfWarrants","Number of warrant","xbrli:sharesItemType","instant"]
["NumberOfConvertibleSecuritiesAndWarrants","Number of warrant and convertible securities","xbrli:sharesItemType","instant"]
["ShareholdingAsAPercentageAssumingFullConversionOfConvertibleSecuritiesAndWarrants","Total shareholding as a percentage assuming full conversion of convertible securities","num:percentItemType","instant","Total shareholding as a percentage assuming full conversion of convertible securities"]
["NumberOfTheLockedInShares","Number of the locked-in-shares ","xbrli:sharesItemType","instant","Value should be less than or equal to fully paid up shares"]
["LockedInSharesAsAPercentageOfTotalNumberOfShares","Locked-in-shares as a percentage of total number of shares","num:percentItemType","instant","Locked-in-shares as a percentage of total number of shares"]
["PledgedOrEncumberedNumberOfShares","Pledged or encumbered - number of shares","xbrli:sharesItemType","instant","Value should be less than or equal to fully paid up shares"]
["PledgedOrEncumberedSharesHeldAsPercentageOfTotalNumberOfShares","Pledged or encumbered shares held as percentage of total number of shares","num:percentItemType","instant","Pledged or encumbered shares held as percentage of total number of shares"]
["NumberOfEquitySharesHeldInDematerializedForm","Number of equity shares held in dematerialized form","xbrli:sharesItemType","instant","Value should be less than or equal to total no of shares."]
["DisclosureOfNotesOnReasonForNotProvidingPANExplanatoryTextBlock","Reason for not providing PAN","nonnum:textBlockItemType","instant","Please enter valid PAN no or if you already added PAN no then remove reason for not providing PAN.\n\nNote: kindly mention predefined reasons (Viz.  Sikkim resident, Foreign resident, President of India / Governor/ government holding, Shareholder is Minor and PAN not applied for, Shareholder Deceased and PAN not available, Shareholder not traceable)"]
["TypeOfPromoterShareholding","Shareholder type","in-bse-shp-types:PromoterAndPromoterGroup","duration","Select value from the drop-down."]
["CategoryOfOtherIndianShareholders","Category of other indian shareholders","in-bse-shp-types:CategoryOfIndianShareholders","duration"]
["CategoryOfOtherForeignShareholders","Category of other foreign shareholders","in-bse-shp-types:CategoryOfForeignShareholders","duration"]
["WhetherACategoryOrMoreThan1PercentageOfShareHolding","Category or more than one percentage","in-bse-shp-types:TypeOfOtherShareholding","duration"]
["NumberOfShareholders","Number of shareholders","xbrli:decimalItemType","instant"]
["Public shareholder"]
["NameOfTheShareholder","Name of shareholder","xbrli:stringItemType","duration"]
["PermanentAccountNumberOfShareholder","Permanent account number of shareholder","in-bse-shp-types:PermanentAccountNumber","duration","[A-Z][A-Z][A-Z][A-Z][A-Z][0-9][0-9][0-9][0-9][A-Z]\n\nIn absence of PAN write : ZZZZZ9999Z"]
["NumberOfFullyPaidUpEquityShares","Number of fully paid up equity shares","xbrli:sharesItemType","instant"]
["NumberOfPartlyPaidUpEquityShares","Number of partly paid-up equity shares","xbrli:sharesItemType","instant"]
["NumberOfSharesUnderlyingOutstandingDepositoryReceipts","Number of shares underlying outstanding depository receipts","xbrli:sharesItemType","instant"]
["NumberOfShares","Total number of shares","xbrli:sharesItemType","instant"]
["ShareholdingAsAPercentageOfTotalNumberOfShares","Shareholding as a percentage of total number of shares held by promoters and public shareholders and custodians or DR holders","num:percentItemType","instant","In case of public share holding percentage can not be less than one percentage."]
["NumberOfVotingRightsHeldBySameClassOfSecurities","Number of voting rights held by same class of securities","xbrli:decimalItemType","instant","Value must be equal to Fully paid up shares"]
["NumberOfVotingRightsHeldByDifferentialVotingRights","Number of voting rights held by differential voting rights","xbrli:decimalItemType","instant"]
["NumberOfVotingRights","Total Number of voting rights","xbrli:decimalItemType","instant"]
["PercentageOfTotalVotingRights","Percentage of total number of voting rights","num:percentItemType","instant","Percentage of total number of voting rights"]
["NumberOfSharesUnderlyingOutstandingConvertibleSecurities","Number of shares underlying outstanding convertible securities","xbrli:sharesItemType","instant"]
["NumberOfWarrants","Number of warrant","xbrli:sharesItemType","instant"]
["NumberOfConvertibleSecuritiesAndWarrants","Number of warrant and convertible securities","xbrli:sharesItemType","instant"]
["ShareholdingAsAPercentageAssumingFullConversionOfConvertibleSecuritiesAndWarrants","Total shareholding as a percentage assuming full conversion of convertible securities","num:percentItemType","instant","Total shareholding as a percentage assuming full conversion of convertible securities"]
["NumberOfTheLockedInShares","Number of the locked-in-shares ","xbrli:sharesItemType","instant","Value should be less than or equal to fully paid up shares"]
["LockedInSharesAsAPercentageOfTotalNumberOfShares","Locked-in-shares as a percentage of total number of shares","num:percentItemType","instant","Locked-in-shares as a percentage of total number of shares"]
["NumberOfEquitySharesHeldInDematerializedForm","Number of equity shares held in dematerialized form","xbrli:sharesItemType","instant","Value should be less than or equal to total no of shares."]
["CategoryOfOtherInstitutions","Category of other institutions","in-bse-shp-types:CategoryOfInstitutionShareholders","duration"]
["CategoryOfOtherNonInstitutions","Category of other non-institutions","in-bse-shp-types:CategoryOfNonInstitutionsShareholders","duration"]
["WhetherACategoryOrMoreThan1PercentageOfShareHolding","Category or more than one percentage","in-bse-shp-types:TypeOfOtherShareholding","duration"]
["NumberOfShareholders","Number of shareholders","xbrli:decimalItemType","instant"]
["DisclosureOfNotesOnReasonForNotProvidingPANExplanatoryTextBlock","Reason for not providing PAN","nonnum:textBlockItemType","instant","Please enter valid PAN no or if you already added PAN no then remove reason for not providing PAN.\n\n\nNote: kindly mention predefined reasons (Viz.  Sikkim resident, Foreign resident, President of India / Governor/ government holding, Shareholder is Minor and PAN not applied for, Shareholder Deceased and PAN not available, Shareholder not traceable)"]
["Non Promoter- Non Public shareholder"]
["TypeOfDepositoryReceipts","Type of depository receipts","in-bse-shp-types:TypeOfDepositoryReceipts","duration"]
["NameOfTheBank","Name of the bank","xbrli:stringItemType","duration"]
["NameOfTheShareholder","Name of shareholder","xbrli:stringItemType","duration"]
["PermanentAccountNumberOfShareholder","Permanent account number of shareholder","in-bse-shp-types:PermanentAccountNumber","duration","[A-Z][A-Z][A-Z][A-Z][A-Z][0-9][0-9][0-9][0-9][A-Z]\n\nIn absence of PAN write : ZZZZZ9999Z"]
["NumberOfShareholders","Number of shareholders","xbrli:decimalItemType","instant"]
["NumberOfFullyPaidUpEquityShares","Number of fully paid up equity shares","xbrli:sharesItemType","instant"]
["NumberOfPartlyPaidUpEquityShares","Number of partly paid-up equity shares","xbrli:sharesItemType","instant"]
["NumberOfSharesUnderlyingOutstandingDepositoryReceipts","Number of shares underlying outstanding depository receipts","xbrli:sharesItemType","instant"]
["NumberOfShares","Total number of shares","xbrli:sharesItemType","instant"]
["ShareholdingAsAPercentageOfTotalNumberOfShares","Shareholding as a percentage of total number of shares held by promoters and public shareholders and custodians or DR holders","num:percentItemType","instant","In case of public share holding percentage can not be less than one percentage."]
["NumberOfVotingRightsHeldBySameClassOfSecurities","Number of voting rights held by same class of securities","xbrli:decimalItemType","instant","Value must be equal to Fully paid up shares"]
["NumberOfVotingRightsHeldByDifferentialVotingRights","Number of voting rights held by differential voting rights","xbrli:decimalItemType","instant"]
["NumberOfVotingRights","Total Number of voting rights","xbrli:decimalItemType","instant"]
["PercentageOfTotalVotingRights","Percentage of total number of voting rights","num:percentItemType","instant","Percentage of total number of voting rights"]
["NumberOfSharesUnderlyingOutstandingConvertibleSecurities","Number of shares underlying outstanding convertible securities","xbrli:sharesItemType","instant"]
["NumberOfWarrants","Number of warrant","xbrli:sharesItemType","instant"]
["NumberOfConvertibleSecuritiesAndWarrants","Number of warrant and convertible securities","xbrli:sharesItemType","instant"]
["ShareholdingAsAPercentageAssumingFullConversionOfConvertibleSecuritiesAndWarrants","Total shareholding as a percentage assuming full conversion of convertible securities","num:percentItemType","instant","Total shareholding as a percentage assuming full conversion of convertible securities"]
["NumberOfTheLockedInShares","Number of the locked-in-shares ","xbrli:sharesItemType","instant","Value should be less than or equal to fully paid up shares"]
["LockedInSharesAsAPercentageOfTotalNumberOfShares","Locked-in-shares as a percentage of total number of shares","num:percentItemType","instant","Locked-in-shares as a percentage of total number of shares"]
["NumberOfEquitySharesHeldInDematerializedForm","Number of equity shares held in dematerialized form","xbrli:sharesItemType","instant","Value should be less than or equal to total no of shares."]
["DisclosureOfNotesOnReasonForNotProvidingPANExplanatoryTextBlock","Reason for not providing PAN","nonnum:textBlockItemType","instant","Please enter valid PAN no or if you already added PAN no then remove reason for not providing PAN.\n\n\nNote: kindly mention predefined reasons (Viz.  Sikkim resident, Foreign resident, President of India / Governor/ government holding, Shareholder is Minor and PAN not applied for, Shareholder Deceased and PAN not available, Shareholder not traceable)"]
["Unclaimed Public"]
["NumberOfShareholders","Number of shareholders","xbrli:decimalItemType","instant"]
["OutstandingSharesHeldInDematOrUnclaimedSuspenseAccount","Outstanding shares held in demat or unclaimed suspense account","xbrli:sharesItemType","instant","Please enter Outstanding shares held in demat or unclaimed suspense account which allowes only numeric value."]
["VotingRightsWhichAreFrozen","voting rights which are frozen","xbrli:decimalItemType","instant"]
["DisclosureOfNotesOnSharesWhichRemainUnclaimedForPublicShareholdersExplanatoryTextBlock","Disclosure of notes on shares which remain unclaimed for public shareholders","nonnum:textBlockItemType","instant"]
["PAC Public"]
["NameOfTheShareholder","Name of Shareholder","xbrli:stringItemType","duration"]
["NameOfThePAC","Name of the PAC","xbrli:stringItemType","duration"]
["NumberOfShares","Number of shares","xbrli:sharesItemType","instant","Please eneter Number of shares which allowes only numeric value"]
["PercentageOfShareholdingByPAC","Percentage of shareholding by PAC","num:percentItemType","instant"]
["Unclaimed Prom"]
["NumberOfShareholders","Number of shareholders","xbrli:decimalItemType","instant"]
["OutstandingSharesHeldInDematOrUnclaimedSuspenseAccount","Outstanding shares held in demat or unclaimed suspense account","xbrli:sharesItemType","instant","Please enter Outstanding shares held in demat or unclaimed suspense account which allowes only numeric value."]
["VotingRightsWhichAreFrozen","Voting rights which are frozen","xbrli:decimalItemType","instant"]
["DisclosureOfNotesOnSharesWhichRemainUnclaimedForPromoterAndPromoterGroupExplanatoryTextBlock","Disclosure of notes on shares which remain unclaimed for promoter and promoter group","nonnum:textBlockItemType","instant"]
["SBO"]
["NameOfSignificantBeneficialOwners","Name of SBO","xbrli:stringItemType","duration"]
["PANOfSignificantBeneficialOwners","PAN of SBO","in-bse-shp-types:PermanentAccountNumber","duration","[A-Z][A-Z][A-Z][A-Z][A-Z][0-9][0-9][0-9][0-9][A-Z]\n\nIn absence of PAN write : ZZZZZ9999Z"]
["PassportNoOfSignificantBeneficialOwners","Passport No. in case of a foreign national of SBO","xbrli:stringItemType","duration"]
["NationalityOfSignificantBeneficialOwners","Nationality of SBO","xbrli:stringItemType","duration"]
["DescriptionOfOtherNationalityOfSignificantBeneficialOwners","Nationality (Applicable in case of Any other is selected) of SBO","xbrli:stringItemType","duration"]
["NameOfRegisteredOwner","Name of RegisteredOwner","xbrli:stringItemType","duration"]
["PANOfRegisteredOwner","PAN of RegisteredOwner","in-bse-shp-types:PermanentAccountNumber","duration","[A-Z][A-Z][A-Z][A-Z][A-Z][0-9][0-9][0-9][0-9][A-Z]\n\nIn absence of PAN write : ZZZZZ9999Z"]
["PassportNoOfRegisteredOwner","Passport No. in case of a foreign national of RegisteredOwner","xbrli:stringItemType","duration"]
["NationalityOfRegisteredOwner","Nationality of RegisteredOwner","xbrli:stringItemType","duration"]
["DescriptionOfOtherNationalityOfRegisteredOwner","Nationality (Applicable in case of Any other is selected) of RegisteredOwner","xbrli:stringItemType","duration"]
["DetailsOfHoldingExerciseOfRightOfTheSBOInTheReportingCompanyWhetherByVirtueOfShares","Shares","num:percentItemType","instant"]
["DetailsOfHoldingExerciseOfRightOfTheSBOInTheReportingCompanyWhetherByVirtueOfVotingRights","Voting rights SBO","num:percentItemType","instant"]
["DetailsOfHoldingExerciseOfRightOfTheSBOInTheReportingCompanyWhetherByVirtueOfRightsOnDistributableDividendOrAnyOtherDistribution","Rights on distributable dividend or any other distribution","num:percentItemType","instant"]
["DetailsOfHoldingExerciseOfRightOfTheSBOInTheReportingCompanyWhetherByVirtueOfExerciseOfControl","Exercise of control","xbrli:booleanItemType","instant"]
["DetailsOfHoldingExerciseOfRightOfTheSBOInTheReportingCompanyWhetherByVirtueOfExerciseOfSignificantInfluence","Exercise of significant influence","xbrli:booleanItemType","instant"]
["DateOfCreationOrAcquisitionOfSignificantBeneficialInterest","Date of creation / acquisition of significant beneficial interest","xbrli:dateItemType","instant"]
["WhetherTheListedEntityHasAnySignificantBeneficialOwner","Whether the listed entity has any significant beneficial owner?","xbrli:booleanItemType","instant"]

{"sheet":"Shareholding Pattern","index":5,"n_rows":62,"n_cols":58,"rows_kept":62,"merged":[[8,4,10,4],[8,5,10,6],[8,7,10,7],[8,8,10,8],[8,9,10,9],[8,10,10,10],[8,11,10,11],[8,12,10,12],[8,13,8,16],[8,17,10,17],[8,18,10,18],[8,19,10,19],[8,20,10,20],[8,21,9,22],[8,23,9,24],[8,25,10,25],[9,13,9,15],[9,16,10,16],[11,5,11,24],[17,4,17,6],[24,4,24,6],[25,4,25,6],[28,5,28,25],[29,23,49,24],[38,4,38,6],[40,4,40,6],[48,4,48,6],[49,4,49,6],[52,5,52,25],[53,23,56,24],[55,4,55,6],[56,4,56,6],[57,4,57,6],[58,4,58,12],[58,13,58,14],[58,23,58,25],[59,4,59,12],[59,13,59,14],[59,23,59,25],[60,4,60,12],[60,13,60,14],[60,23,60,25],[61,4,61,12],[61,13,61,14],[61,23,61,25]]}
[]
[{"$nulls":7},"Number of shareholders","Number of fully paid up equity shares","Number of partly paid-up equity shares","Number of shares underlying outstanding depository receipts","Total number of shares","Shareholding as a percentage of total number of shares held by promoters and public shareholders and custodians or DR holders","Number of voting rights held by same class of securities","Number of voting rights held by differential voting rights","Total Number of voting rights","Percentage of total number of voting rights","Number of shares underlying outstanding convertible securities","Number of warrant","Number of warrant and convertible securities","Total shareholding as a percentage assuming full conversion of convertible securities","Number of the locked-in-shares ","Locked-in-shares as a percentage of total number of shares","Pledged or encumbered - number of shares","Pledged or encumbered shares held as percentage of total number of shares","Number of equity shares held in dematerialized form"]
[]
[]
[]
[]
[]
[]
[{"$nulls":4},"Sr.","Category & Name\nof the\nShareholders\n(I)",null,"Nos. Of shareholders\n(III)","No. of fully paid up equity shares held\n(IV)","No. Of Partly paid-up equity shares held\n(V)","No. Of shares underlying Depository Receipts\n(VI)","Total nos. shares\nheld\n(VII) = (IV)+(V)+ (VI)","Shareholding as a % of total no. of shares (calculated as per SCRR, 1957)\n(VIII)\nAs a % of (A+B+C2)","Number of Voting Rights held in each class of securities\n(IX)",{"$nulls":3},"No. Of Shares Underlying Outstanding convertible securities\n(X)","No. of Shares Underlying Outstanding Warrants (Xi)","No. Of Shares Underlying Outstanding convertible securities and No. Of Warrants\n(Xi) (a)","Shareholding , as a % assuming full conversion of convertible securities ( as a percentage of diluted share capital)\n(XI)= (VII)+(X)\nAs a % of (A+B+C2)","Number of Locked in shares\n(XII)",null,"Number of Shares pledged or otherwise encumbered\n(XIII)",null,"Number of equity shares held in dematerialized form \n(XIV)"]
[{"$nulls":13},"No of Voting (XIV)\nRights",null,null,"Total as\na % of\nTotal\nVoting\nrights"]
[{"$nulls":13},"Class\neg:\nX","Class\neg:y","Total",{"$nulls":5},"No.\n(a)","As a % of total Shares held\n(b)","No.\n(a)","As a % of total Shares held\n(b)"]
[{"$nulls":4},"A","Table II - Statement showing shareholding pattern of the Promoter and Promoter Group"]
[{"$nulls":4},"(1)","Indian"]
[{"$nulls":4},"(a)","Individuals/Hindu undivided Family",null,{"$f":"IFERROR(IF(COUNT(IndHUF!$AD$13),IF(IndHUF!$AD$13=0,\"0\",IndHUF!$AD$13),\"\"),\"\")","v":14},{"$f":"+IF(COUNT(IndHUF!H30),IndHUF!H30,\"\")","v":1849020},{"$f":"+IF(COUNT(IndHUF!I30),IndHUF!I30,\"\")","v":""},{"$f":"+IF(COUNT(IndHUF!J30),IndHUF!J30,\"\")","v":""},{"$f":"+IF(COUNT(IndHUF!K30),IndHUF!K30,\"\")","v":1849020},{"$f":"+IFERROR(IF(COUNT(L14),ROUND(L14/'Shareholding Pattern'!$L$57*100,2),\"\"),0)","v":31.17},{"$f":"+IF(COUNT(+IndHUF!M30),SUM(+IndHUF!M30),\"\")","v":{"v":1849020,"d":"1849020.00"}},{"$f":"+IF(COUNT(+IndHUF!N30),SUM(+IndHUF!N30),\"\")","v":""},{"$f":"+IF(COUNT(IndHUF!O30),IndHUF!O30,\"\")","v":1849020},{"$f":"+IF(COUNT(IndHUF!P30),IndHUF!P30,\"\")","v":31.17},{"$f":"+IF(COUNT(IndHUF!Q30),IndHUF!Q30,\"\")","v":""},{"$f":"+IF(COUNT(IndHUF!R30),IndHUF!R30,\"\")","v":""},{"$f":"+IF(COUNT(IndHUF!S30),IndHUF!S30,\"\")","v":""},{"$f":"+IFERROR(IF(COUNT(L14,T14),ROUND(SUM(L14,T14)/SUM('Shareholding Pattern'!$L$57,'Shareholding Pattern'!$T$57)*100,2),\"\"),0)","v":31.17},{"$f":"+IF(COUNT(IndHUF!U30),IndHUF!U30,\"\")","v":""},{"$f":"+IFERROR(IF(COUNT(V14),ROUND(SUM(V14)/SUM(L14)*100,2),\"\"),0)","v":""},{"$f":"+IF(COUNT(IndHUF!W30),IndHUF!W30,\"\")","v":""},{"$f":"+IFERROR(IF(COUNT(X14),ROUND(SUM(X14)/SUM(L14)*100,2),\"\"),0)","v":""},{"$f":"+IF(COUNT(IndHUF!Y30),IndHUF!Y30,\"\")","v":0},{"$nulls":17},"Individuals or Hindu undivided family [Member]",{"$nulls":5},"IndHUF",null,"IndividualsOrHUFDomain",{"$nulls":5},"DetailsSharesHeldByIndividualsOrHUFAxis"]
[{"$nulls":4},"(b)","Central  Government/ State Government(s)",null,{"$f":"IFERROR(IF(COUNT(CGAndSG!$AD$13),IF(CGAndSG!$AD$13=0,\"0\",CGAndSG!$AD$13),\"\"),\"\")","v":""},{"$f":"IFERROR(IF(COUNT(CGAndSG!H16),(CGAndSG!H16),\"\"),\"\")","v":""},{"$f":"IFERROR(IF(COUNT(CGAndSG!I16),(CGAndSG!I16),\"\"),\"\")","v":""},{"$f":"IFERROR(IF(COUNT(CGAndSG!J16),(CGAndSG!J16),\"\"),\"\")","v":""},{"$f":"IFERROR(IF(COUNT(CGAndSG!K16),(CGAndSG!K16),\"\"),\"\")","v":""},{"$f":"+IFERROR(IF(COUNT(L15),ROUND(L15/'Shareholding Pattern'!$L$57*100,2),\"\"),0)","v":""},{"$f":"IFERROR(IF(COUNT(CGAndSG!M16),(CGAndSG!M16),\"\"),\"\")","v":""},{"$f":"IFERROR(IF(COUNT(CGAndSG!N16),(CGAndSG!N16),\"\"),\"\")","v":""},{"$f":"IFERROR(IF(COUNT(CGAndSG!O16),(CGAndSG!O16),\"\"),\"\")","v":""},{"$f":"IFERROR(IF(COUNT(CGAndSG!P16),(CGAndSG!P16),\"\"),0)","v":""},{"$f":"IFERROR(IF(COUNT(CGAndSG!Q16),(CGAndSG!Q16),\"\"),\"\")","v":""},{"$f":"IFERROR(IF(COUNT(CGAndSG!R16),(CGAndSG!R16),\"\"),\"\")","v":""},{"$f":"IFERROR(IF(COUNT(CGAndSG!S16),(CGAndSG!S16),\"\"),\"\")","v":""},{"$f":"+IFERROR(IF(COUNT(L15,T15),ROUND(SUM(L15,T15)/SUM('Shareholding Pattern'!$L$57,'Shareholding Pattern'!$T$57)*100,2),\"\"),0)","v":""},{"$f":"IFERROR(IF(COUNT(CGAndSG!U16),(CGAndSG!U16),\"\"),\"\")","v":""},{"$f":"+IFERROR(IF(COUNT(V15),ROUND(SUM(V15)/SUM(L15)*100,2),\"\"),0)","v":""},{"$f":"IFERROR(IF(COUNT(CGAndSG!W16),(CGAndSG!W16),\"\"),\"\")","v":""},{"$f":"+IFERROR(IF(COUNT(X15),ROUND(SUM(X15)/SUM(L15)*100,2),\"\"),0)","v":""},{"$f":"IFERROR(IF(COUNT(CGAndSG!Y16),(CGAndSG!Y16),\"\"),\"\")","v":""},{"$nulls":17},"Central government or State government(s) [Member]",{"$nulls":5},"CGAndSG",null,"CentralGovernmentOrStateGovernmentsDomain",{"$nulls":5},"DetailsOfSharesHeldByCentralGovernmentOrStateGovernmentsAxis"]
[{"$nulls":4},"(c)","Financial  Institutions/ Banks",null,{"$f":"IFERROR(IF(COUNT(Banks!$AD$13),IF(Banks!$AD$13=0,\"0\",Banks!$AD$13),\"\"),\"\")","v":""},{"$f":"IFERROR(IF(COUNT(Banks!H16),(Banks!H16),\"\"),\"\")","v":""},{"$f":"IFERROR(IF(COUNT(Banks!I16),(Banks!I16),\"\"),\"\")","v":""},{"$f":"IFERROR(IF(COUNT(Banks!J16),(Banks!J16),\"\"),\"\")","v":""},{"$f":"IFERROR(IF(COUNT(Banks!K16),(Banks!K16),\"\"),\"\")","v":""},{"$f":"+IFERROR(IF(COUNT(L16),ROUND(L16/'Shareholding Pattern'!$L$57*100,2),\"\"),0)","v":""},{"$f":"IFERROR(IF(COUNT(Banks!M16),(Banks!M16),\"\"),\"\")","v":""},{"$f":"IFERROR(IF(COUNT(Banks!N16),(Banks!N16),\"\"),\"\")","v":""},{"$f":"IFERROR(IF(COUNT(Banks!O16),(Banks!O16),\"\"),\"\")","v":""},{"$f":"IFERROR(IF(COUNT(Banks!P16),(Banks!P16),\"\"),0)","v":""},{"$f":"IFERROR(IF(COUNT(Banks!Q16),(Banks!Q16),\"\"),\"\")","v":""},{"$f":"IFERROR(IF(COUNT(Banks!R16),(Banks!R16),\"\"),\"\")","v":""},{"$f":"IFERROR(IF(COUNT(Banks!S16),(Banks!S16),\"\"),\"\")","v":""},{"$f":"+IFERROR(IF(COUNT(L16,T16),ROUND(SUM(L16,T16)/SUM('Shareholding Pattern'!$L$57,'Shareholding Pattern'!$T$57)*100,2),\"\"),0)","v":""},{"$f":"IFERROR(IF(COUNT(Banks!U16),(Banks!U16),\"\"),\"\")","v":""},"",{"$f":"IFERROR(IF(COUNT(Banks!W16),(Banks!W16),\"\"),\"\")","v":""},"",{"$f":"IFERROR(IF(COUNT(Banks!Y16),(Banks!Y16),\"\"),\"\")","v":""},{"$nulls":17},"Indian - financial institutions or banks [Member]",{"$nulls":5},"Banks",null,"IndianFinancialInstitutionsOrBanksDomain",{"$nulls":5},"DetailsOfSharesHeldByIndianFinancialInstitutionsOrBanksAxis"]
[{"$nulls":4},"(d)","Any Other (specify)",null,{"$f":"IFERROR(IF(COUNT(OtherIND!$AG$13),IF(OtherIND!$AG$13=0,\"0\",OtherIND!$AG$13),\"\"),\"\")","v":8},{"$f":"IFERROR(IF(COUNT(OtherIND!J24),(OtherIND!J24),\"\"),\"\")","v":1896680},{"$f":"IFERROR(IF(COUNT(OtherIND!K24),(OtherIND!K24),\"\"),\"\")","v":""},{"$f":"IFERROR(IF(COUNT(OtherIND!L24),(OtherIND!L24),\"\"),\"\")","v":""},{"$f":"IFERROR(IF(COUNT(OtherIND!M24),(OtherIND!M24),\"\"),\"\")","v":1896680},{"$f":"+IFERROR(IF(COUNT(L17),ROUND(L17/'Shareholding Pattern'!$L$57*100,2),\"\"),0)","v":31.97},{"$f":"IFERROR(IF(COUNT(OtherIND!O24),(OtherIND!O24),\"\"),\"\")","v":{"v":1896680,"d":"1896680.00"}},{"$f":"IFERROR(IF(COUNT(OtherIND!P24),(OtherIND!P24),\"\"),\"\")","v":""},{"$f":"IFERROR(IF(COUNT(OtherIND!Q24),(OtherIND!Q24),\"\"),\"\")","v":1896680},{"$f":"IFERROR(IF(COUNT(OtherIND!R24),(OtherIND!R24),\"\"),0)","v":31.97},{"$f":"IFERROR(IF(COUNT(OtherIND!S24),(OtherIND!S24),\"\"),\"\")","v":""},{"$f":"IFERROR(IF(COUNT(OtherIND!T24),(OtherIND!T24),\"\"),\"\")","v":""},{"$f":"IFERROR(IF(COUNT(OtherIND!U24),(OtherIND!U24),\"\"),\"\")","v":""},{"$f":"+IFERROR(IF(COUNT(L17,T17),ROUND(SUM(L17,T17)/SUM('Shareholding Pattern'!$L$57,'Shareholding Pattern'!$T$57)*100,2),\"\"),0)","v":31.97},{"$f":"IFERROR(IF(COUNT(OtherIND!W24),(OtherIND!W24),\"\"),\"\")","v":""},"",{"$f":"IFERROR(IF(COUNT(OtherIND!Y24),(OtherIND!Y24),\"\"),\"\")","v":""},"",{"$f":"IFERROR(IF(COUNT(OtherIND!AA24),(OtherIND!AA24),\"\"),\"\")","v":0},{"$nulls":17},"Other Indian shareholders [Member]",{"$nulls":5},"OtherIND",null,"OthersIndianShareholdersDomain",{"$nulls":5},"DetailsOfSharesHeldByOthersIndianShareholdersAxis"]
[{"$nulls":4},"Sub-Total (A)(1)",null,null,{"$f":"+IFERROR(IF(COUNT(H14:H17),ROUND(SUM(H14:H17),0),\"\"),\"\")","v":22},{"$f":"+IFERROR(IF(COUNT(I14:I17),ROUND(SUM(I14:I17),0),\"\"),\"\")","v":3745700},"","",3745700,{"$f":"+IFERROR(IF(COUNT(L18),ROUND(L18/'Shareholding Pattern'!$L$57*100,2),\"\"),0)","v":63.14},{"v":3745700,"d":"3745700.00"},"",3745700,{"$f":"IFERROR(IF(COUNT(P18),ROUND(P18/$P$58*100,2),\"\"),0)","v":63.14},"","","",{"$f":"+IFERROR(IF(COUNT(L18,T18),ROUND(SUM(L18,T18)/SUM('Shareholding Pattern'!$L$57,'Shareholding Pattern'!$T$57)*100,2),\"\"),0)","v":63.14},"",{"$f":"+IFERROR(IF(COUNT(V18),ROUND(SUM(V18)/SUM(L18)*100,2),\"\"),0)","v":""},"",{"$f":"+IFERROR(IF(COUNT(X18),ROUND(SUM(X18)/SUM(L18)*100,2),\"\"),0)","v":""},0,{"$nulls":17},"Indian [Member]",{"$nulls":5},"Individuals",null,"NonResidentIndividualsOrForeignIndividualsDomain",{"$nulls":5},"DetailsOfSharesHeldByNonResidentIndividualsOrForeignIndividualsAxis"]
[{"$nulls":4},"(2)","Foreign",{"$nulls":43},"Government",null,"ForeignGovernmentDomain",{"$nulls":5},"DetailsOfSharesHeldByForeignGovernmentAxis"]
[{"$nulls":4},"(a)","Individuals (NonResident Individuals/ Foreign Individuals)",null,{"$f":"IFERROR(IF(COUNT(Individuals!$AD$13),IF(Individuals!$AD$13=0,\"0\",Individuals!$AD$13),\"\"),\"\")","v":""},{"$f":"IFERROR(IF(COUNT(Individuals!H16),(Individuals!H16),\"\"),\"\")","v":""},{"$f":"IFERROR(IF(COUNT(Individuals!I16),(Individuals!I16),\"\"),\"\")","v":""},{"$f":"IFERROR(IF(COUNT(Individuals!J16),(Individuals!J16),\"\"),\"\")","v":""},{"$f":"IFERROR(IF(COUNT(Individuals!K16),(Individuals!K16),\"\"),\"\")","v":""},{"$f":"+IFERROR(IF(COUNT(L20),ROUND(L20/'Shareholding Pattern'!$L$57*100,2),\"\"),0)","v":""},{"$f":"IFERROR(IF(COUNT(Individuals!M16),(Individuals!M16),\"\"),\"\")","v":""},{"$f":"IFERROR(IF(COUNT(Individuals!N16),(Individuals!N16),\"\"),\"\")","v":""},{"$f":"IFERROR(IF(COUNT(Individuals!O16),(Individuals!O16),\"\"),\"\")","v":""},{"$f":"IFERROR(IF(COUNT(Individuals!P16),(Individuals!P16),\"\"),0)","v":""},{"$f":"IFERROR(IF(COUNT(Individuals!Q16),(Individuals!Q16),\"\"),\"\")","v":""},{"$f":"IFERROR(IF(COUNT(Individuals!R16),(Individuals!R16),\"\"),\"\")","v":""},{"$f":"IFERROR(IF(COUNT(Individuals!S16),(Individuals!S16),\"\"),\"\")","v":""},{"$f":"+IFERROR(IF(COUNT(L20,T20),ROUND(SUM(L20,T20)/SUM('Shareholding Pattern'!$L$57,'Shareholding Pattern'!$T$57)*100,2),\"\"),0)","v":""},{"$f":"IFERROR(IF(COUNT(Individuals!U16),(Individuals!U16),\"\"),\"\")","v":""},{"$f":"+IFERROR(IF(COUNT(V20),ROUND(SUM(V20)/SUM(L20)*100,2),\"\"),0)","v":""},{"$f":"IFERROR(IF(COUNT(Individuals!W16),(Individuals!W16),\"\"),\"\")","v":""},{"$f":"+IFERROR(IF(COUNT(X20),ROUND(SUM(X20)/SUM(L20)*100,2),\"\"),0)","v":""},{"$f":"IFERROR(IF(COUNT(Individuals!Y16),(Individuals!Y16),\"\"),\"\")","v":""},{"$nulls":17},"Non-resident individuals or foreign individuals [Member]",{"$nulls":5},"Institutions",null,"ForeignInstitutionsDomain",{"$nulls":5},"DetailsOfSharesHeldByForeignInstitutionsAxis"]
[{"$nulls":4},"(b)","Government",null,{"$f":"IFERROR(IF(COUNT(Government!$AD$13),IF(Government!$AD$13=0,\"0\",Government!$AD$13),\"\"),\"\")","v":""},{"$f":"IFERROR(IF(COUNT(Government!H16),(Government!H16),\"\"),\"\")","v":""},{"$f":"IFERROR(IF(COUNT(Government!I16),(Government!I16),\"\"),\"\")","v":""},{"$f":"IFERROR(IF(COUNT(Government!J16),(Government!J16),\"\"),\"\")","v":""},{"$f":"IFERROR(IF(COUNT(Government!K16),(Government!K16),\"\"),\"\")","v":""},{"$f":"+IFERROR(IF(COUNT(L21),ROUND(L21/'Shareholding Pattern'!$L$57*100,2),\"\"),0)","v":""},{"$f":"IFERROR(IF(COUNT(Government!M16),(Government!M16),\"\"),\"\")","v":""},{"$f":"IFERROR(IF(COUNT(Government!N16),(Government!N16),\"\"),\"\")","v":""},{"$f":"IFERROR(IF(COUNT(Government!O16),(Government!O16),\"\"),\"\")","v":""},{"$f":"IFERROR(IF(COUNT(Government!P16),(Government!P16),\"\"),0)","v":""},{"$f":"IFERROR(IF(COUNT(Government!Q16),(Government!Q16),\"\"),\"\")","v":""},{"$f":"IFERROR(IF(COUNT(Government!R16),(Government!R16),\"\"),\"\")","v":""},{"$f":"IFERROR(IF(COUNT(Government!S16),(Government!S16),\"\"),\"\")","v":""},{"$f":"+IFERROR(IF(COUNT(L21,T21),ROUND(SUM(L21,T21)/SUM('Shareholding Pattern'!$L$57,'Shareholding Pattern'!$T$57)*100,2),\"\"),0)","v":""},{"$f":"IFERROR(IF(COUNT(Government!U16),(Government!U16),\"\"),\"\")","v":""},"",{"$f":"IFERROR(IF(COUNT(Government!W16),(Government!W16),\"\"),\"\")","v":""},"",{"$f":"IFERROR(IF(COUNT(Government!Y16),(Government!Y16),\"\"),\"\")","v":""},{"$nulls":17},"Foreign - Government [Member]",{"$nulls":5},"FPIPromoter",null,"ForeignPortfolioInvestorDomain",{"$nulls":5},"DetailsOfSharesHeldByForeignPortfolioInvestorAxis"]
[{"$nulls":4},"(c)","Institutions",null,{"$f":"IFERROR(IF(COUNT(Institutions!$AD$13),IF(Institutions!$AD$13=0,\"0\",Institutions!$AD$13),\"\"),\"\")","v":""},{"$f":"IFERROR(IF(COUNT(Institutions!H16),(Institutions!H16),\"\"),\"\")","v":""},{"$f":"IFERROR(IF(COUNT(Institutions!I16),(Institutions!I16),\"\"),\"\")","v":""},{"$f":"IFERROR(IF(COUNT(Institutions!J16),(Institutions!J16),\"\"),\"\")","v":""},{"$f":"IFERROR(IF(COUNT(Institutions!K16),(Institutions!K16),\"\"),\"\")","v":""},{"$f":"+IFERROR(IF(COUNT(L22),ROUND(L22/'Shareholding Pattern'!$L$57*100,2),\"\"),0)","v":""},{"$f":"IFERROR(IF(COUNT(Institutions!M16),(Institutions!M16),\"\"),\"\")","v":""},{"$f":"IFERROR(IF(COUNT(Institutions!N16),(Institutions!N16),\"\"),\"\")","v":""},{"$f":"IFERROR(IF(COUNT(Institutions!O16),(Institutions!O16),\"\"),\"\")","v":""},{"$f":"IFERROR(IF(COUNT(Institutions!P16),(Institutions!P16),\"\"),0)","v":""},{"$f":"IFERROR(IF(COUNT(Institutions!Q16),(Institutions!Q16),\"\"),\"\")","v":""},{"$f":"IFERROR(IF(COUNT(Institutions!R16),(Institutions!R16),\"\"),\"\")","v":""},{"$f":"IFERROR(IF(COUNT(Institutions!S16),(Institutions!S16),\"\"),\"\")","v":""},{"$f":"+IFERROR(IF(COUNT(L22,T22),ROUND(SUM(L22,T22)/SUM('Shareholding Pattern'!$L$57,'Shareholding Pattern'!$T$57)*100,2),\"\"),0)","v":""},{"$f":"IFERROR(IF(COUNT(Institutions!U16),(Institutions!U16),\"\"),\"\")","v":""},"",{"$f":"IFERROR(IF(COUNT(Institutions!W16),(Institutions!W16),\"\"),\"\")","v":""},"",{"$f":"IFERROR(IF(COUNT(Institutions!Y16),(Institutions!Y16),\"\"),\"\")","v":""},{"$nulls":17},"Foreign - institutions [Member]",{"$nulls":5},"OtherForeign",null,"OtherForeignShareholdersDomain",{"$nulls":5},"DetailsOfSharesHeldByOtherForeignShareholdersAxis"]
[{"$nulls":4},"(d)","Foreign Portfolio Investor",null,{"$f":"IFERROR(IF(COUNT(FPIPromoter!$AD$13),IF(FPIPromoter!$AD$13=0,\"0\",FPIPromoter!$AD$13),\"\"),\"\")","v":""},{"$f":"IFERROR(IF(COUNT(FPIPromoter!H16),(FPIPromoter!H16),\"\"),\"\")","v":""},{"$f":"IFERROR(IF(COUNT(FPIPromoter!I16),(FPIPromoter!I16),\"\"),\"\")","v":""},{"$f":"IFERROR(IF(COUNT(FPIPromoter!J16),(FPIPromoter!J16),\"\"),\"\")","v":""},{"$f":"IFERROR(IF(COUNT(FPIPromoter!K16),(FPIPromoter!K16),\"\"),\"\")","v":""},{"$f":"+IFERROR(IF(COUNT(L23),ROUND(L23/'Shareholding Pattern'!$L$57*100,2),\"\"),0)","v":""},{"$f":"IFERROR(IF(COUNT(FPIPromoter!M16),(FPIPromoter!M16),\"\"),\"\")","v":""},{"$f":"IFERROR(IF(COUNT(FPIPromoter!N16),(FPIPromoter!N16),\"\"),\"\")","v":""},{"$f":"IFERROR(IF(COUNT(FPIPromoter!O16),(FPIPromoter!O16),\"\"),\"\")","v":""},{"$f":"IFERROR(IF(COUNT(FPIPromoter!P16),(FPIPromoter!P16),\"\"),0)","v":""},{"$f":"IFERROR(IF(COUNT(FPIPromoter!Q16),(FPIPromoter!Q16),\"\"),\"\")","v":""},{"$f":"IFERROR(IF(COUNT(FPIPromoter!R16),(FPIPromoter!R16),\"\"),\"\")","v":""},{"$f":"IFERROR(IF(COUNT(FPIPromoter!S16),(FPIPromoter!S16),\"\"),\"\")","v":""},{"$f":"+IFERROR(IF(COUNT(L23,T23),ROUND(SUM(L23,T23)/SUM('Shareholding Pattern'!$L$57,'Shareholding Pattern'!$T$57)*100,2),\"\"),0)","v":""},{"$f":"IFERROR(IF(COUNT(FPIPromoter!U16),(FPIPromoter!U16),\"\"),\"\")","v":""},"",{"$f":"IFERROR(IF(COUNT(FPIPromoter!W16),(FPIPromoter!W16),\"\"),\"\")","v":""},"",{"$f":"IFERROR(IF(COUNT(FPIPromoter!Y16),(FPIPromoter!Y16),\"\"),\"\")","v":""},{"$nulls":17},"Foreign portfolio investor [Member]",{"$nulls":5},"MutuaFund",null,"MutualFundsOrUtiDomain",{"$nulls":5},"DetailsOfSharesHeldByMutualFundsOrUtiAxis"]
[{"$nulls":4},"(e)","Any Other (specify)",null,{"$f":"IFERROR(IF(COUNT(OtherForeign!$AG$13),IF(OtherForeign!$AG$13=0,\"0\",OtherForeign!$AG$13),\"\"),\"\")","v":""},{"$f":"IFERROR(IF(COUNT(OtherForeign!J16),(OtherForeign!J16),\"\"),\"\")","v":""},{"$f":"IFERROR(IF(COUNT(OtherForeign!K16),(OtherForeign!K16),\"\"),\"\")","v":""},{"$f":"IFERROR(IF(COUNT(OtherForeign!L16),(OtherForeign!L16),\"\"),\"\")","v":""},{"$f":"IFERROR(IF(COUNT(OtherForeign!M16),(OtherForeign!M16),\"\"),\"\")","v":""},{"$f":"+IFERROR(IF(COUNT(L24),ROUND(L24/'Shareholding Pattern'!$L$57*100,2),\"\"),0)","v":""},{"$f":"IFERROR(IF(COUNT(OtherForeign!O16),(OtherForeign!O16),\"\"),\"\")","v":""},{"$f":"IFERROR(IF(COUNT(OtherForeign!P16),(OtherForeign!P16),\"\"),\"\")","v":""},{"$f":"IFERROR(IF(COUNT(OtherForeign!Q16),(OtherForeign!Q16),\"\"),\"\")","v":""},{"$f":"IFERROR(IF(COUNT(OtherForeign!R16),(OtherForeign!R16),\"\"),0)","v":""},{"$f":"IFERROR(IF(COUNT(OtherForeign!S16),(OtherForeign!S16),\"\"),\"\")","v":""},{"$f":"IFERROR(IF(COUNT(OtherForeign!T16),(OtherForeign!T16),\"\"),\"\")","v":""},{"$f":"IFERROR(IF(COUNT(OtherForeign!U16),(OtherForeign!U16),\"\"),\"\")","v":""},{"$f":"+IFERROR(IF(COUNT(L24,T24),ROUND(SUM(L24,T24)/SUM('Shareholding Pattern'!$L$57,'Shareholding Pattern'!$T$57)*100,2),\"\"),0)","v":""},{"$f":"IFERROR(IF(COUNT(OtherForeign!W16),(OtherForeign!W16),\"\"),\"\")","v":""},"",{"$f":"IFERROR(IF(COUNT(OtherForeign!Y16),(OtherForeign!Y16),\"\"),\"\")","v":""},"",{"$f":"IFERROR(IF(COUNT(OtherForeign!AA16),(OtherForeign!AA16),\"\"),\"\")","v":""},{"$nulls":17},"Other foreign shareholders [Member]",{"$nulls":5},"VentureCap",null,"VentureCapitalFundsDomain",{"$nulls":5},"DetailsOfSharesHeldByVentureCapitalFundsAxis"]
[{"$nulls":4},"Sub-Total (A)(2)",null,null,{"$f":"+IFERROR(IF(COUNT(H20:H24),ROUND(SUM(H20:H24),0),\"\"),\"\")","v":""},{"$f":"+IFERROR(IF(COUNT(I20:I24),ROUND(SUM(I20:I24),0),\"\"),\"\")","v":""},"","","",{"$f":"+IFERROR(IF(COUNT(L25),ROUND(L25/'Shareholding Pattern'!$L$57*100,2),\"\"),0)","v":""},"","","",{"$f":"IFERROR(IF(COUNT(P25),ROUND(P25/$P$58*100,2),\"\"),0)","v":""},"","","",{"$f":"+IFERROR(IF(COUNT(L25,T25),ROUND(SUM(L25,T25)/SUM('Shareholding Pattern'!$L$57,'Shareholding Pattern'!$T$57)*100,2),\"\"),0)","v":""},"","","","","",{"$nulls":17},"Foreign [Member]",{"$nulls":5},"AIF",null,"AlternativeInvestmentFundsDomain",{"$nulls":5},"DetailsOfSharesHeldByAlternativeInvestmentFundsAxis"]
[{"$nulls":4},"Total Shareholding of Promoter and Promoter Group (A)=(A)(1)+(A)(2) ",null,null,{"$f":"+IFERROR(IF(COUNT(H18,H25),ROUND(SUM(H18,H25),0),\"\"),\"\")","v":22},3745700,"","",3745700,{"$f":"+IFERROR(IF(COUNT(L26),ROUND(L26/'Shareholding Pattern'!$L$57*100,2),\"\"),0)","v":63.14},{"v":3745700,"d":"3745700.00"},"",3745700,{"$f":"IFERROR(IF(COUNT(P26),ROUND(P26/$P$58*100,2),\"\"),0)","v":63.14},"","","",{"$f":"+IFERROR(IF(COUNT(L26,T26),ROUND(SUM(L26,T26)/SUM('Shareholding Pattern'!$L$57,'Shareholding Pattern'!$T$57)*100,2),\"\"),0)","v":63.14},"",{"$f":"+IFERROR(IF(COUNT(V26),ROUND(SUM(V26)/SUM(L26)*100,2),\"\"),0)","v":""},"","",0,{"$nulls":17},"Shareholding of promoter and promoter group [Member]",{"$nulls":5},"FVC",null,"ForeignVentureCapitalInvestorsDomain",{"$nulls":5},"DetailsOfSharesHeldByForeignVentureCapitalInvestorsAxis"]
[{"$nulls":5},"Details of Shares which remain unclaimed for Promoter & Promoter Group",{"$nulls":43},"FPI_Insti",null,"InstitutionsForeignPortfolioInvestorDomain",{"$nulls":5},"DetailsOfSharesHeldByInstitutionsForeignPortfolioInvestorAxis"]
[{"$nulls":4},"B","Table III - Statement showing shareholding pattern of the Public shareholder",null,"Note : Kindly show details of shareholders having more than one percentage of total no of shares. Please refer software manual. ",{"$nulls":41},"Bank_Insti",null,"FinancialInstitutionOrBanksDomain",{"$nulls":5},"DetailsOfSharesHeldByFinancialInstitutionOrBanksAxis"]
[{"$nulls":4},"(1)","Institutions",{"$nulls":43},"Insurance",null,"InsuranceCompaniesDomain",{"$nulls":5},"DetailsOfSharesHeldByInsuranceCompaniesAxis"]
[{"$nulls":4},"(a)","Mutual Funds",{"$nulls":5},{"$f":"+IFERROR(IF(COUNT(I30:K30),ROUND(SUM(I30:K30),0),\"\"),\"\")","v":""},{"$f":"+IFERROR(IF(COUNT(L30),ROUND(L30/'Shareholding Pattern'!$L$57*100,2),\"\"),\"\")","v":""},{"$f":"IF(I30=\"\",\"\",I30)","v":""},null,{"$f":"+IFERROR(IF(COUNT(N30:O30),ROUND(SUM(N30:O30),0),\"\"),\"\")","v":""},{"$f":"+IFERROR(IF(COUNT(P30),ROUND(P30/'Shareholding Pattern'!$P$58*100,2),\"\"),\"\")","v":""},null,null,{"$f":"+IFERROR(IF(COUNT(R30:S30),ROUND(SUM(R30:S30),0),\"\"),\"\")","v":""},{"$f":"+IFERROR(IF(COUNT(L30,T30),ROUND(SUM(L30,T30)/SUM('Shareholding Pattern'!$L$57,'Shareholding Pattern'!$T$57)*100,2),\"\"),\"\")","v":""},null,{"$f":"+IFERROR(IF(COUNT(V30),ROUND(SUM(V30)/SUM(L30)*100,2),\"\"),0)","v":""},{"$nulls":20},"Mutual funds or UTI [Member]",{"$nulls":5},"Pension",null,"ProvidentFundsOrPensionFundsDomain",{"$nulls":5},"DetailsOfSharesHeldByProvidentFundsOrPensionFundsAxis"]
[{"$nulls":4},"(b)","Venture Capital Funds",{"$nulls":5},{"$f":"+IFERROR(IF(COUNT(I31:K31),ROUND(SUM(I31:K31),0),\"\"),\"\")","v":""},{"$f":"+IFERROR(IF(COUNT(L31),ROUND(L31/'Shareholding Pattern'!$L$57*100,2),\"\"),\"\")","v":""},{"$f":"IF(I31=\"\",\"\",I31)","v":""},null,{"$f":"+IFERROR(IF(COUNT(N31:O31),ROUND(SUM(N31:O31),0),\"\"),\"\")","v":""},{"$f":"+IFERROR(IF(COUNT(P31),ROUND(P31/'Shareholding Pattern'!$P$58*100,2),\"\"),\"\")","v":""},null,null,{"$f":"+IFERROR(IF(COUNT(R31:S31),ROUND(SUM(R31:S31),0),\"\"),\"\")","v":""},{"$f":"+IFERROR(IF(COUNT(L31,T31),ROUND(SUM(L31,T31)/SUM('Shareholding Pattern'!$L$57,'Shareholding Pattern'!$T$57)*100,2),\"\"),\"\")","v":""},null,"",{"$nulls":20},"Venture capital funds [Member]",{"$nulls":5},"Other_Insti",null,"OtherInstitutionsDomain",{"$nulls":5},"DetailsOfSharesHeldByOtherInstitutionsAxis"]
[{"$nulls":4},"(c)","Alternate Investment Funds",{"$nulls":5},"",{"$f":"+IFERROR(IF(COUNT(L32),ROUND(L32/'Shareholding Pattern'!$L$57*100,2),\"\"),\"\")","v":""},{"$f":"IF(I32=\"\",\"\",I32)","v":""},null,"",{"$f":"+IFERROR(IF(COUNT(P32),ROUND(P32/'Shareholding Pattern'!$P$58*100,2),\"\"),\"\")","v":""},null,null,"",{"$f":"+IFERROR(IF(COUNT(L32,T32),ROUND(SUM(L32,T32)/SUM('Shareholding Pattern'!$L$57,'Shareholding Pattern'!$T$57)*100,2),\"\"),\"\")","v":""},null,"",{"$nulls":20},"Alternative investment funds [Member]",{"$nulls":5},"CG&SG&PI",null,"CentralGovernmentOrStateGovernmentSOrPresidentOfIndiaDomain",{"$nulls":5},"DetailsOfSharesHeldByCentralGovernmentOrStateGovernmentSOrPresidentOfIndiaAxis"]
[{"$nulls":4},"(d)","Foreign Venture Capital Investors",{"$nulls":5},"",{"$f":"+IFERROR(IF(COUNT(L33),ROUND(L33/'Shareholding Pattern'!$L$57*100,2),\"\"),\"\")","v":""},"",null,"",{"$f":"+IFERROR(IF(COUNT(P33),ROUND(P33/'Shareholding Pattern'!$P$58*100,2),\"\"),\"\")","v":""},null,null,"",{"$f":"+IFERROR(IF(COUNT(L33,T33),ROUND(SUM(L33,T33)/SUM('Shareholding Pattern'!$L$57,'Shareholding Pattern'!$T$57)*100,2),\"\"),\"\")","v":""},null,"",{"$nulls":20},"Foreign venture capital investors [Member]",{"$nulls":5},"Indivisual(aI)",null,"IndividualShareholdersHoldingNominalShareCapitalUpToRsTwoLakhDomain",{"$nulls":5},"DetailsOfSharesHeldByIndividualShareholdersHoldingNominalShareCapitalUpToRsTwoLakhAxis"]
[{"$nulls":4},"(e)","Foreign Portfolio Investors",{"$nulls":5},"",{"$f":"+IFERROR(IF(COUNT(L34),ROUND(L34/'Shareholding Pattern'!$L$57*100,2),\"\"),\"\")","v":""},"",null,"",{"$f":"+IFERROR(IF(COUNT(P34),ROUND(P34/'Shareholding Pattern'!$P$58*100,2),\"\"),\"\")","v":""},null,null,{"$f":"+IFERROR(IF(COUNT(R34,S34),ROUND(SUM(R34,S34),0),\"\"),\"\")","v":""},{"$f":"+IFERROR(IF(COUNT(L34,T34),ROUND(SUM(L34,T34)/SUM('Shareholding Pattern'!$L$57,'Shareholding Pattern'!$T$57)*100,2),\"\"),\"\")","v":""},null,"",{"$nulls":20},"Institutions - Foreign portfolio investor [Member]",{"$nulls":5},"Indivisual(aII)",null,"IndividualShareholdersHoldingNominalShareCapitalInExcessOfRsTwoLakhDomain",{"$nulls":5},"DetailsOfSharesHeldByIndividualShareholdersHoldingNominalShareCapitalInExcessOfRsTwoLakhAxis"]
[{"$nulls":4},"(f)","Financial  Institutions/ Banks",{"$nulls":5},"",{"$f":"+IFERROR(IF(COUNT(L35),ROUND(L35/'Shareholding Pattern'!$L$57*100,2),\"\"),\"\")","v":""},"",null,"",{"$f":"+IFERROR(IF(COUNT(P35),ROUND(P35/'Shareholding Pattern'!$P$58*100,2),\"\"),\"\")","v":""},null,null,"",{"$f":"+IFERROR(IF(COUNT(L35,T35),ROUND(SUM(L35,T35)/SUM('Shareholding Pattern'!$L$57,'Shareholding Pattern'!$T$57)*100,2),\"\"),\"\")","v":""},null,"",{"$nulls":20},"Financial Institution or Banks [Member]",{"$nulls":5},"NBFC",null,"NBFCsRegisteredWithRbiDomain",{"$nulls":5},"DetailsOfSharesHeldByNBFCsRegisteredWithRbiAxis"]
[{"$nulls":4},"(g)","Insurance  Companies",{"$nulls":5},"",{"$f":"+IFERROR(IF(COUNT(L36),ROUND(L36/'Shareholding Pattern'!$L$57*100,2),\"\"),\"\")","v":""},"",null,"",{"$f":"+IFERROR(IF(COUNT(P36),ROUND(P36/'Shareholding Pattern'!$P$58*100,2),\"\"),\"\")","v":""},null,null,"",{"$f":"+IFERROR(IF(COUNT(L36,T36),ROUND(SUM(L36,T36)/SUM('Shareholding Pattern'!$L$57,'Shareholding Pattern'!$T$57)*100,2),\"\"),\"\")","v":""},null,"",{"$nulls":20},"Insurance Companies [Member]",{"$nulls":5},"EmpTrust",null,"EmployeeTrustsDomain",{"$nulls":5},"DetailsOfSharesHeldByEmployeeTrustsAxis"]
[{"$nulls":4},"(h)","Provident Funds/ Pension Funds",{"$nulls":5},"",{"$f":"+IFERROR(IF(COUNT(L37),ROUND(L37/'Shareholding Pattern'!$L$57*100,2),\"\"),\"\")","v":""},"",null,"",{"$f":"+IFERROR(IF(COUNT(P37),ROUND(P37/'Shareholding Pattern'!$P$58*100,2),\"\"),\"\")","v":""},null,null,"",{"$f":"+IFERROR(IF(COUNT(L37,T37),ROUND(SUM(L37,T37)/SUM('Shareholding Pattern'!$L$57,'Shareholding Pattern'!$T$57)*100,2),\"\"),\"\")","v":""},null,"",{"$nulls":20},"Provident Funds or pension funds [Member]",{"$nulls":5},"OD",null,"OverseasDepositoriesDomain",{"$nulls":5},"DetailsOfSharesHeldByOverseasDepositoriesAxis"]
[{"$nulls":4},"(i)","Any Other (specify)",{"$nulls":5},"",{"$f":"+IFERROR(IF(COUNT(L38),ROUND(L38/'Shareholding Pattern'!$L$57*100,2),\"\"),\"\")","v":""},"",null,"",{"$f":"+IFERROR(IF(COUNT(P38),ROUND(P38/'Shareholding Pattern'!$P$58*100,2),\"\"),\"\")","v":""},null,null,"",{"$f":"+IFERROR(IF(COUNT(L38,T38),ROUND(SUM(L38,T38)/SUM('Shareholding Pattern'!$L$57,'Shareholding Pattern'!$T$57)*100,2),\"\"),\"\")","v":""},null,"",{"$nulls":20},"Other institutions [Member]",{"$nulls":5},"Other_NonInsti",null,"OtherNonInstitutionsDomain",{"$nulls":5},"DetailsOfSharesHeldByOtherNonInstitutionsAxis"]
[{"$nulls":4},"Sub-Total (B)(1)",null,null,{"$f":"+IFERROR(IF(COUNT(H30:H38),ROUND(SUM(H30:H38),0),\"\"),\"\")","v":""},"","","","",{"$f":"+IFERROR(IF(COUNT(L39),ROUND(L39/'Shareholding Pattern'!$L$57*100,2),\"\"),\"\")","v":""},"","","",{"$f":"+IFERROR(IF(COUNT(P39),ROUND(P39/'Shareholding Pattern'!$P$58*100,2),\"\"),\"\")","v":""},"","","",{"$f":"+IFERROR(IF(COUNT(L39,T39),ROUND(SUM(L39,T39)/SUM('Shareholding Pattern'!$L$57,'Shareholding Pattern'!$T$57)*100,2),\"\"),\"\")","v":""},"","",null,null,"",{"$nulls":17},"Institutions [Member]",{"$nulls":5},"DRHolder",null,"CustodianOrDRHolderDomain",{"$nulls":5},"DetailsOfSharesHeldByCustodianOrDRHolderAxis"]
[{"$nulls":4},"( 2 )","Central  Government/  State  Government(s)/ President of India",{"$nulls":5},{"$f":"+IFERROR(IF(COUNT(I40:K40),ROUND(SUM(I40:K40),0),\"\"),\"\")","v":""},{"$f":"+IFERROR(IF(COUNT(L40),ROUND(L40/'Shareholding Pattern'!$L$57*100,2),\"\"),\"\")","v":""},{"$f":"IF(I40=\"\",\"\",I40)","v":""},null,{"$f":"+IFERROR(IF(COUNT(N40:O40),ROUND(SUM(N40:O40),0),\"\"),\"\")","v":""},{"$f":"+IFERROR(IF(COUNT(P40),ROUND(P40/'Shareholding Pattern'!$P$58*100,2),\"\"),\"\")","v":""},null,null,{"$f":"+IFERROR(IF(COUNT(R40:S40),ROUND(SUM(R40:S40),0),\"\"),\"\")","v":""},{"$f":"+IFERROR(IF(COUNT(L40,T40),ROUND(SUM(L40,T40)/SUM('Shareholding Pattern'!$L$57,'Shareholding Pattern'!$T$57)*100,2),\"\"),\"\")","v":""},null,"",{"$nulls":20},"Central Government or State Government(s) or President of India [Member]",{"$nulls":5},"EBT",null,"EmployeeBenefitsTrustsDomain",{"$nulls":5},"DetailsOfSharesHeldByEmployeeBenefitsTrustsAxis"]
[{"$nulls":4},"Sub-Total (B)(2)",null,null,{"$f":"+IF(COUNT(H40),SUM(H40),\"\")","v":""},{"$f":"+IF(COUNT(I40),SUM(I40),\"\")","v":""},"","","",{"$f":"+IFERROR(IF(COUNT(L41),ROUND(L41/'Shareholding Pattern'!$L$57*100,2),\"\"),\"\")","v":""},"","","",{"$f":"+IFERROR(IF(COUNT(P41),ROUND(P41/'Shareholding Pattern'!$P$58*100,2),\"\"),\"\")","v":""},"","","",{"$f":"+IFERROR(IF(COUNT(L41,T41),ROUND(SUM(L41,T41)/SUM('Shareholding Pattern'!$L$57,'Shareholding Pattern'!$T$57)*100,2),\"\"),\"\")","v":""},"","",null,null,{"$f":"+IF(COUNT(Z40),SUM(Z40),\"\")","v":""},{"$nulls":17},"Goverments [Member]"]
[{"$nulls":4},"( 3 )","Non-institutions"]
[{"$nulls":4},"(a(i))","Individuals -  \ni.Individual shareholders holding nominal share capital up to Rs. 2 lakhs. ",null,1538,1654400,null,null,{"$f":"+IFERROR(IF(COUNT(I43:K43),ROUND(SUM(I43:K43),0),\"\"),\"\")","v":1654400},{"$f":"+IFERROR(IF(COUNT(L43),ROUND(L43/'Shareholding Pattern'!$L$57*100,2),\"\"),\"\")","v":27.89},1654400,null,{"$f":"+IFERROR(IF(COUNT(N43:O43),ROUND(SUM(N43:O43),0),\"\"),\"\")","v":1654400},{"$f":"+IFERROR(IF(COUNT(P43),ROUND(P43/'Shareholding Pattern'!$P$58*100,2),\"\"),\"\")","v":27.89},null,null,{"$f":"+IFERROR(IF(COUNT(R43:S43),ROUND(SUM(R43:S43),0),\"\"),\"\")","v":""},{"$f":"+IFERROR(IF(COUNT(L43,T43),ROUND(SUM(L43,T43)/SUM('Shareholding Pattern'!$L$57,'Shareholding Pattern'!$T$57)*100,2),\"\"),\"\")","v":27.89},null,{"$f":"+IFERROR(IF(COUNT(V43),ROUND(SUM(V43)/SUM(L43)*100,2),\"\"),0)","v":""},null,null,1654400,{"$nulls":17},"Individual shareholders holding nominal share capital up to Rs two lakh [Member]"]
[{"$nulls":4},"(a(ii))","Individuals -  \nii. Individual shareholders holding nominal share capital in excess of Rs. 2 lakhs.",null,10,532500,null,null,{"$f":"+IFERROR(IF(COUNT(I44:K44),ROUND(SUM(I44:K44),0),\"\"),\"\")","v":532500},{"$f":"+IFERROR(IF(COUNT(L44),ROUND(L44/'Shareholding Pattern'!$L$57*100,2),\"\"),\"\")","v":8.98},532500,null,{"$f":"+IFERROR(IF(COUNT(N44:O44),ROUND(SUM(N44:O44),0),\"\"),\"\")","v":532500},{"$f":"+IFERROR(IF(COUNT(P44),ROUND(P44/'Shareholding Pattern'!$P$58*100,2),\"\"),\"\")","v":8.98},null,null,{"$f":"+IFERROR(IF(COUNT(R44:S44),ROUND(SUM(R44:S44),0),\"\"),\"\")","v":""},{"$f":"+IFERROR(IF(COUNT(L44,T44),ROUND(SUM(L44,T44)/SUM('Shareholding Pattern'!$L$57,'Shareholding Pattern'!$T$57)*100,2),\"\"),\"\")","v":8.98},null,"",null,null,532500,{"$nulls":17},"Individual shareholders holding nominal share capital in excess of Rs two lakh [Member]"]
[{"$nulls":4},"(b)","NBFCs registered with RBI",{"$nulls":5},"",{"$f":"+IFERROR(IF(COUNT(L45),ROUND(L45/'Shareholding Pattern'!$L$57*100,2),\"\"),\"\")","v":""},null,null,"",{"$f":"+IFERROR(IF(COUNT(P45),ROUND(P45/'Shareholding Pattern'!$P$58*100,2),\"\"),\"\")","v":""},null,null,"",{"$f":"+IFERROR(IF(COUNT(L45,T45),ROUND(SUM(L45,T45)/SUM('Shareholding Pattern'!$L$57,'Shareholding Pattern'!$T$57)*100,2),\"\"),\"\")","v":""},null,"",{"$nulls":20},"NBFCs registered with RBI [Member]"]
[{"$nulls":4},"(c)","Employee Trusts",{"$nulls":5},"",{"$f":"+IFERROR(IF(COUNT(L46),ROUND(L46/'Shareholding Pattern'!$L$57*100,2),\"\"),\"\")","v":""},null,null,"",{"$f":"+IFERROR(IF(COUNT(P46),ROUND(P46/'Shareholding Pattern'!$P$58*100,2),\"\"),\"\")","v":""},null,null,"",{"$f":"+IFERROR(IF(COUNT(L46,T46),ROUND(SUM(L46,T46)/SUM('Shareholding Pattern'!$L$57,'Shareholding Pattern'!$T$57)*100,2),\"\"),\"\")","v":""},null,"",{"$nulls":20},"Employee Trusts [Member]"]
[{"$nulls":4},"(d)","Overseas Depositories (holding DRs) (balancing figure)",{"$nulls":5},"",{"$f":"+IFERROR(IF(COUNT(L47),ROUND(L47/'Shareholding Pattern'!$L$57*100,2),\"\"),\"\")","v":""},null,null,"",{"$f":"+IFERROR(IF(COUNT(P47),ROUND(P47/'Shareholding Pattern'!$P$58*100,2),\"\"),\"\")","v":""},null,null,"",{"$f":"+IFERROR(IF(COUNT(L47,T47),ROUND(SUM(L47,T47)/SUM('Shareholding Pattern'!$L$57,'Shareholding Pattern'!$T$57)*100,2),\"\"),\"\")","v":""},null,"",{"$nulls":20},"Overseas Depositories [Member]"]
[{"$nulls":4},"(e)","Any Other (specify)",{"$nulls":5},"",{"$f":"+IFERROR(IF(COUNT(L48),ROUND(L48/'Shareholding Pattern'!$L$57*100,2),\"\"),\"\")","v":""},null,null,"",{"$f":"+IFERROR(IF(COUNT(P48),ROUND(P48/'Shareholding Pattern'!$P$58*100,2),\"\"),\"\")","v":""},null,null,"",{"$f":"+IFERROR(IF(COUNT(L48,T48),ROUND(SUM(L48,T48)/SUM('Shareholding Pattern'!$L$57,'Shareholding Pattern'!$T$57)*100,2),\"\"),\"\")","v":""},null,"",{"$nulls":20},"Other non-institutions [Member]"]
[{"$nulls":4},"Sub-Total (B)(3)",null,null,{"$f":"+IFERROR(IF(COUNT(H43:H48),ROUND(SUM(H43:H48),0),\"\"),\"\")","v":1548},{"$f":"+IFERROR(IF(COUNT(I43:I48),ROUND(SUM(I43:I48),0),\"\"),\"\")","v":2186900},"","",2186900,{"$f":"+IFERROR(IF(COUNT(L49),ROUND(L49/'Shareholding Pattern'!$L$57*100,2),\"\"),\"\")","v":36.86},{"v":2186900,"d":"2186900.00"},"",{"$f":"+IFERROR(IF(COUNT(N49:O49),ROUND(SUM(N49:O49),0),\"\"),\"\")","v":2186900},{"$f":"+IFERROR(IF(COUNT(P49),ROUND(P49/'Shareholding Pattern'!$P$58*100,2),\"\"),\"\")","v":36.86},{"$f":"+IFERROR(IF(COUNT(R43:R48),ROUND(SUM(R43:R48),0),\"\"),\"\")","v":""},"",{"$f":"+IFERROR(IF(COUNT(R49:S49),ROUND(SUM(R49:S49),0),\"\"),\"\")","v":""},{"$f":"+IFERROR(IF(COUNT(L49,T49),ROUND(SUM(L49,T49)/SUM('Shareholding Pattern'!$L$57,'Shareholding Pattern'!$T$57)*100,2),\"\"),\"\")","v":36.86},"","",null,null,{"$f":"+IFERROR(IF(COUNT(Z43:Z48),ROUND(SUM(Z43:Z48),0),\"\"),\"\")","v":2186900},{"$nulls":17},"Non-institutions [Member]"]
[{"$nulls":4},"Total Public Shareholding (B)=(B)(1)+(B)(2)+(B)(3)",null,null,{"$f":"+IFERROR(IF(COUNT(H39,H41,H49),ROUND(SUM(H39,H41,H49),0),\"\"),\"\")","v":1548},{"$f":"+IFERROR(IF(COUNT(I39,I41,I49),ROUND(SUM(I39,I41,I49),0),\"\"),\"\")","v":2186900},"","",2186900,{"$f":"+IFERROR(IF(COUNT(L50),ROUND(L50/'Shareholding Pattern'!$L$57*100,2),\"\"),\"\")","v":36.86},{"v":2186900,"d":"2186900.00"},"",2186900,{"$f":"+IFERROR(IF(COUNT(P50),ROUND(P50/'Shareholding Pattern'!$P$58*100,2),\"\"),\"\")","v":36.86},{"$f":"+IFERROR(IF(COUNT(R39,R40,R49),ROUND(SUM(R39,R40,R49),0),\"\"),\"\")","v":""},{"$f":"+IFERROR(IF(COUNT(S39,S40,S49),ROUND(SUM(S39,S40,S49),0),\"\"),\"\")","v":""},"",{"$f":"+IFERROR(IF(COUNT(L50,T50),ROUND(SUM(L50,T50)/SUM('Shareholding Pattern'!$L$57,'Shareholding Pattern'!$T$57)*100,2),\"\"),\"\")","v":36.86},"","",null,null,{"$f":"+IFERROR(IF(COUNT(Z39,Z41,Z49),ROUND(SUM(Z39,Z41,Z49),0),\"\"),\"\")","v":2186900},{"$nulls":17},"Public shareholding [Member]"]
[{"$nulls":5},"Details of the shareholders acting as persons in Concert for Public"]
[{"$nulls":5},"Details of Shares which remain unclaimed for Public"]
[{"$nulls":4},"C","Table IV - Statement showing shareholding pattern of the Non Promoter- Non Public shareholder"]
[{"$nulls":4},"( 1 )","Custodian/DR  Holder - Name of DR Holders  (If Available)",{"$nulls":5},{"$f":"+IFERROR(IF(COUNT(I54:K54),ROUND(SUM(I54:K54),2),\"\"),\"\")","v":""},{"$nulls":3},{"$f":"+IFERROR(IF(COUNT(N54:O54),ROUND(SUM(N54:O54),2),\"\"),\"\")","v":""},{"$f":"+IFERROR(IF(COUNT(P54),ROUND(P54/'Shareholding Pattern'!$P$58*100,2),\"\"),\"\")","v":""},null,null,{"$f":"+IFERROR(IF(COUNT(R54:S54),ROUND(SUM(R54:S54),2),\"\"),\"\")","v":""},null,null,{"$f":"+IFERROR(IF(COUNT(V54),ROUND(SUM(V54)/SUM(L54)*100,2),\"\"),0)","v":""},{"$nulls":20},"Custodian or DR holder [Member]"]
[{"$nulls":4},"( 2 )","Employee Benefit Trust (under SEBI (Share based Employee Benefit) Regulations, 2014)",{"$nulls":5},{"$f":"+IFERROR(IF(COUNT(I55:K55),ROUND(SUM(I55:K55),2),\"\"),\"\")","v":""},{"$f":"+IFERROR(IF(COUNT(L55),ROUND(L55/'Shareholding Pattern'!$L$57*100,2),\"\"),\"\")","v":""},null,null,{"$f":"+IFERROR(IF(COUNT(N55:O55),ROUND(SUM(N55:O55),2),\"\"),\"\")","v":""},{"$f":"+IFERROR(IF(COUNT(P55),ROUND(P55/'Shareholding Pattern'!$P$58*100,2),\"\"),\"\")","v":""},null,null,{"$f":"+IFERROR(IF(COUNT(R55:S55),ROUND(SUM(R55:S55),2),\"\"),\"\")","v":""},{"$f":"+IFERROR(IF(COUNT(L55,T55),ROUND(SUM(L55,T55)/SUM('Shareholding Pattern'!$L$57,'Shareholding Pattern'!$T$57)*100,2),\"\"),\"\")","v":""},null,"",{"$nulls":20},"Employee benefits trusts [Member]"]
[{"$nulls":4},"Total NonPromoter- Non Public  Shareholding \n(C)= (C)(1)+(C)(2)",null,null,{"$f":"IFERROR(IF(COUNT(H54:H55),ROUND(SUM(H54:H55),0),\"\"),\"\")","v":""},{"$f":"IFERROR(IF(COUNT(I54:I55),ROUND(SUM(I54:I55),0),\"\"),\"\")","v":""},"","","",null,"","","",{"$f":"+IFERROR(IF(COUNT(P56),ROUND(P56/'Shareholding Pattern'!$P$58*100,2),\"\"),\"\")","v":""},"","","",null,"","",null,null,"",{"$nulls":17},"Shares held by non-promoter non-public shareholders [Member]"]
[{"$nulls":4},"Total ( A+B+C2 )",null,null,{"$f":"+IFERROR(IF(COUNT(H26,H50,H55),ROUND(SUM(H26,H50,H55),0),\"\"),\"\")","v":1570},5932600,"","",5932600,{"$f":"+IFERROR(IF(COUNT(L57),ROUND(L57/'Shareholding Pattern'!$L$57*100,2),\"\"),0)","v":{"v":100,"d":"100.00"}},{"v":5932600,"d":"5932600.00"},"",5932600,{"$f":"+IFERROR(IF(COUNT(P57),ROUND(P57/'Shareholding Pattern'!$P$58*100,2),\"\"),0)","v":{"v":100,"d":"100.00"}},"","","",{"$f":"+IFERROR(IF(COUNT(L57,T57),ROUND(SUM(L57,T57)/SUM('Shareholding Pattern'!$L$57,'Shareholding Pattern'!$T$57)*100,2),\"\"),0)","v":{"v":100,"d":"100.00"}},"","",null,null,2186900]
[{"$nulls":4},"Total (A+B+C )",null,null,{"$f":"+IFERROR(IF(COUNT(H26,H50,H56),ROUND(SUM(H26,H50,H56),0),\"\"),\"\")","v":1570},5932600,"","",5932600,{"$f":"+IFERROR(IF(COUNT(L57),ROUND(L57/'Shareholding Pattern'!$L$57*100,2),\"\"),\"\")","v":{"v":100,"d":"100.00"}},{"v":5932600,"d":"5932600.00"},"",5932600,{"$f":"+IFERROR(IF(COUNT(P58),ROUND(P58/'Shareholding Pattern'!$P$58*100,2),\"\"),\"\")","v":{"v":100,"d":"100.00"}},"","","",{"v":100,"d":"100.00"},"","","",{"$f":"+IFERROR(IF(COUNT(X58),ROUND(SUM(X58)/SUM(L58)*100,2),\"\"),0)","v":""},2186900,{"$nulls":17},"Shareholding pattern [Member]"]
[{"$nulls":4},"Disclosure of notes on shareholding pattern"]
[{"$nulls":4},"Disclosure of notes in case of promoter holiding in dematerialsed form is less than 100 percentage"]
[{"$nulls":4},"Disclosure of notes in case of public share holding is less than 25 percentage"]
[{"$nulls":4},"Disclosure of notes on shareholding pattern for company remarks explanatory"]

{"sheet":"IndHUF","index":6,"n_rows":30,"n_cols":45,"rows_kept":30,"hidden":true,"merged":[[8,4,10,4],[8,5,10,5],[8,6,10,6],[8,7,10,7],[8,8,10,8],[8,9,10,9],[8,10,10,10],[8,11,10,11],[8,12,8,15],[8,16,10,16],[8,17,10,17],[8,18,10,18],[8,19,10,19],[8,20,9,21],[8,22,9,23],[8,24,10,24],[8,25,10,25],[8,26,10,26],[9,12,9,14],[9,15,10,15]]}
[{"$nulls":8},14]
[{"$nulls":5},"Name of shareholder","Permanent account number of shareholder","Number of fully paid up equity shares","Number of partly paid-up equity shares","Number of shares underlying outstanding depository receipts","Total number of shares","Shareholding as a percentage of total number of shares held by promoters and public shareholders and custodians or DR holders","Number of voting rights held by same class of securities","Number of voting rights held by differential voting rights","Total Number of voting rights","Percentage of total number of voting rights","Number of shares underlying outstanding convertible securities","Number of warrant","Number of warrant and convertible securities","Total shareholding as a percentage assuming full conversion of convertible securities","Number of the locked-in-shares ","Locked-in-shares as a percentage of total number of shares","Pledged or encumbered - number of shares","Pledged or encumbered shares held as percentage of total number of shares","Number of equity shares held in dematerialized form","Reason for not providing PAN","Shareholder type",{"$nulls":16},"Promoter","Promoter Group"]
[]
[]
[]
[]
[]
[]
[{"$nulls":4},"Searial No.","Name\nof the \nShareholders\n     (I)","PAN \n(II)","No. of fully paid up equity shares held\n(IV)","No. Of Partly paid-up equity shares held\n(V)","No. Of shares underlying Depository Receipts\n(VI)","Total nos. shares\nheld\n(VII) = (IV)+(V)+ (VI)","Shareholding as a % of total no. of shares (calculated as per SCRR, 1957)\n(VIII)\nAs a % of (A+B+C2)","Number of Voting Rights held in each class of securities\n(IX)",{"$nulls":3},"No. Of Shares Underlying Outstanding convertible securities\n(X)","No. of Shares Underlying Outstanding Warrants (Xi)","No. Of Shares Underlying Outstanding convertible securities and No. Of Warrants\n(Xi) (a)","Shareholding , as a % assuming full conversion of convertible securities (as a percentage of diluted share capital)\n(XI)= (VII)+(Xi)(a)\nAs a % of (A+B+C2)","Number of Locked in shares\n(XII)",null,"Number of Shares pledged or otherwise encumbered\n(XIII)",null,"Number of equity shares held in dematerialized form \n(XIV)","Reason for not providing PAN","Shareholder type"]
[{"$nulls":12},"No of Voting (XIV) Rights",null,null,"Total as\na % of\nTotal\nVoting\nrights"]
[{"$nulls":12},"Class\neg:X","Class\neg:y","Total",{"$nulls":5},"No.\n(a)","As a % of total Shares held\n(b)","No.\n(a)","As a % of total Shares held\n(b)"]
[{"$nulls":4},"A1(a)","Individuals/Hindu undivided Family"]
[{"$nulls":10},{"$f":"+IFERROR(IF(COUNT(H13:J13),ROUND(SUM(H13:J13),0),\"\"),\"\")","v":""},{"$f":"+IFERROR(IF(COUNT(K13),ROUND(K13/'Shareholding Pattern'!$L$57*100,2),\"\"),0)","v":""},{"$f":"IF(H13=\"\",\"\",H13)","v":""},null,{"$f":"+IFERROR(IF(COUNT(M13:N13),ROUND(SUM(M13,N13),2),\"\"),\"\")","v":""},{"$f":"+IFERROR(IF(COUNT(O13),ROUND(O13/('Shareholding Pattern'!$P$58)*100,2),\"\"),0)","v":""},null,null,{"$f":"+IFERROR(IF(COUNT(Q13:R13),ROUND(SUM(Q13:R13),0),\"\"),\"\")","v":""},{"$f":"+IFERROR(IF(COUNT(K13,S13),ROUND(SUM(S13,K13)/SUM('Shareholding Pattern'!$L$57,'Shareholding Pattern'!$T$57)*100,2),\"\"),0)","v":""},null,{"$f":"+IFERROR(IF(COUNT(U13),ROUND(SUM(U13)/SUM(K13)*100,2),\"\"),0)","v":""},null,{"$f":"+IFERROR(IF(COUNT(W13),ROUND(SUM(W13)/SUM(K13)*100,2),\"\"),0)","v":""},{"$nulls":4},{"$f":"IF(SUM(H13:Y13)>0,1,0)","v":0},{"$f":"IF(COUNT(H29:$Y$15014)=0,\"\",SUM(AC1:AC65546))","v":14}]
[]
[{"$nulls":4},1,"AVISEKH JAIN","ADBPJ0116E",49000,null,null,{"$f":"+IFERROR(IF(COUNT(H15:J15),ROUND(SUM(H15:J15),0),\"\"),\"\")","v":49000},{"$f":"+IFERROR(IF(COUNT(K15),ROUND(K15/'Shareholding Pattern'!$L$57*100,2),\"\"),0)","v":0.83},{"$f":"IF(H15=\"\",\"\",H15)","v":{"v":49000,"d":"49000.00"}},null,{"$f":"+IFERROR(IF(COUNT(M15:N15),ROUND(SUM(M15,N15),2),\"\"),\"\")","v":{"v":49000,"d":"49000.00"}},{"$f":"+IFERROR(IF(COUNT(O15),ROUND(O15/('Shareholding Pattern'!$P$58)*100,2),\"\"),0)","v":0.83},null,null,{"$f":"+IFERROR(IF(COUNT(Q15:R15),ROUND(SUM(Q15:R15),0),\"\"),\"\")","v":""},{"$f":"+IFERROR(IF(COUNT(K15,S15),ROUND(SUM(S15,K15)/SUM('Shareholding Pattern'!$L$57,'Shareholding Pattern'!$T$57)*100,2),\"\"),0)","v":0.83},null,{"$f":"+IFERROR(IF(COUNT(U15),ROUND(SUM(U15)/SUM(K15)*100,2),\"\"),0)","v":""},null,{"$f":"+IFERROR(IF(COUNT(W15),ROUND(SUM(W15)/SUM(K15)*100,2),\"\"),0)","v":""},0,{"$nulls":3},{"$f":"IF(SUM(H15:Y15)>0,1,0)","v":1}]
[{"$nulls":4},2,"DHARMENDRA KUMAR JAIN","ABZPJ0235C",66600,null,null,66600,{"$f":"+IFERROR(IF(COUNT(K16),ROUND(K16/'Shareholding Pattern'!$L$57*100,2),\"\"),0)","v":1.12},{"v":66600,"d":"66600.00"},null,{"v":66600,"d":"66600.00"},{"$f":"+IFERROR(IF(COUNT(O16),ROUND(O16/('Shareholding Pattern'!$P$58)*100,2),\"\"),0)","v":1.12},null,null,"",{"$f":"+IFERROR(IF(COUNT(K16,S16),ROUND(SUM(S16,K16)/SUM('Shareholding Pattern'!$L$57,'Shareholding Pattern'!$T$57)*100,2),\"\"),0)","v":1.12},null,"",null,"",0,{"$nulls":3},1]
[{"$nulls":4},3,"HULASCHAND JAIN","ADMPJ9016J",70000,null,null,70000,{"$f":"+IFERROR(IF(COUNT(K17),ROUND(K17/'Shareholding Pattern'!$L$57*100,2),\"\"),0)","v":1.18},{"v":70000,"d":"70000.00"},null,{"v":70000,"d":"70000.00"},{"$f":"+IFERROR(IF(COUNT(O17),ROUND(O17/('Shareholding Pattern'!$P$58)*100,2),\"\"),0)","v":1.18},null,null,"",{"$f":"+IFERROR(IF(COUNT(K17,S17),ROUND(SUM(S17,K17)/SUM('Shareholding Pattern'!$L$57,'Shareholding Pattern'!$T$57)*100,2),\"\"),0)","v":1.18},null,"",null,"",0,{"$nulls":3},1]
[{"$nulls":4},4,"LALIT KUMAR JAIN","ZZZZZ9999Z",28000,null,null,28000,{"$f":"+IFERROR(IF(COUNT(K18),ROUND(K18/'Shareholding Pattern'!$L$57*100,2),\"\"),0)","v":0.47},{"v":28000,"d":"28000.00"},null,{"v":28000,"d":"28000.00"},{"$f":"+IFERROR(IF(COUNT(O18),ROUND(O18/('Shareholding Pattern'!$P$58)*100,2),\"\"),0)","v":0.47},null,null,"",{"$f":"+IFERROR(IF(COUNT(K18,S18),ROUND(SUM(S18,K18)/SUM('Shareholding Pattern'!$L$57,'Shareholding Pattern'!$T$57)*100,2),\"\"),0)","v":0.47},null,"",null,"",0,12,null,null,1]
[{"$nulls":4},5,"MAHABIR PRASAD JAIN","ACZPJ5349N",377415,null,null,377415,{"$f":"+IFERROR(IF(COUNT(K19),ROUND(K19/'Shareholding Pattern'!$L$57*100,2),\"\"),0)","v":6.36},{"v":377415,"d":"377415.00"},null,{"v":377415,"d":"377415.00"},{"$f":"+IFERROR(IF(COUNT(O19),ROUND(O19/('Shareholding Pattern'!$P$58)*100,2),\"\"),0)","v":6.36},null,null,"",{"$f":"+IFERROR(IF(COUNT(K19,S19),ROUND(SUM(S19,K19)/SUM('Shareholding Pattern'!$L$57,'Shareholding Pattern'!$T$57)*100,2),\"\"),0)","v":6.36},null,"",null,"",0,{"$nulls":3},1]
[{"$nulls":4},6,"NAVEEN JAIN","ZZZZZ9999Z",16000,null,null,16000,{"$f":"+IFERROR(IF(COUNT(K20),ROUND(K20/'Shareholding Pattern'!$L$57*100,2),\"\"),0)","v":0.27},{"v":16000,"d":"16000.00"},null,{"v":16000,"d":"16000.00"},{"$f":"+IFERROR(IF(COUNT(O20),ROUND(O20/('Shareholding Pattern'!$P$58)*100,2),\"\"),0)","v":0.27},null,null,"",{"$f":"+IFERROR(IF(COUNT(K20,S20),ROUND(SUM(S20,K20)/SUM('Shareholding Pattern'!$L$57,'Shareholding Pattern'!$T$57)*100,2),\"\"),0)","v":0.27},null,"",null,"",0,13,null,null,1]
[{"$nulls":4},7,"NIRMAL KUMAR JAIN","ABZPJ0148E",70331,null,null,70331,{"$f":"+IFERROR(IF(COUNT(K21),ROUND(K21/'Shareholding Pattern'!$L$57*100,2),\"\"),0)","v":1.19},{"v":70331,"d":"70331.00"},null,{"v":70331,"d":"70331.00"},{"$f":"+IFERROR(IF(COUNT(O21),ROUND(O21/('Shareholding Pattern'!$P$58)*100,2),\"\"),0)","v":1.19},null,null,"",{"$f":"+IFERROR(IF(COUNT(K21,S21),ROUND(SUM(S21,K21)/SUM('Shareholding Pattern'!$L$57,'Shareholding Pattern'!$T$57)*100,2),\"\"),0)","v":1.19},null,"",null,"",0,{"$nulls":3},1]
[{"$nulls":4},8,"PARAS JAIN","ZZZZZ9999Z",28000,null,null,28000,{"$f":"+IFERROR(IF(COUNT(K22),ROUND(K22/'Shareholding Pattern'!$L$57*100,2),\"\"),0)","v":0.47},{"v":28000,"d":"28000.00"},null,{"v":28000,"d":"28000.00"},{"$f":"+IFERROR(IF(COUNT(O22),ROUND(O22/('Shareholding Pattern'!$P$58)*100,2),\"\"),0)","v":0.47},null,null,"",{"$f":"+IFERROR(IF(COUNT(K22,S22),ROUND(SUM(S22,K22)/SUM('Shareholding Pattern'!$L$57,'Shareholding Pattern'!$T$57)*100,2),\"\"),0)","v":0.47},null,"",null,"",0,15,null,null,1]
[{"$nulls":4},9,"SANTRA KUMARI JAIN","ACAPJ3504G",57260,null,null,57260,{"$f":"+IFERROR(IF(COUNT(K23),ROUND(K23/'Shareholding Pattern'!$L$57*100,2),\"\"),0)","v":0.97},{"v":57260,"d":"57260.00"},null,{"v":57260,"d":"57260.00"},{"$f":"+IFERROR(IF(COUNT(O23),ROUND(O23/('Shareholding Pattern'!$P$58)*100,2),\"\"),0)","v":0.97},null,null,"",{"$f":"+IFERROR(IF(COUNT(K23,S23),ROUND(SUM(S23,K23)/SUM('Shareholding Pattern'!$L$57,'Shareholding Pattern'!$T$57)*100,2),\"\"),0)","v":0.97},null,"",null,"",0,{"$nulls":3},1]
[{"$nulls":4},10,"SOHANI DEVI JAIN","ABZPJ0146L",145631,null,null,145631,{"$f":"+IFERROR(IF(COUNT(K24),ROUND(K24/'Shareholding Pattern'!$L$57*100,2),\"\"),0)","v":2.45},{"v":145631,"d":"145631.00"},null,{"v":145631,"d":"145631.00"},{"$f":"+IFERROR(IF(COUNT(O24),ROUND(O24/('Shareholding Pattern'!$P$58)*100,2),\"\"),0)","v":2.45},null,null,"",{"$f":"+IFERROR(IF(COUNT(K24,S24),ROUND(SUM(S24,K24)/SUM('Shareholding Pattern'!$L$57,'Shareholding Pattern'!$T$57)*100,2),\"\"),0)","v":2.45},null,"",null,"",0,{"$nulls":3},1]
[{"$nulls":4},11,"TARA RANI JAIN","ADBPJ0108J",334108,null,null,334108,{"$f":"+IFERROR(IF(COUNT(K25),ROUND(K25/'Shareholding Pattern'!$L$57*100,2),\"\"),0)","v":5.63},{"v":334108,"d":"334108.00"},null,{"v":334108,"d":"334108.00"},{"$f":"+IFERROR(IF(COUNT(O25),ROUND(O25/('Shareholding Pattern'!$P$58)*100,2),\"\"),0)","v":5.63},null,null,"",{"$f":"+IFERROR(IF(COUNT(K25,S25),ROUND(SUM(S25,K25)/SUM('Shareholding Pattern'!$L$57,'Shareholding Pattern'!$T$57)*100,2),\"\"),0)","v":5.63},null,"",null,"",0,{"$nulls":3},1]
[{"$nulls":4},12,"TARAMANI DEVI JAIN","ZZZZZ9999Z",315015,null,null,315015,{"$f":"+IFERROR(IF(COUNT(K26),ROUND(K26/'Shareholding Pattern'!$L$57*100,2),\"\"),0)","v":5.31},{"v":315015,"d":"315015.00"},null,{"v":315015,"d":"315015.00"},{"$f":"+IFERROR(IF(COUNT(O26),ROUND(O26/('Shareholding Pattern'!$P$58)*100,2),\"\"),0)","v":5.31},null,null,"",{"$f":"+IFERROR(IF(COUNT(K26,S26),ROUND(SUM(S26,K26)/SUM('Shareholding Pattern'!$L$57,'Shareholding Pattern'!$T$57)*100,2),\"\"),0)","v":5.31},null,"",null,"",0,16,null,null,1]
[{"$nulls":4},13,"VISHAL JAIN","ADBPJ0110C",209260,null,null,209260,{"$f":"+IFERROR(IF(COUNT(K27),ROUND(K27/'Shareholding Pattern'!$L$57*100,2),\"\"),0)","v":3.53},{"v":209260,"d":"209260.00"},null,{"v":209260,"d":"209260.00"},{"$f":"+IFERROR(IF(COUNT(O27),ROUND(O27/('Shareholding Pattern'!$P$58)*100,2),\"\"),0)","v":3.53},null,null,"",{"$f":"+IFERROR(IF(COUNT(K27,S27),ROUND(SUM(S27,K27)/SUM('Shareholding Pattern'!$L$57,'Shareholding Pattern'!$T$57)*100,2),\"\"),0)","v":3.53},null,"",null,"",0,{"$nulls":3},1]
[{"$nulls":4},14,"YOGESH JAIN","AEYPJ4799R",82400,null,null,82400,{"$f":"+IFERROR(IF(COUNT(K28),ROUND(K28/'Shareholding Pattern'!$L$57*100,2),\"\"),0)","v":1.39},{"v":82400,"d":"82400.00"},null,{"v":82400,"d":"82400.00"},{"$f":"+IFERROR(IF(COUNT(O28),ROUND(O28/('Shareholding Pattern'!$P$58)*100,2),\"\"),0)","v":1.39},null,null,"",{"$f":"+IFERROR(IF(COUNT(K28,S28),ROUND(SUM(S28,K28)/SUM('Shareholding Pattern'!$L$57,'Shareholding Pattern'!$T$57)*100,2),\"\"),0)","v":1.39},null,"",null,"",0,{"$nulls":3},1]
[]
[{"$nulls":5},"Click here to go back","Total",{"$f":"+IFERROR(IF(COUNT(H14:H29),ROUND(SUM(H14:H29),0),\"\"),\"\")","v":1849020},{"$f":"+IFERROR(IF(COUNT(I14:I29),ROUND(SUM(I14:I29),0),\"\"),\"\")","v":""},{"$f":"+IFERROR(IF(COUNT(J14:J29),ROUND(SUM(J14:J29),0),\"\"),\"\")","v":""},{"$f":"+IFERROR(IF(COUNT(K14:K29),ROUND(SUM(K14:K29),0),\"\"),\"\")","v":1849020},{"$f":"+IFERROR(IF(COUNT(K30),ROUND(K30/'Shareholding Pattern'!$L$57*100,2),\"\"),0)","v":31.17},{"$f":"+IFERROR(IF(COUNT(M14:M29),ROUND(SUM(M14:M29),0),\"\"),\"\")","v":{"v":1849020,"d":"1849020.00"}},{"$f":"+IFERROR(IF(COUNT(N14:N29),ROUND(SUM(N14:N29),0),\"\"),\"\")","v":""},{"$f":"+IFERROR(IF(COUNT(O14:O29),ROUND(SUM(O14:O29),0),\"\"),\"\")","v":{"v":1849020,"d":"1849020.00"}},{"$f":"+IFERROR(IF(COUNT(O30),ROUND(O30/('Shareholding Pattern'!$P$58)*100,2),\"\"),0)","v":31.17},{"$f":"+IFERROR(IF(COUNT(Q14:Q29),ROUND(SUM(Q14:Q29),0),\"\"),\"\")","v":""},{"$f":"+IFERROR(IF(COUNT(R14:R29),ROUND(SUM(R14:R29),0),\"\"),\"\")","v":""},{"$f":"+IFERROR(IF(COUNT(S14:S29),ROUND(SUM(S14:S29),0),\"\"),\"\")","v":""},{"$f":"+IFERROR(IF(COUNT(K30,S30),ROUND(SUM(S30,K30)/SUM('Shareholding Pattern'!$L$57,'Shareholding Pattern'!$T$57)*100,2),\"\"),0)","v":31.17},{"$f":"+IFERROR(IF(COUNT(U14:U29),ROUND(SUM(U14:U29),0),\"\"),\"\")","v":""},{"$f":"+IFERROR(IF(COUNT(U30),ROUND(SUM(U30)/SUM(K30)*100,2),\"\"),0)","v":""},{"$f":"+IFERROR(IF(COUNT(W14:W29),ROUND(SUM(W14:W29),0),\"\"),\"\")","v":""},{"$f":"+IFERROR(IF(COUNT(W30),ROUND(SUM(W30)/SUM(K30)*100,2),\"\"),0)","v":""},{"$f":"+IFERROR(IF(COUNT(Y14:Y29),ROUND(SUM(Y14:Y29),0),\"\"),\"\")","v":0}]

{"sheet":"SBO","index":7,"n_rows":12,"n_cols":27,"rows_kept":12,"hidden":true,"merged":[[6,5,7,7],[8,4,10,4],[8,5,8,10],[8,11,8,15],[8,16,8,20],[8,21,10,21],[9,5,10,5],[9,6,10,6],[9,7,10,7],[9,9,10,9],[9,10,10,10],[9,11,10,11],[9,12,10,12],[9,13,10,13],[9,14,10,14],[9,15,10,15],[9,16,9,20],[11,5,11,6],[13,5,13,7]]}
[{"$nulls":8},0,null,null,"Yes","No","NA"]
[{"$nulls":5},"Name of SBO","PAN of SBO","Passport No. in case of a foreign national of SBO",null,"Nationality of SBO","Nationality (Applicable in case of Any other is selected) of SBO","Name of RegisteredOwner","PAN of RegisteredOwner","Passport No. in case of a foreign national of RegisteredOwner","Nationality of RegisteredOwner","Nationality (Applicable in case of Any other is selected) of RegisteredOwner","Shares","Voting rights SBO","Rights on distributable dividend or any other distribution","Exercise of control","Exercise of significant influence","Date of creation / acquisition of significant beneficial interest"]
[{"$nulls":26},"India"]
[{"$nulls":26},"United Kingdom"]
[{"$nulls":26},"Hong Kong"]
[{"$nulls":26},"China"]
[{"$nulls":26},"Mauritius"]
[{"$nulls":26},"Singapore"]
[{"$nulls":4},"Sr. No.","Details of the SBO",{"$nulls":5},"Details of the registered owner",{"$nulls":4},"Details of holding/ exercise of right of the SBO in the reporting company, whether direct or indirect*:",{"$nulls":4},"Date of creation / acquisition of significant beneficial interest",{"$nulls":4},"Japan"]
[{"$nulls":5},"Name","PAN ","Passport No. in case of a foreign national",null,"Nationality","Nationality (Applicable in case of Any other is selected)","Name","PAN ","Passport No. in case of a foreign national","Nationality","Nationality (Applicable in case of Any other is selected)","Whether by virtue of:",{"$nulls":9},"United States of America"]
[{"$nulls":16},"Shares","Voting rights","Rights on distributable dividend or any other distribution","Exercise of control","Exercise of significant influence",{"$nulls":5},"Any other"]
[{"$nulls":5},"significant beneficial owners"]

{"sheet":"CGAndSG","index":8,"n_rows":16,"n_cols":45,"rows_kept":16,"hidden":true,"merged":[[8,4,10,4],[8,5,10,5],[8,6,10,6],[8,7,10,7],[8,8,10,8],[8,9,10,9],[8,10,10,10],[8,11,10,11],[8,12,8,15],[8,16,10,16],[8,17,10,17],[8,18,10,18],[8,19,10,19],[8,20,9,21],[8,22,9,23],[8,24,10,24],[8,25,10,25],[8,26,10,26],[9,12,9,14],[9,15,10,15],[11,5,11,6]]}
[{"$nulls":8},0,{"$nulls":20},{"$f":"SUM(AC1:AC65531)","v":0}]
[{"$nulls":5},"Name of shareholder","Permanent account number of shareholder","Number of fully paid up equity shares","Number of partly paid-up equity shares","Number of shares underlying outstanding depository receipts","Total number of shares","Shareholding as a percentage of total number of shares held by promoters and public shareholders and custodians or DR holders","Number of voting rights held by same class of securities","Number of voting rights held by differential voting rights","Total Number of voting rights","Percentage of total number of voting rights","Number of shares underlying outstanding convertible securities","Number of warrant","Number of warrant and convertible securities","Total shareholding as a percentage assuming full conversion of convertible securities","Number of the locked-in-shares ","Locked-in-shares as a percentage of total number of shares","Pledged or encumbered - number of shares","Pledged or encumbered shares held as percentage of total number of shares","Number of equity shares held in dematerialized form","Reason for not providing PAN","Shareholder type",{"$nulls":16},"Promoter","Promoter Group"]
[]
[]
[]
[]
[]
[]
[{"$nulls":4},"Searial No.","Name\nof the \nShareholders\n     (I)","PAN \n(II)","No. of fully paid up equity shares held\n(IV)","No. Of Partly paid-up equity shares held\n(V)","No. Of shares underlying Depository Receipts\n(VI)","Total nos. shares\nheld\n(VII) = (IV)+(V)+ (VI)","Shareholding as a % of total no. of shares (calculated as per SCRR, 1957)\n(VIII)\nAs a % of (A+B+C2)","Number of Voting Rights held in each class of securities\n(IX)",{"$nulls":3},"No. Of Shares Underlying Outstanding convertible securities\n(X)","No. of Shares Underlying Outstanding Warrants (Xi)","No. Of Shares Underlying Outstanding convertible securities and warrants\n(X)","Shareholding , as a % assuming full conversion of convertible securities (as a percentage of diluted share capital)\n(XI)= (VII)+(X)\nAs a % of (A+B+C2)","Number of Locked in shares\n(XII)",null,"Number of Shares pledged or otherwise encumbered\n(XIII)",null,"Number of equity shares held in dematerialized form \n(XIV)","Reason for not providing PAN","Shareholder type"]
[{"$nulls":12},"No of Voting (XIV)\nRights",null,null,"Total as\na % of\nTotal\nVoting\nrights"]
[{"$nulls":12},"Class\neg:\nX","Class\neg:y","Total",{"$nulls":5},"No.\n(a)","As a % of total Shares held\n(b)","No.\n(a)","As a % of total Shares held\n(b)"]
[{"$nulls":4},"A1(b)","Central  Government/ State Government(s)"]
[{"$nulls":10},{"$f":"+IFERROR(IF(COUNT(H13:J13),ROUND(SUM(H13:J13),0),\"\"),\"\")","v":""},{"$f":"+IFERROR(IF(COUNT(K13),ROUND(K13/'Shareholding Pattern'!$L$57*100,2),\"\"),0)","v":""},{"$f":"IF(H13=\"\",\"\",H13)","v":""},null,{"$f":"+IFERROR(IF(COUNT(M13:N13),ROUND(SUM(M13,N13),2),\"\"),\"\")","v":""},{"$f":"+IFERROR(IF(COUNT(O13),ROUND(O13/('Shareholding Pattern'!$P$58)*100,2),\"\"),0)","v":""},null,null,{"$f":"+IFERROR(IF(COUNT(Q13:R13),ROUND(SUM(Q13:R13),0),\"\"),\"\")","v":""},{"$f":"+IFERROR(IF(COUNT(K13,S13),ROUND(SUM(S13,K13)/SUM('Shareholding Pattern'!$L$57,'Shareholding Pattern'!$T$57)*100,2),\"\"),0)","v":""},null,{"$f":"+IFERROR(IF(COUNT(U13),ROUND(SUM(U13)/SUM(K13)*100,2),\"\"),0)","v":""},null,{"$f":"+IFERROR(IF(COUNT(W13),ROUND(SUM(W13)/SUM(K13)*100,2),\"\"),0)","v":""},{"$nulls":4},{"$f":"IF(SUM(H13:Y13)>0,1,0)","v":0},{"$f":"IF(COUNT(H15:$Y$14995)=0,\"\",SUM(AC1:AC65533))","v":""}]
[]
[]
[{"$nulls":5},"Click here to go back","Total",{"$f":"+IFERROR(IF(COUNT(H14:H15),ROUND(SUM(H14:H15),0),\"\"),\"\")","v":""},{"$f":"+IFERROR(IF(COUNT(I14:I15),ROUND(SUM(I14:I15),0),\"\"),\"\")","v":""},{"$f":"+IFERROR(IF(COUNT(J14:J15),ROUND(SUM(J14:J15),0),\"\"),\"\")","v":""},{"$f":"+IFERROR(IF(COUNT(H16:J16),ROUND(SUM(H16:J16),0),\"\"),\"\")","v":""},{"$f":"+IFERROR(IF(COUNT(K16),ROUND(K16/'Shareholding Pattern'!$L$57*100,2),\"\"),0)","v":""},{"$f":"+IFERROR(IF(COUNT(M14:M15),ROUND(SUM(M14:M15),0),\"\"),\"\")","v":""},{"$f":"+IFERROR(IF(COUNT(N14:N15),ROUND(SUM(N14:N15),0),\"\"),\"\")","v":""},{"$f":"+IFERROR(IF(COUNT(M16:N16),ROUND(SUM(M16,N16),2),\"\"),\"\")","v":""},{"$f":"+IFERROR(IF(COUNT(O16),ROUND(O16/('Shareholding Pattern'!$P$58)*100,2),\"\"),0)","v":""},{"$f":"+IFERROR(IF(COUNT(Q14:Q15),ROUND(SUM(Q14:Q15),0),\"\"),\"\")","v":""},{"$f":"+IFERROR(IF(COUNT(R14:R15),ROUND(SUM(R14:R15),0),\"\"),\"\")","v":""},{"$f":"+IFERROR(IF(COUNT(Q16:R16),ROUND(SUM(Q16:R16),0),\"\"),\"\")","v":""},{"$f":"+IFERROR(IF(COUNT(K16,S16),ROUND(SUM(S16,K16)/SUM('Shareholding Pattern'!$L$57,'Shareholding Pattern'!$T$57)*100,2),\"\"),0)","v":""},{"$f":"+IFERROR(IF(COUNT(U14:U15),ROUND(SUM(U14:U15),0),\"\"),\"\")","v":""},{"$f":"+IFERROR(IF(COUNT(U16),ROUND(SUM(U16)/SUM(K16)*100,2),\"\"),0)","v":""},{"$f":"+IFERROR(IF(COUNT(W14:W15),ROUND(SUM(W14:W15),0),\"\"),\"\")","v":""},{"$f":"+IFERROR(IF(COUNT(W16),ROUND(SUM(W16)/SUM(K16)*100,2),\"\"),0)","v":""},{"$f":"+IFERROR(IF(COUNT(Y14:Y15),ROUND(SUM(Y14:Y15),0),\"\"),\"\")","v":""}]

{"sheet":"Banks","index":9,"n_rows":16,"n_cols":45,"rows_kept":16,"hidden":true,"merged":[[8,4,10,4],[8,5,10,5],[8,6,10,6],[8,7,10,7],[8,8,10,8],[8,9,10,9],[8,10,10,10],[8,11,10,11],[8,12,8,15],[8,16,10,16],[8,17,10,17],[8,18,10,18],[8,19,10,19],[8,20,9,21],[8,22,9,23],[8,24,10,24],[8,25,10,25],[8,26,10,26],[9,12,9,14],[9,15,10,15]]}
[{"$nulls":8},0]
[{"$nulls":5},"Name of shareholder","Permanent account number of shareholder","Number of fully paid up equity shares","Number of partly paid-up equity shares","Number of shares underlying outstanding depository receipts","Total number of shares","Shareholding as a percentage of total number of shares held by promoters and public shareholders and custodians or DR holders","Number of voting rights held by same class of securities","Number of voting rights held by differential voting rights","Total Number of voting rights","Percentage of total number of voting rights","Number of shares underlying outstanding convertible securities","Number of warrant","Number of warrant and convertible securities","Total shareholding as a percentage assuming full conversion of convertible securities","Number of the locked-in-shares ","Locked-in-shares as a percentage of total number of shares","Pledged or encumbered - number of shares","Pledged or encumbered shares held as percentage of total number of shares","Number of equity shares held in dematerialized form","Reason for not providing PAN","Shareholder type",{"$nulls":16},"Promoter","Promoter Group"]
[]
[]
[]
[]
[{"$nulls":43},"Trusts"]
[{"$nulls":43},"HUF"]
[{"$nulls":4},"Searial No.","Name\nof the \nShareholders\n     (I)","PAN \n(II)","No. of fully paid up equity shares held\n(IV)","No. Of Partly paid-up equity shares held\n(V)","No. Of shares underlying Depository Receipts\n(VI)","Total nos. shares\nheld\n(VII) = (IV)+(V)+ (VI)","Shareholding as a % of total no. of shares (calculated as per SCRR, 1957)\n(VIII)\nAs a % of (A+B+C2)","Number of Voting Rights held in each class of securities\n(IX)",{"$nulls":3},"No. Of Shares Underlying Outstanding convertible securities\n(X)","No. of Shares Underlying Outstanding Warrants (Xi)","No. Of Shares Underlying Outstanding convertible securities and No. Of Warrants\n(Xi) (a)","Shareholding , as a % assuming full conversion of convertible securities (as a percentage of diluted share capital)\n(XI)= (VII)+(X)\nAs a % of (A+B+C2)","Number of Locked in shares\n(XII)",null,"Number of Shares pledged or otherwise encumbered\n(XIII)",null,"Number of equity shares held in dematerialized form \n(XIV)","Reason for not providing PAN","Shareholder type",{"$nulls":16},"Societies"]
[{"$nulls":12},"No of Voting (XIV)\nRights",null,null,"Total as\na % of\nTotal\nVoting\nrights",{"$nulls":27},"ESOP or ESOS or ESPS"]
[{"$nulls":12},"Class\neg:\nX","Class\neg:y","Total",{"$nulls":5},"No.\n(a)","As a % of total Shares held\n(b)","No.\n(a)","As a % of total Shares held\n(b)",{"$nulls":19},"Employee welfare fund"]
[{"$nulls":4},"A1(c)","Financial  Institutions/ Banks",{"$nulls":37},"Venture capital funds"]
[{"$nulls":10},{"$f":"+IFERROR(IF(COUNT(H13:J13),ROUND(SUM(H13:J13),0),\"\"),\"\")","v":""},{"$f":"+IFERROR(IF(COUNT(K13),ROUND(K13/'Shareholding Pattern'!$L$57*100,2),\"\"),0)","v":""},{"$f":"IF(H13=\"\",\"\",H13)","v":""},null,{"$f":"+IFERROR(IF(COUNT(M13:N13),ROUND(SUM(M13,N13),2),\"\"),\"\")","v":""},{"$f":"+IFERROR(IF(COUNT(O13),ROUND(O13/('Shareholding Pattern'!$P$58)*100,2),\"\"),0)","v":""},null,null,{"$f":"+IFERROR(IF(COUNT(Q13:R13),ROUND(SUM(Q13:R13),0),\"\"),\"\")","v":""},{"$f":"+IFERROR(IF(COUNT(K13,S13),ROUND(SUM(S13,K13)/SUM('Shareholding Pattern'!$L$57,'Shareholding Pattern'!$T$57)*100,2),\"\"),0)","v":""},null,{"$f":"+IFERROR(IF(COUNT(U13),ROUND(SUM(U13)/SUM(K13)*100,2),\"\"),0)","v":""},null,{"$f":"+IFERROR(IF(COUNT(W13),ROUND(SUM(W13)/SUM(K13)*100,2),\"\"),0)","v":""},{"$nulls":4},{"$f":"IF(SUM(H13:Y13)>0,1,0)","v":0},{"$f":"IF(COUNT(H15:$Y$14999)=0,\"\",SUM(AC1:AC65533))","v":""},{"$nulls":13},"Angel Investors"]
[{"$nulls":43},"Private Equity Fund"]
[]
[{"$nulls":5},"Click here to go back","Total",{"$f":"+IFERROR(IF(COUNT(H14:H15),ROUND(SUM(H14:H15),0),\"\"),\"\")","v":""},{"$f":"+IFERROR(IF(COUNT(I14:I15),ROUND(SUM(I14:I15),0),\"\"),\"\")","v":""},{"$f":"+IFERROR(IF(COUNT(J14:J15),ROUND(SUM(J14:J15),0),\"\"),\"\")","v":""},{"$f":"+IFERROR(IF(COUNT(K14:K15),ROUND(SUM(K14:K15),0),\"\"),\"\")","v":""},{"$f":"+IFERROR(IF(COUNT(K16),ROUND(K16/'Shareholding Pattern'!$L$57*100,2),\"\"),0)","v":""},{"$f":"+IFERROR(IF(COUNT(M14:M15),ROUND(SUM(M14:M15),0),\"\"),\"\")","v":""},{"$f":"+IFERROR(IF(COUNT(N14:N15),ROUND(SUM(N14:N15),0),\"\"),\"\")","v":""},{"$f":"+IFERROR(IF(COUNT(O14:O15),ROUND(SUM(O14:O15),0),\"\"),\"\")","v":""},{"$f":"+IFERROR(IF(COUNT(O16),ROUND(O16/('Shareholding Pattern'!$P$58)*100,2),\"\"),0)","v":""},{"$f":"+IFERROR(IF(COUNT(Q14:Q15),ROUND(SUM(Q14:Q15),0),\"\"),\"\")","v":""},{"$f":"+IFERROR(IF(COUNT(R14:R15),ROUND(SUM(R14:R15),0),\"\"),\"\")","v":""},{"$f":"+IFERROR(IF(COUNT(S14:S15),ROUND(SUM(S14:S15),0),\"\"),\"\")","v":""},{"$f":"+IFERROR(IF(COUNT(K16,S16),ROUND(SUM(S16,K16)/SUM('Shareholding Pattern'!$L$57,'Shareholding Pattern'!$T$57)*100,2),\"\"),0)","v":""},{"$f":"+IFERROR(IF(COUNT(U14:U15),ROUND(SUM(U14:U15),0),\"\"),\"\")","v":""},{"$f":"+IFERROR(IF(COUNT(U16),ROUND(SUM(U16)/SUM(K16)*100,2),\"\"),0)","v":""},{"$f":"+IFERROR(IF(COUNT(W14:W15),ROUND(SUM(W14:W15),0),\"\"),\"\")","v":""},{"$f":"+IFERROR(IF(COUNT(W16),ROUND(SUM(W16)/SUM(K16)*100,2),\"\"),0)","v":""},{"$f":"+IFERROR(IF(COUNT(Y14:Y15),ROUND(SUM(Y14:Y15),0),\"\"),\"\")","v":""}]

{"sheet":"OtherIND","index":10,"n_rows":24,"n_cols":53,"rows_kept":24,"hidden":true,"merged":[[8,3,10,3],[8,4,10,4],[8,5,10,5],[8,6,10,6],[8,7,10,7],[8,8,10,8],[8,9,10,9],[8,10,10,10],[8,11,10,11],[8,12,10,12],[8,13,10,13],[8,14,8,17],[8,18,10,18],[8,19,10,19],[8,20,10,20],[8,21,10,21],[8,22,9,23],[8,24,9,25],[8,26,10,26],[8,27,10,27],[8,28,10,28],[9,14,9,16],[9,17,10,17]]}
[{"$nulls":8},8,{"$nulls":34},"Director or Director's Relatives"]
[{"$nulls":4},"Category of other indian shareholders","Category or more than one percentage","Name of shareholder","Permanent account number of shareholder","Number of shareholders","Number of fully paid up equity shares","Number of partly paid-up equity shares","Number of shares underlying outstanding depository receipts","Total number of shares","Shareholding as a percentage of total number of shares held by promoters and public shareholders and custodians or DR holders","Number of voting rights held by same class of securities","Number of voting rights held by differential voting rights","Total Number of voting rights","Percentage of total number of voting rights","Number of shares underlying outstanding convertible securities","Number of warrant","Number of warrant and convertible securities","Total shareholding as a percentage assuming full conversion of convertible securities","Number of the locked-in-shares ","Locked-in-shares as a percentage of total number of shares","Pledged or encumbered - number of shares","Pledged or encumbered shares held as percentage of total number of shares","Number of equity shares held in dematerialized form","Reason for not providing PAN","Shareholder type",{"$nulls":14},"Bodies Corporate",{"$nulls":7},"Promoter","Promoter Group"]
[{"$nulls":43},"Partnership Firms"]
[{"$nulls":43},"Trusts"]
[{"$nulls":43},"Person Acting in Concert"]
[{"$nulls":43},"Other"]
[]
[]
[{"$nulls":3},"Searial No.","Category",null,"Name\nof the \nShareholders\n     (I)","PAN \n(II)","No.\nof the \nShareholders\n     (I)","No. of fully paid up equity shares held\n(IV)","No. Of Partly paid-up equity shares held\n(V)","No. Of shares underlying Depository Receipts\n(VI)","Total nos. shares\nheld\n(VII) = (IV)+(V)+ (VI)","Shareholding as a % of total no. of shares (calculated as per SCRR, 1957)\n(VIII)\nAs a % of (A+B+C2)","Number of Voting Rights held in each class of securities\n(IX)",{"$nulls":3},"No. Of Shares Underlying Outstanding convertible securities\n(X)","No. of Shares Underlying Outstanding Warrants (Xi)","No. Of Shares Underlying Outstanding convertible securities and No. Of Warrants\n(Xi) (a)","Shareholding , as a % assuming full conversion of convertible securities (as a percentage of diluted share capital)\n(XI)= (VII)+(X)\nAs a % of (A+B+C2)","Number of Locked in shares\n(XII)",null,"Number of Shares pledged or otherwise encumbered\n(XIII)",null,"Number of equity shares held in dematerialized form \n(XIV)","Reason for not providing PAN","Shareholder type",{"$nulls":18},"Category"]
[{"$nulls":14},"No of Voting (XIV)\nRights",null,null,"Total as\na % of\nTotal\nVoting\nrights",{"$nulls":29},"More than 1 percentage of shareholding"]
[{"$nulls":14},"Class\neg:\nX","Class\neg:y","Total",{"$nulls":5},"No.\n(a)","As a % of total Shares held\n(b)","No.\n(a)","As a % of total Shares held\n(b)"]
[{"$nulls":3},"A1(d)","Any Other (specify)"]
[{"$nulls":12},{"$f":"+IFERROR(IF(COUNT(J13:L13),ROUND(SUM(J13:L13),0),\"\"),\"\")","v":""},{"$f":"+IFERROR(IF(COUNT(M13),ROUND(M13/'Shareholding Pattern'!$L$57*100,2),\"\"),0)","v":""},{"$f":"IF(J13=\"\",\"\",J13)","v":""},null,{"$f":"+IFERROR(IF(COUNT(O13:P13),ROUND(SUM(O13,P13),2),\"\"),\"\")","v":""},{"$f":"+IFERROR(IF(COUNT(Q13),ROUND(Q13/('Shareholding Pattern'!$P$58)*100,2),\"\"),0)","v":""},null,null,{"$f":"+IFERROR(IF(COUNT(S13:T13),ROUND(SUM(S13:T13),0),\"\"),\"\")","v":""},{"$f":"+IFERROR(IF(COUNT(M13,U13),ROUND(SUM(U13,M13)/SUM('Shareholding Pattern'!$L$57,'Shareholding Pattern'!$T$57)*100,2),\"\"),0)","v":""},null,{"$f":"+IFERROR(IF(COUNT(W13),ROUND(SUM(W13)/SUM(M13)*100,2),\"\"),0)","v":""},null,{"$f":"+IFERROR(IF(COUNT(Y13),ROUND(SUM(Y13)/SUM(M13)*100,2),\"\"),0)","v":""},{"$nulls":3},{"$f":"IF(COUNT(H23:$AA$15007)=0,\"\",SUM(AC1:AC65541))","v":0},null,{"$f":"IF(SUM(I13:AA13)>0,1,0)","v":0},{"$f":"IF(COUNT(H23:$AA$15001)=0,\"\",SUM(AF1:AF65535))","v":8}]
[]
[{"$nulls":3},1,"Bodies Corporate",null,"ARIHANT COAL CO.LTD.","ZZZZZ9999Z",1,90000,null,null,{"$f":"+IFERROR(IF(COUNT(J15:L15),ROUND(SUM(J15:L15),0),\"\"),\"\")","v":90000},{"$f":"+IFERROR(IF(COUNT(M15),ROUND(M15/'Shareholding Pattern'!$L$57*100,2),\"\"),0)","v":1.52},{"$f":"IF(J15=\"\",\"\",J15)","v":{"v":90000,"d":"90000.00"}},null,{"$f":"+IFERROR(IF(COUNT(O15:P15),ROUND(SUM(O15,P15),2),\"\"),\"\")","v":{"v":90000,"d":"90000.00"}},{"$f":"+IFERROR(IF(COUNT(Q15),ROUND(Q15/('Shareholding Pattern'!$P$58)*100,2),\"\"),0)","v":1.52},null,null,{"$f":"+IFERROR(IF(COUNT(S15:T15),ROUND(SUM(S15:T15),0),\"\"),\"\")","v":""},{"$f":"+IFERROR(IF(COUNT(M15,U15),ROUND(SUM(U15,M15)/SUM('Shareholding Pattern'!$L$57,'Shareholding Pattern'!$T$57)*100,2),\"\"),0)","v":1.52},null,{"$f":"+IFERROR(IF(COUNT(W15),ROUND(SUM(W15)/SUM(M15)*100,2),\"\"),0)","v":""},null,{"$f":"+IFERROR(IF(COUNT(Y15),ROUND(SUM(Y15)/SUM(M15)*100,2),\"\"),0)","v":""},0,17,null,{"$f":"IF(COUNT(H25:$AA$15007)=0,\"\",SUM(AC3:AC65543))","v":""},null,{"$f":"IF(SUM(I15:AA15)>0,1,0)","v":1}]
[{"$nulls":3},2,"Bodies Corporate",null,"C.S.MECHANICAL WORKS(P)LTD.","ZZZZZ9999Z",1,2400,null,null,2400,{"$f":"+IFERROR(IF(COUNT(M16),ROUND(M16/'Shareholding Pattern'!$L$57*100,2),\"\"),0)","v":0.04},{"v":2400,"d":"2400.00"},null,{"v":2400,"d":"2400.00"},{"$f":"+IFERROR(IF(COUNT(Q16),ROUND(Q16/('Shareholding Pattern'!$P$58)*100,2),\"\"),0)","v":0.04},null,null,"",{"$f":"+IFERROR(IF(COUNT(M16,U16),ROUND(SUM(U16,M16)/SUM('Shareholding Pattern'!$L$57,'Shareholding Pattern'!$T$57)*100,2),\"\"),0)","v":0.04},null,"",null,"",0,18,null,{"$f":"IF(COUNT(H26:$AA$15007)=0,\"\",SUM(AC4:AC65544))","v":""},null,1]
[{"$nulls":3},3,"Bodies Corporate",null,"HARAKCHAND INVESTMENTS LTD.","AAACH3596F",1,343580,null,null,343580,{"$f":"+IFERROR(IF(COUNT(M17),ROUND(M17/'Shareholding Pattern'!$L$57*100,2),\"\"),0)","v":5.79},{"v":343580,"d":"343580.00"},null,{"v":343580,"d":"343580.00"},{"$f":"+IFERROR(IF(COUNT(Q17),ROUND(Q17/('Shareholding Pattern'!$P$58)*100,2),\"\"),0)","v":5.79},null,null,"",{"$f":"+IFERROR(IF(COUNT(M17,U17),ROUND(SUM(U17,M17)/SUM('Shareholding Pattern'!$L$57,'Shareholding Pattern'!$T$57)*100,2),\"\"),0)","v":5.79},null,"",null,"",0,null,null,{"$f":"IF(COUNT(H27:$AA$15007)=0,\"\",SUM(AC5:AC65545))","v":""},null,1]
[{"$nulls":3},4,"Bodies Corporate",null,"HERALD COMMERCE LIMITED","AAACH6763J",1,91100,null,null,91100,{"$f":"+IFERROR(IF(COUNT(M18),ROUND(M18/'Shareholding Pattern'!$L$57*100,2),\"\"),0)","v":1.54},{"v":91100,"d":"91100.00"},null,{"v":91100,"d":"91100.00"},{"$f":"+IFERROR(IF(COUNT(Q18),ROUND(Q18/('Shareholding Pattern'!$P$58)*100,2),\"\"),0)","v":1.54},null,null,"",{"$f":"+IFERROR(IF(COUNT(M18,U18),ROUND(SUM(U18,M18)/SUM('Shareholding Pattern'!$L$57,'Shareholding Pattern'!$T$57)*100,2),\"\"),0)","v":1.54},null,"",null,"",0,null,null,{"$f":"IF(COUNT(H28:$AA$15007)=0,\"\",SUM(AC6:AC65546))","v":""},null,1]
[{"$nulls":3},5,"Bodies Corporate",null,"NAMOKAR MARKETING LIMITED","AABCN1474B",1,268200,null,null,268200,{"$f":"+IFERROR(IF(COUNT(M19),ROUND(M19/'Shareholding Pattern'!$L$57*100,2),\"\"),0)","v":4.52},{"v":268200,"d":"268200.00"},null,{"v":268200,"d":"268200.00"},{"$f":"+IFERROR(IF(COUNT(Q19),ROUND(Q19/('Shareholding Pattern'!$P$58)*100,2),\"\"),0)","v":4.52},null,null,"",{"$f":"+IFERROR(IF(COUNT(M19,U19),ROUND(SUM(U19,M19)/SUM('Shareholding Pattern'!$L$57,'Shareholding Pattern'!$T$57)*100,2),\"\"),0)","v":4.52},null,"",null,"",0,null,null,{"$f":"IF(COUNT(H29:$AA$15007)=0,\"\",SUM(AC7:AC65547))","v":""},null,1]
[{"$nulls":3},6,"Bodies Corporate",null,"RADIO SUPPLY STORES(CINEMA)PVT.LTD","AABCR4304A",1,399900,null,null,399900,{"$f":"+IFERROR(IF(COUNT(M20),ROUND(M20/'Shareholding Pattern'!$L$57*100,2),\"\"),0)","v":6.74},{"v":399900,"d":"399900.00"},null,{"v":399900,"d":"399900.00"},{"$f":"+IFERROR(IF(COUNT(Q20),ROUND(Q20/('Shareholding Pattern'!$P$58)*100,2),\"\"),0)","v":6.74},null,null,"",{"$f":"+IFERROR(IF(COUNT(M20,U20),ROUND(SUM(U20,M20)/SUM('Shareholding Pattern'!$L$57,'Shareholding Pattern'!$T$57)*100,2),\"\"),0)","v":6.74},null,"",null,"",0,null,null,{"$f":"IF(COUNT(H30:$AA$15007)=0,\"\",SUM(AC8:AC65548))","v":""},null,1]
[{"$nulls":3},7,"Bodies Corporate",null,"SETHI FLOUR MILLS(P) LTD.","AADCS2031H",1,700,null,null,700,{"$f":"+IFERROR(IF(COUNT(M21),ROUND(M21/'Shareholding Pattern'!$L$57*100,2),\"\"),0)","v":0.01},{"v":700,"d":"700.00"},null,{"v":700,"d":"700.00"},{"$f":"+IFERROR(IF(COUNT(Q21),ROUND(Q21/('Shareholding Pattern'!$P$58)*100,2),\"\"),0)","v":0.01},null,null,"",{"$f":"+IFERROR(IF(COUNT(M21,U21),ROUND(SUM(U21,M21)/SUM('Shareholding Pattern'!$L$57,'Shareholding Pattern'!$T$57)*100,2),\"\"),0)","v":0.01},null,"",null,"",0,null,null,{"$f":"IF(COUNT(H31:$AA$15007)=0,\"\",SUM(AC9:AC65549))","v":""},null,1]
[{"$nulls":3},8,"Bodies Corporate",null,"SHEETAL FARMS LTD.","AADCS7830C",1,700800,null,null,700800,{"$f":"+IFERROR(IF(COUNT(M22),ROUND(M22/'Shareholding Pattern'!$L$57*100,2),\"\"),0)","v":11.81},{"v":700800,"d":"700800.00"},null,{"v":700800,"d":"700800.00"},{"$f":"+IFERROR(IF(COUNT(Q22),ROUND(Q22/('Shareholding Pattern'!$P$58)*100,2),\"\"),0)","v":11.81},null,null,"",{"$f":"+IFERROR(IF(COUNT(M22,U22),ROUND(SUM(U22,M22)/SUM('Shareholding Pattern'!$L$57,'Shareholding Pattern'!$T$57)*100,2),\"\"),0)","v":11.81},null,"",null,"",0,null,null,{"$f":"IF(COUNT(H32:$AA$15007)=0,\"\",SUM(AC10:AC65550))","v":""},null,1]
[]
[{"$nulls":4},"Click here to go back",null,null,"Total",{"$f":"+IFERROR(IF(COUNT(I14:I23),ROUND(SUM(I14:I23),0),\"\"),\"\")","v":8},{"$f":"+IFERROR(IF(COUNT(J14:J23),ROUND(SUM(J14:J23),0),\"\"),\"\")","v":1896680},{"$f":"+IFERROR(IF(COUNT(K14:K23),ROUND(SUM(K14:K23),0),\"\"),\"\")","v":""},{"$f":"+IFERROR(IF(COUNT(L14:L23),ROUND(SUM(L14:L23),0),\"\"),\"\")","v":""},{"$f":"+IFERROR(IF(COUNT(M14:M23),ROUND(SUM(M14:M23),0),\"\"),\"\")","v":1896680},{"$f":"+IFERROR(IF(COUNT(M24),ROUND(M24/'Shareholding Pattern'!$L$57*100,2),\"\"),0)","v":31.97},{"$f":"+IFERROR(IF(COUNT(O14:O23),ROUND(SUM(O14:O23),0),\"\"),\"\")","v":{"v":1896680,"d":"1896680.00"}},{"$f":"+IFERROR(IF(COUNT(P14:P23),ROUND(SUM(P14:P23),0),\"\"),\"\")","v":""},{"$f":"+IFERROR(IF(COUNT(Q14:Q23),ROUND(SUM(Q14:Q23),0),\"\"),\"\")","v":{"v":1896680,"d":"1896680.00"}},{"$f":"+IFERROR(IF(COUNT(Q24),ROUND(Q24/('Shareholding Pattern'!$P$58)*100,2),\"\"),0)","v":31.97},{"$f":"+IFERROR(IF(COUNT(S14:S23),ROUND(SUM(S14:S23),0),\"\"),\"\")","v":""},{"$f":"+IFERROR(IF(COUNT(T14:T23),ROUND(SUM(T14:T23),0),\"\"),\"\")","v":""},{"$f":"+IFERROR(IF(COUNT(U14:U23),ROUND(SUM(U14:U23),0),\"\"),\"\")","v":""},{"$f":"+IFERROR(IF(COUNT(M24,U24),ROUND(SUM(U24,M24)/SUM('Shareholding Pattern'!$L$57,'Shareholding Pattern'!$T$57)*100,2),\"\"),0)","v":31.97},{"$f":"+IFERROR(IF(COUNT(W14:W23),ROUND(SUM(W14:W23),0),\"\"),\"\")","v":""},{"$f":"+IFERROR(IF(COUNT(W24),ROUND(SUM(W24)/SUM(M24)*100,2),\"\"),0)","v":""},{"$f":"+IFERROR(IF(COUNT(Y14:Y23),ROUND(SUM(Y14:Y23),0),\"\"),\"\")","v":""},{"$f":"+IFERROR(IF(COUNT(Y24),ROUND(SUM(Y24)/SUM(M24)*100,2),\"\"),0)","v":""},{"$f":"+IFERROR(IF(COUNT(AA14:AA23),ROUND(SUM(AA14:AA23),0),\"\"),\"\")","v":0}]

{"sheet":"Individuals","index":11,"n_rows":16,"n_cols":45,"rows_kept":16,"hidden":true,"merged":[[8,4,10,4],[8,5,10,5],[8,6,10,6],[8,7,10,7],[8,8,10,8],[8,9,10,9],[8,10,10,10],[8,11,10,11],[8,12,8,15],[8,16,10,16],[8,17,10,17],[8,18,10,18],[8,19,10,19],[8,20,9,21],[8,22,9,23],[8,24,10,24],[8,25,10,25],[8,26,10,26],[9,12,9,14],[9,15,10,15]]}
[{"$nulls":8},0]
[{"$nulls":5},"Name of shareholder","Permanent account number of shareholder","Number of fully paid up equity shares","Number of partly paid-up equity shares","Number of shares underlying outstanding depository receipts","Total number of shares","Shareholding as a percentage of total number of shares held by promoters and public shareholders and custodians or DR holders","Number of voting rights held by same class of securities","Number of voting rights held by differential voting rights","Total Number of voting rights","Percentage of total number of voting rights","Number of shares underlying outstanding convertible securities","Number of warrant","Number of warrant and convertible securities","Total shareholding as a percentage assuming full conversion of convertible securities","Number of the locked-in-shares ","Locked-in-shares as a percentage of total number of shares","Pledged or encumbered - number of shares","Pledged or encumbered shares held as percentage of total number of shares","Number of equity shares held in dematerialized form","Reason for not providing PAN","Shareholder type",{"$nulls":16},"Promoter","Promoter Group"]
[]
[]
[]
[]
[]
[]
[{"$nulls":4},"Searial No.","Name\nof the \nShareholders\n     (I)","PAN \n(II)","No. of fully paid up equity shares held\n(IV)","No. Of Partly paid-up equity shares held\n(V)","No. Of shares underlying Depository Receipts\n(VI)","Total nos. shares\nheld\n(VII) = (IV)+(V)+ (VI)","Shareholding as a % of total no. of shares (calculated as per SCRR, 1957)\n(VIII)\nAs a % of (A+B+C2)","Number of Voting Rights held in each class of securities\n(IX)",{"$nulls":3},"No. Of Shares Underlying Outstanding convertible securities\n(X)","No. of Shares Underlying Outstanding Warrants (Xi)","No. Of Shares Underlying Outstanding convertible securities and No. Of Warrants\n(Xi) (a)","Shareholding , as a % assuming full conversion of convertible securities (as a percentage of diluted share capital)\n(XI)= (VII)+(X)\nAs a % of (A+B+C2)","Number of Locked in shares\n(XII)",null,"Number of Shares pledged or otherwise encumbered\n(XIII)",null,"Number of equity shares held in dematerialized form \n(XIV)","Reason for not providing PAN","Shareholder type"]
[{"$nulls":12},"No of Voting (XIV)\nRights",null,null,"Total as\na % of\nTotal\nVoting\nrights"]
[{"$nulls":12},"Class\neg:\nX","Class\neg:y","Total",{"$nulls":5},"No.\n(a)","As a % of total Shares held\n(b)","No.\n(a)","As a % of total Shares held\n(b)"]
[{"$nulls":4},"A2(a)","Individuals (NonResident Individuals/ Foreign Individuals)"]
[{"$nulls":10},{"$f":"+IFERROR(IF(COUNT(H13:J13),ROUND(SUM(H13:J13),0),\"\"),\"\")","v":""},{"$f":"+IFERROR(IF(COUNT(K13),ROUND(K13/'Shareholding Pattern'!$L$57*100,2),\"\"),0)","v":""},{"$f":"IF(H13=\"\",\"\",H13)","v":""},null,{"$f":"+IFERROR(IF(COUNT(M13:N13),ROUND(SUM(M13,N13),2),\"\"),\"\")","v":""},{"$f":"+IFERROR(IF(COUNT(O13),ROUND(O13/('Shareholding Pattern'!$P$58)*100,2),\"\"),0)","v":""},null,null,{"$f":"+IFERROR(IF(COUNT(Q13:R13),ROUND(SUM(Q13:R13),0),\"\"),\"\")","v":""},{"$f":"+IFERROR(IF(COUNT(K13,S13),ROUND(SUM(S13,K13)/SUM('Shareholding Pattern'!$L$57,'Shareholding Pattern'!$T$57)*100,2),\"\"),0)","v":""},null,{"$f":"+IFERROR(IF(COUNT(U13),ROUND(SUM(U13)/SUM(K13)*100,2),\"\"),0)","v":""},null,{"$f":"+IFERROR(IF(COUNT(W13),ROUND(SUM(W13)/SUM(K13)*100,2),\"\"),0)","v":""},{"$nulls":4},{"$f":"IF(SUM(H13:Y13)>0,1,0)","v":0},{"$f":"IF(COUNT(H15:$Y$15000)=0,\"\",SUM(AC1:AC65533))","v":""}]
[]
[]
[{"$nulls":5},"Click here to go back","Total",{"$f":"+IFERROR(IF(COUNT(H14:H15),ROUND(SUM(H14:H15),0),\"\"),\"\")","v":""},{"$f":"+IFERROR(IF(COUNT(I14:I15),ROUND(SUM(I14:I15),0),\"\"),\"\")","v":""},{"$f":"+IFERROR(IF(COUNT(J14:J15),ROUND(SUM(J14:J15),0),\"\"),\"\")","v":""},{"$f":"+IFERROR(IF(COUNT(K14:K15),ROUND(SUM(K14:K15),0),\"\"),\"\")","v":""},{"$f":"+IFERROR(IF(COUNT(K16),ROUND(K16/'Shareholding Pattern'!$L$57*100,2),\"\"),0)","v":""},{"$f":"+IFERROR(IF(COUNT(M14:M15),ROUND(SUM(M14:M15),0),\"\"),\"\")","v":""},{"$f":"+IFERROR(IF(COUNT(N14:N15),ROUND(SUM(N14:N15),0),\"\"),\"\")","v":""},{"$f":"+IFERROR(IF(COUNT(O14:O15),ROUND(SUM(O14:O15),0),\"\"),\"\")","v":""},{"$f":"+IFERROR(IF(COUNT(O16),ROUND(O16/('Shareholding Pattern'!$P$58)*100,2),\"\"),0)","v":""},{"$f":"+IFERROR(IF(COUNT(Q14:Q15),ROUND(SUM(Q14:Q15),0),\"\"),\"\")","v":""},{"$f":"+IFERROR(IF(COUNT(R14:R15),ROUND(SUM(R14:R15),0),\"\"),\"\")","v":""},{"$f":"+IFERROR(IF(COUNT(S14:S15),ROUND(SUM(S14:S15),0),\"\"),\"\")","v":""},{"$f":"+IFERROR(IF(COUNT(K16,S16),ROUND(SUM(S16,K16)/SUM('Shareholding Pattern'!$L$57,'Shareholding Pattern'!$T$57)*100,2),\"\"),0)","v":""},{"$f":"+IFERROR(IF(COUNT(U14:U15),ROUND(SUM(U14:U15),0),\"\"),\"\")","v":""},{"$f":"+IFERROR(IF(COUNT(U16),ROUND(SUM(U16)/SUM(K16)*100,2),\"\"),0)","v":""},{"$f":"+IFERROR(IF(COUNT(W14:W15),ROUND(SUM(W14:W15),0),\"\"),\"\")","v":""},{"$f":"+IFERROR(IF(COUNT(W16),ROUND(SUM(W16)/SUM(K16)*100,2),\"\"),0)","v":""},{"$f":"+IFERROR(IF(COUNT(Y14:Y15),ROUND(SUM(Y14:Y15),0),\"\"),\"\")","v":""}]

{"sheet":"Government","index":12,"n_rows":23,"n_cols":45,"rows_kept":23,"hidden":true,"merged":[[8,4,10,4],[8,5,10,5],[8,6,10,6],[8,7,10,7],[8,8,10,8],[8,9,10,9],[8,10,10,10],[8,11,10,11],[8,12,8,15],[8,16,10,16],[8,17,10,17],[8,18,10,18],[8,19,10,19],[8,20,9,21],[8,22,9,23],[8,24,10,24],[8,25,10,25],[8,26,10,26],[9,12,9,14],[9,15,10,15]]}
[{"$nulls":8},0]
[{"$nulls":5},"Name of shareholder","Permanent account number of shareholder","Number of fully paid up equity shares","Number of partly paid-up equity shares","Number of shares underlying outstanding depository receipts","Total number of shares","Shareholding as a percentage of total number of shares held by promoters and public shareholders and custodians or DR holders","Number of voting rights held by same class of securities","Number of voting rights held by differential voting rights","Total Number of voting rights","Percentage of total number of voting rights","Number of shares underlying outstanding convertible securities","Number of warrant","Number of warrant and convertible securities","Total shareholding as a percentage assuming full conversion of convertible securities","Number of the locked-in-shares ","Locked-in-shares as a percentage of total number of shares","Pledged or encumbered - number of shares","Pledged or encumbered shares held as percentage of total number of shares","Number of equity shares held in dematerialized form","Reason for not providing PAN","Shareholder type",{"$nulls":16},"Promoter","Promoter Group"]
[]
[]
[]
[]
[]
[]
[{"$nulls":4},"Searial No.","Name\nof the \nShareholders\n     (I)","PAN \n(II)","No. of fully paid up equity shares held\n(IV)","No. Of Partly paid-up equity shares held\n(V)","No. Of shares underlying Depository Receipts\n(VI)","Total nos. shares\nheld\n(VII) = (IV)+(V)+ (VI)","Shareholding as a % of total no. of shares (calculated as per SCRR, 1957)\n(VIII)\nAs a % of (A+B+C2)","Number of Voting Rights held in each class of securities\n(IX)",{"$nulls":3},"No. Of Shares Underlying Outstanding convertible securities\n(X)","No. of Shares Underlying Outstanding Warrants (Xi)","No. Of Shares Underlying Outstanding convertible securities and No. Of Warrants\n(Xi) (a)","Shareholding , as a % assuming full conversion of convertible securities (as a percentage of diluted share capital)\n(XI)= (VII)+(X)\nAs a % of (A+B+C2)","Number of Locked in shares\n(XII)",null,"Number of Shares pledged or otherwise encumbered\n(XIII)",null,"Number of equity shares held in dematerialized form \n(XIV)","Reason for not providing PAN","Shareholder type"]
[{"$nulls":12},"No of Voting (XIV)\nRights",null,null,"Total as\na % of\nTotal\nVoting\nrights"]
[{"$nulls":12},"Class\neg:\nX","Class\neg:y","Total",{"$nulls":5},"No.\n(a)","As a % of total Shares held\n(b)","No.\n(a)","As a % of total Shares held\n(b)"]
[{"$nulls":4},"A2(a)","Government"]
[{"$nulls":10},{"$f":"+IFERROR(IF(COUNT(H13:J13),ROUND(SUM(H13:J13),0),\"\"),\"\")","v":""},{"$f":"+IFERROR(IF(COUNT(K13),ROUND(K13/'Shareholding Pattern'!$L$57*100,2),\"\"),0)","v":""},{"$f":"IF(H13=\"\",\"\",H13)","v":""},null,{"$f":"+IFERROR(IF(COUNT(M13:N13),ROUND(SUM(M13,N13),2),\"\"),\"\")","v":""},{"$f":"+IFERROR(IF(COUNT(O13),ROUND(O13/('Shareholding Pattern'!$P$58)*100,2),\"\"),0)","v":""},null,null,{"$f":"+IFERROR(IF(COUNT(Q13:R13),ROUND(SUM(Q13:R13),0),\"\"),\"\")","v":""},{"$f":"+IFERROR(IF(COUNT(K13,S13),ROUND(SUM(S13,K13)/SUM('Shareholding Pattern'!$L$57,'Shareholding Pattern'!$T$57)*100,2),\"\"),0)","v":""},null,{"$f":"+IFERROR(IF(COUNT(U13),ROUND(SUM(U13)/SUM(K13)*100,2),\"\"),0)","v":""},null,{"$f":"+IFERROR(IF(COUNT(W13),ROUND(SUM(W13)/SUM(K13)*100,2),\"\"),0)","v":""},{"$nulls":4},{"$f":"IF(SUM(H13:I13)>0,1,0)","v":0},{"$f":"IF(COUNT(H15:$Y$15000)=0,\"\",SUM(AC1:AC65533))","v":""}]
[]
[]
[{"$nulls":5},"Click here to go back","Total",{"$f":"+IFERROR(IF(COUNT(H14:H15),ROUND(SUM(H14:H15),0),\"\"),\"\")","v":""},{"$f":"+IFERROR(IF(COUNT(I14:I15),ROUND(SUM(I14:I15),0),\"\"),\"\")","v":""},{"$f":"+IFERROR(IF(COUNT(J14:J15),ROUND(SUM(J14:J15),0),\"\"),\"\")","v":""},{"$f":"+IFERROR(IF(COUNT(K14:K15),ROUND(SUM(K14:K15),0),\"\"),\"\")","v":""},{"$f":"+IFERROR(IF(COUNT(K16),ROUND(K16/'Shareholding Pattern'!$L$57*100,2),\"\"),0)","v":""},{"$f":"+IFERROR(IF(COUNT(M14:M15),ROUND(SUM(M14:M15),0),\"\"),\"\")","v":""},{"$f":"+IFERROR(IF(COUNT(N14:N15),ROUND(SUM(N14:N15),0),\"\"),\"\")","v":""},{"$f":"+IFERROR(IF(COUNT(O14:O15),ROUND(SUM(O14:O15),0),\"\"),\"\")","v":""},{"$f":"+IFERROR(IF(COUNT(O16),ROUND(O16/('Shareholding Pattern'!$P$58)*100,2),\"\"),0)","v":""},{"$f":"+IFERROR(IF(COUNT(Q14:Q15),ROUND(SUM(Q14:Q15),0),\"\"),\"\")","v":""},{"$f":"+IFERROR(IF(COUNT(R14:R15),ROUND(SUM(R14:R15),0),\"\"),\"\")","v":""},{"$f":"+IFERROR(IF(COUNT(S14:S15),ROUND(SUM(S14:S15),0),\"\"),\"\")","v":""},{"$f":"+IFERROR(IF(COUNT(K16,S16),ROUND(SUM(S16,K16)/SUM('Shareholding Pattern'!$L$57,'Shareholding Pattern'!$T$57)*100,2),\"\"),0)","v":""},{"$f":"+IFERROR(IF(COUNT(U14:U15),ROUND(SUM(U14:U15),0),\"\"),\"\")","v":""},{"$f":"+IFERROR(IF(COUNT(U16),ROUND(SUM(U16)/SUM(K16)*100,2),\"\"),0)","v":""},{"$f":"+IFERROR(IF(COUNT(W14:W15),ROUND(SUM(W14:W15),0),\"\"),\"\")","v":""},{"$f":"+IFERROR(IF(COUNT(W16),ROUND(SUM(W16)/SUM(K16)*100,2),\"\"),0)","v":""},{"$f":"+IFERROR(IF(COUNT(Y14:Y15),ROUND(SUM(Y14:Y15),0),\"\"),\"\")","v":""}]
[]
[]
[]
[]
[]
[]
[{"$nulls":8}," "]

{"sheet":"Institutions","index":13,"n_rows":16,"n_cols":45,"rows_kept":16,"hidden":true,"merged":[[8,4,10,4],[8,5,10,5],[8,6,10,6],[8,7,10,7],[8,8,10,8],[8,9,10,9],[8,10,10,10],[8,11,10,11],[8,12,8,15],[8,16,10,16],[8,17,10,17],[8,18,10,18],[8,19,10,19],[8,20,9,21],[8,22,9,23],[8,24,10,24],[8,25,10,25],[8,26,10,26],[9,12,9,14],[9,15,10,15]]}
[{"$nulls":8},0]
[{"$nulls":5},"Name of shareholder","Permanent account number of shareholder","Number of fully paid up equity shares","Number of partly paid-up equity shares","Number of shares underlying outstanding depository receipts","Total number of shares","Shareholding as a percentage of total number of shares held by promoters and public shareholders and custodians or DR holders","Number of voting rights held by same class of securities","Number of voting rights held by differential voting rights","Total Number of voting rights","Percentage of total number of voting rights","Number of shares underlying outstanding convertible securities","Number of warrant","Number of warrant and convertible securities","Total shareholding as a percentage assuming full conversion of convertible securities","Number of the locked-in-shares ","Locked-in-shares as a percentage of total number of shares","Pledged or encumbered - number of shares","Pledged or encumbered shares held as percentage of total number of shares","Number of equity shares held in dematerialized form","Reason for not providing PAN","Shareholder type",{"$nulls":16},"Promoter","Promoter Group"]
[]
[]
[]
[]
[{"$nulls":43},"Trusts"]
[{"$nulls":43},"Societies"]
[{"$nulls":4},"Searial No.","Name\nof the \nShareholders\n     (I)","PAN \n(II)","No. of fully paid up equity shares held\n(IV)","No. Of Partly paid-up equity shares held\n(V)","No. Of shares underlying Depository Receipts\n(VI)","Total nos. shares\nheld\n(VII) = (IV)+(V)+ (VI)","Shareholding as a % of total no. of shares (calculated as per SCRR, 1957)\n(VIII)\nAs a % of (A+B+C2)","Number of Voting Rights held in each class of securities\n(IX)",{"$nulls":3},"No. Of Shares Underlying Outstanding convertible securities\n(X)","No. of Shares Underlying Outstanding Warrants (Xi)","No. Of Shares Underlying Outstanding convertible securities and No. Of Warrants\n(Xi) (a)","Shareholding , as a % assuming full conversion of convertible securities (as a percentage of diluted share capital)\n(XI)= (VII)+(X)\nAs a % of (A+B+C2)","Number of Locked in shares\n(XII)",null,"Number of Shares pledged or otherwise encumbered\n(XIII)",null,"Number of equity shares held in dematerialized form \n(XIV)","Reason for not providing PAN","Shareholder type",{"$nulls":16},"ESOP or ESOS or ESPS"]
[{"$nulls":12},"No of Voting (XIV)\nRights",null,null,"Total as\na % of\nTotal\nVoting\nrights",{"$nulls":27},"Employee welfare fund"]
[{"$nulls":12},"Class\neg:\nX","Class\neg:y","Total",{"$nulls":5},"No.\n(a)","As a % of total Shares held\n(b)","No.\n(a)","As a % of total Shares held\n(b)",{"$nulls":19},"Overseas corporate bodies"]
[{"$nulls":4},"A2(c)","Institutions",{"$nulls":37},"Venture capital funds"]
[{"$nulls":10},{"$f":"+IFERROR(IF(COUNT(H13:J13),ROUND(SUM(H13:J13),0),\"\"),\"\")","v":""},{"$f":"+IFERROR(IF(COUNT(K13),ROUND(K13/'Shareholding Pattern'!$L$57*100,2),\"\"),0)","v":""},{"$f":"IF(H13=\"\",\"\",H13)","v":""},null,{"$f":"+IFERROR(IF(COUNT(M13:N13),ROUND(SUM(M13,N13),2),\"\"),\"\")","v":""},{"$f":"+IFERROR(IF(COUNT(O13),ROUND(O13/('Shareholding Pattern'!$P$58)*100,2),\"\"),0)","v":""},null,null,{"$f":"+IFERROR(IF(COUNT(Q13:R13),ROUND(SUM(Q13:R13),0),\"\"),\"\")","v":""},{"$f":"+IFERROR(IF(COUNT(K13,S13),ROUND(SUM(S13,K13)/SUM('Shareholding Pattern'!$L$57,'Shareholding Pattern'!$T$57)*100,2),\"\"),0)","v":""},null,{"$f":"+IFERROR(IF(COUNT(U13),ROUND(SUM(U13)/SUM(K13)*100,2),\"\"),0)","v":""},null,{"$f":"+IFERROR(IF(COUNT(W13),ROUND(SUM(W13)/SUM(K13)*100,2),\"\"),0)","v":""},{"$nulls":4},{"$f":"IF(SUM(H13:Y13)>0,1,0)","v":0},{"$f":"IF(COUNT(H15:$Y$15000)=0,\"\",SUM(AC1:AC65533))","v":""},{"$nulls":13},"Angel Investors"]
[{"$nulls":43},"Private Equity Fund"]
[]
[{"$nulls":5},"Click here to go back","Total",{"$f":"+IFERROR(IF(COUNT(H14:H15),ROUND(SUM(H14:H15),0),\"\"),\"\")","v":""},{"$f":"+IFERROR(IF(COUNT(I14:I15),ROUND(SUM(I14:I15),0),\"\"),\"\")","v":""},{"$f":"+IFERROR(IF(COUNT(J14:J15),ROUND(SUM(J14:J15),0),\"\"),\"\")","v":""},{"$f":"+IFERROR(IF(COUNT(K14:K15),ROUND(SUM(K14:K15),0),\"\"),\"\")","v":""},{"$f":"+IFERROR(IF(COUNT(K16),ROUND(K16/'Shareholding Pattern'!$L$57*100,2),\"\"),0)","v":""},{"$f":"+IFERROR(IF(COUNT(M14:M15),ROUND(SUM(M14:M15),0),\"\"),\"\")","v":""},{"$f":"+IFERROR(IF(COUNT(N14:N15),ROUND(SUM(N14:N15),0),\"\"),\"\")","v":""},{"$f":"+IFERROR(IF(COUNT(O14:O15),ROUND(SUM(O14:O15),0),\"\"),\"\")","v":""},{"$f":"+IFERROR(IF(COUNT(O16),ROUND(O16/('Shareholding Pattern'!$P$58)*100,2),\"\"),0)","v":""},{"$f":"+IFERROR(IF(COUNT(Q14:Q15),ROUND(SUM(Q14:Q15),0),\"\"),\"\")","v":""},{"$f":"+IFERROR(IF(COUNT(R14:R15),ROUND(SUM(R14:R15),0),\"\"),\"\")","v":""},{"$f":"+IFERROR(IF(COUNT(S14:S15),ROUND(SUM(S14:S15),0),\"\"),\"\")","v":""},{"$f":"+IFERROR(IF(COUNT(K16,S16),ROUND(SUM(S16,K16)/SUM('Shareholding Pattern'!$L$57,'Shareholding Pattern'!$T$57)*100,2),\"\"),0)","v":""},{"$f":"+IFERROR(IF(COUNT(U14:U15),ROUND(SUM(U14:U15),0),\"\"),\"\")","v":""},{"$f":"+IFERROR(IF(COUNT(U16),ROUND(SUM(U16)/SUM(K16)*100,2),\"\"),0)","v":""},{"$f":"+IFERROR(IF(COUNT(W14:W15),ROUND(SUM(W14:W15),0),\"\"),\"\")","v":""},{"$f":"+IFERROR(IF(COUNT(W16),ROUND(SUM(W16)/SUM(K16)*100,2),\"\"),0)","v":""},{"$f":"+IFERROR(IF(COUNT(Y14:Y15),ROUND(SUM(Y14:Y15),0),\"\"),\"\")","v":""}]

{"sheet":"FPIPromoter","index":14,"n_rows":16,"n_cols":45,"rows_kept":16,"hidden":true,"merged":[[8,4,10,4],[8,5,10,5],[8,6,10,6],[8,7,10,7],[8,8,10,8],[8,9,10,9],[8,10,10,10],[8,11,10,11],[8,12,8,15],[8,16,10,16],[8,17,10,17],[8,18,10,18],[8,19,10,19],[8,20,9,21],[8,22,9,23],[8,24,10,24],[8,25,10,25],[8,26,10,26],[9,12,9,14],[9,15,10,15]]}
[{"$nulls":8},0]
[{"$nulls":5},"Name of shareholder","Permanent account number of shareholder","Number of fully paid up equity shares","Number of partly paid-up equity shares","Number of shares underlying outstanding depository receipts","Total number of shares","Shareholding as a percentage of total number of shares held by promoters and public shareholders and custodians or DR holders","Number of voting rights held by same class of securities","Number of voting rights held by differential voting rights","Total Number of voting rights","Percentage of total number of voting rights","Number of shares underlying outstanding convertible securities","Number of warrant","Number of warrant and convertible securities","Total shareholding as a percentage assuming full conversion of convertible securities","Number of the locked-in-shares ","Locked-in-shares as a percentage of total number of shares","Pledged or encumbered - number of shares","Pledged or encumbered shares held as percentage of total number of shares","Number of equity shares held in dematerialized form","Reason for not providing PAN","Shareholder type",{"$nulls":16},"Promoter","Promoter Group"]
[]
[]
[]
[]
[{"$nulls":43},"Trusts"]
[{"$nulls":43},"Societies"]
[{"$nulls":4},"Searial No.","Name\nof the \nShareholders\n     (I)","PAN \n(II)","No. of fully paid up equity shares held\n(IV)","No. Of Partly paid-up equity shares held\n(V)","No. Of shares underlying Depository Receipts\n(VI)","Total nos. shares\nheld\n(VII) = (IV)+(V)+ (VI)","Shareholding as a % of total no. of shares (calculated as per SCRR, 1957)\n(VIII)\nAs a % of (A+B+C2)","Number of Voting Rights held in each class of securities\n(IX)",{"$nulls":3},"No. Of Shares Underlying Outstanding convertible securities\n(X)","No. of Shares Underlying Outstanding Warrants (Xi)","No. Of Shares Underlying Outstanding convertible securities and No. Of Warrants\n(Xi) (a)","Shareholding , as a % assuming full conversion of convertible securities (as a percentage of diluted share capital)\n(XI)= (VII)+(X)\nAs a % of (A+B+C2)","Number of Locked in shares\n(XII)",null,"Number of Shares pledged or otherwise encumbered\n(XIII)",null,"Number of equity shares held in dematerialized form \n(XIV)","Reason for not providing PAN","Shareholder type",{"$nulls":16},"ESOP or ESOS or ESPS"]
[{"$nulls":12},"No of Voting (XIV)\nRights",null,null,"Total as\na % of\nTotal\nVoting\nrights",{"$nulls":27},"Employee welfare fund"]
[{"$nulls":12},"Class\neg:\nX","Class\neg:y","Total",{"$nulls":5},"No.\n(a)","As a % of total Shares held\n(b)","No.\n(a)","As a % of total Shares held\n(b)",{"$nulls":19},"Overseas corporate bodies"]
[{"$nulls":4},"A2(d)","Foreign Portfolio Investor",{"$nulls":37},"Venture capital funds"]
[{"$nulls":10},{"$f":"+IFERROR(IF(COUNT(H13:J13),ROUND(SUM(H13:J13),0),\"\"),\"\")","v":""},{"$f":"+IFERROR(IF(COUNT(K13),ROUND(K13/'Shareholding Pattern'!$L$57*100,2),\"\"),0)","v":""},{"$f":"IF(H13=\"\",\"\",H13)","v":""},null,{"$f":"+IFERROR(IF(COUNT(M13:N13),ROUND(SUM(M13,N13),2),\"\"),\"\")","v":""},{"$f":"+IFERROR(IF(COUNT(O13),ROUND(O13/('Shareholding Pattern'!$P$58)*100,2),\"\"),0)","v":""},null,null,{"$f":"+IFERROR(IF(COUNT(Q13:R13),ROUND(SUM(Q13:R13),0),\"\"),\"\")","v":""},{"$f":"+IFERROR(IF(COUNT(K13,S13),ROUND(SUM(S13,K13)/SUM('Shareholding Pattern'!$L$57,'Shareholding Pattern'!$T$57)*100,2),\"\"),0)","v":""},null,{"$f":"+IFERROR(IF(COUNT(U13),ROUND(SUM(U13)/SUM(K13)*100,2),\"\"),0)","v":""},null,{"$f":"+IFERROR(IF(COUNT(W13),ROUND(SUM(W13)/SUM(K13)*100,2),\"\"),0)","v":""},{"$nulls":4},{"$f":"IF(SUM(H13:Y13)>0,1,0)","v":0},{"$f":"IF(COUNT(H15:$Y$15000)=0,\"\",SUM(AC1:AC65533))","v":""},{"$nulls":13},"Angel Investors"]
[{"$nulls":43},"Private Equity Fund"]
[]
[{"$nulls":5},"Click here to go back ","Total",{"$f":"+IFERROR(IF(COUNT(H14:H15),ROUND(SUM(H14:H15),0),\"\"),\"\")","v":""},{"$f":"+IFERROR(IF(COUNT(I14:I15),ROUND(SUM(I14:I15),0),\"\"),\"\")","v":""},{"$f":"+IFERROR(IF(COUNT(J14:J15),ROUND(SUM(J14:J15),0),\"\"),\"\")","v":""},{"$f":"+IFERROR(IF(COUNT(K14:K15),ROUND(SUM(K14:K15),0),\"\"),\"\")","v":""},{"$f":"+IFERROR(IF(COUNT(K16),ROUND(K16/'Shareholding Pattern'!$L$57*100,2),\"\"),0)","v":""},{"$f":"+IFERROR(IF(COUNT(M14:M15),ROUND(SUM(M14:M15),0),\"\"),\"\")","v":""},{"$f":"+IFERROR(IF(COUNT(N14:N15),ROUND(SUM(N14:N15),0),\"\"),\"\")","v":""},{"$f":"+IFERROR(IF(COUNT(O14:O15),ROUND(SUM(O14:O15),0),\"\"),\"\")","v":""},{"$f":"+IFERROR(IF(COUNT(O16),ROUND(O16/('Shareholding Pattern'!$P$58)*100,2),\"\"),0)","v":""},{"$f":"+IFERROR(IF(COUNT(Q14:Q15),ROUND(SUM(Q14:Q15),0),\"\"),\"\")","v":""},{"$f":"+IFERROR(IF(COUNT(R14:R15),ROUND(SUM(R14:R15),0),\"\"),\"\")","v":""},{"$f":"+IFERROR(IF(COUNT(S14:S15),ROUND(SUM(S14:S15),0),\"\"),\"\")","v":""},{"$f":"+IFERROR(IF(COUNT(K16,S16),ROUND(SUM(S16,K16)/SUM('Shareholding Pattern'!$L$57,'Shareholding Pattern'!$T$57)*100,2),\"\"),0)","v":""},{"$f":"+IFERROR(IF(COUNT(U14:U15),ROUND(SUM(U14:U15),0),\"\"),\"\")","v":""},{"$f":"+IFERROR(IF(COUNT(U16),ROUND(SUM(U16)/SUM(K16)*100,2),\"\"),0)","v":""},{"$f":"+IFERROR(IF(COUNT(W14:W15),ROUND(SUM(W14:W15),0),\"\"),\"\")","v":""},{"$f":"+IFERROR(IF(COUNT(W16),ROUND(SUM(W16)/SUM(K16)*100,2),\"\"),0)","v":""},{"$f":"+IFERROR(IF(COUNT(Y14:Y15),ROUND(SUM(Y14:Y15),0),\"\"),\"\")","v":""}]

{"sheet":"OtherForeign","index":15,"n_rows":16,"n_cols":53,"rows_kept":16,"hidden":true,"merged":[[8,3,10,3],[8,4,10,4],[8,5,10,5],[8,6,10,6],[8,7,10,7],[8,8,10,8],[8,9,10,9],[8,10,10,10],[8,11,10,11],[8,12,10,12],[8,13,10,13],[8,14,8,17],[8,18,10,18],[8,19,10,19],[8,20,10,20],[8,21,10,21],[8,22,9,23],[8,24,9,25],[8,26,10,26],[8,27,10,27],[8,28,10,28],[9,14,9,16],[9,17,10,17]]}
[{"$nulls":8},0]
[{"$nulls":4},"Category of other foreign shareholders","Category or more than one percentage","Name of shareholder","Permanent account number of shareholder","Number of shareholders","Number of fully paid up equity shares","Number of partly paid-up equity shares","Number of shares underlying outstanding depository receipts","Total number of shares","Shareholding as a percentage of total number of shares held by promoters and public shareholders and custodians or DR holders","Number of voting rights held by same class of securities","Number of voting rights held by differential voting rights","Total Number of voting rights","Percentage of total number of voting rights","Number of shares underlying outstanding convertible securities","Number of warrant","Number of warrant and convertible securities","Total shareholding as a percentage assuming full conversion of convertible securities","Number of the locked-in-shares ","Locked-in-shares as a percentage of total number of shares","Pledged or encumbered - number of shares","Pledged or encumbered shares held as percentage of total number of shares","Number of equity shares held in dematerialized form","Reason for not providing PAN","Shareholder type",{"$nulls":14},"Promoter","Promoter Group"]
[{"$nulls":43},"Bodies Corporate","Clearing Member","Employee Welfare Fund","Firms","Other","Overseas Corporate Bodies","Private Equity Fund","Societies","Trust","Venture Capital Fund"]
[]
[]
[]
[]
[]
[{"$nulls":3},"Searial No.","Category",null,"Name\nof the \nShareholders\n     (I)","PAN \n(II)","No.\nof the \nShareholders\n     (I)","No. of fully paid up equity shares held\n(IV)","No. Of Partly paid-up equity shares held\n(V)","No. Of shares underlying Depository Receipts\n(VI)","Total nos. shares\nheld\n(VII) = (IV)+(V)+ (VI)","Shareholding as a % of total no. of shares (calculated as per SCRR, 1957)\n(VIII)\nAs a % of (A+B+C2)","Number of Voting Rights held in each class of securities\n(IX)",{"$nulls":3},"No. Of Shares Underlying Outstanding convertible securities\n(X)","No. of Shares Underlying Outstanding Warrants (Xi)","No. Of Shares Underlying Outstanding convertible securities and No. Of Warrants\n(Xi) (a)","Shareholding , as a % assuming full conversion of convertible securities (as a percentage of diluted share capital)\n(XI)= (VII)+(X)\nAs a % of (A+B+C2)","Number of Locked in shares\n(XII)",null,"Number of Shares pledged or otherwise encumbered\n(XIII)",null,"Number of equity shares held in dematerialized form \n(XIV)","Reason for not providing PAN","Shareholder type",{"$nulls":18},"Category"]
[{"$nulls":14},"No of Voting (XIV)\nRights",null,null,"Total as\na % of\nTotal\nVoting\nrights",{"$nulls":29},"More than 1 percentage of shareholding"]
[{"$nulls":14},"Class\neg:\nX","Class\neg:y","Total",{"$nulls":5},"No.\n(a)","As a % of total Shares held\n(b)","No.\n(a)","As a % of total Shares held\n(b)"]
[{"$nulls":3},"A2(d)","Any Other (specify)"]
[{"$nulls":12},{"$f":"+IFERROR(IF(COUNT(J13:L13),ROUND(SUM(J13:L13),0),\"\"),\"\")","v":""},{"$f":"+IFERROR(IF(COUNT(M13),ROUND(M13/'Shareholding Pattern'!$L$57*100,2),\"\"),0)","v":""},{"$f":"IF(J13=\"\",\"\",J13)","v":""},null,{"$f":"+IFERROR(IF(COUNT(O13:P13),ROUND(SUM(O13,P13),0),\"\"),\"\")","v":""},{"$f":"+IFERROR(IF(COUNT(Q13),ROUND(Q13/('Shareholding Pattern'!$P$58)*100,2),\"\"),0)","v":""},null,null,{"$f":"+IFERROR(IF(COUNT(S13:T13),ROUND(SUM(S13:T13),0),\"\"),\"\")","v":""},{"$f":"+IFERROR(IF(COUNT(M13,U13),ROUND(SUM(U13,M13)/SUM('Shareholding Pattern'!$L$57,'Shareholding Pattern'!$T$57)*100,2),\"\"),0)","v":""},null,{"$f":"+IFERROR(IF(W13=\"\",\"\",(IF(COUNT(W13,M13),ROUND(SUM(W13)/SUM(M13)*100,2),\"\"))),0)","v":""},null,{"$f":"+IFERROR(IF(Y13=\"\",\"\",(IF(COUNT(Y13,M13),ROUND(SUM(Y13)/SUM(M13)*100,2),\"\"))),0)","v":""},{"$nulls":5},{"$f":"IF(SUM(I13:AA13),1,0)","v":0},{"$f":"IF(COUNT(H15:$Y$14998)=0,\"\",SUM(AF1:AF65531))","v":""}]
[]
[]
[{"$nulls":6},"Click here to go back","Total",{"$f":"+IFERROR(IF(COUNT(I14:I15),ROUND(SUM(I14:I15),0),\"\"),\"\")","v":""},{"$f":"+IFERROR(IF(COUNT(J14:J15),ROUND(SUM(J14:J15),0),\"\"),\"\")","v":""},{"$f":"+IFERROR(IF(COUNT(K14:K15),ROUND(SUM(K14:K15),0),\"\"),\"\")","v":""},{"$f":"+IFERROR(IF(COUNT(L14:L15),ROUND(SUM(L14:L15),0),\"\"),\"\")","v":""},{"$f":"+IFERROR(IF(COUNT(M14:M15),ROUND(SUM(M14:M15),0),\"\"),\"\")","v":""},{"$f":"+IFERROR(IF(COUNT(M16),ROUND(M16/'Shareholding Pattern'!$L$57*100,2),\"\"),0)","v":""},{"$f":"+IFERROR(IF(COUNT(O14:O15),ROUND(SUM(O14:O15),0),\"\"),\"\")","v":""},{"$f":"+IFERROR(IF(COUNT(P14:P15),ROUND(SUM(P14:P15),0),\"\"),\"\")","v":""},{"$f":"+IFERROR(IF(COUNT(Q14:Q15),ROUND(SUM(Q14:Q15),0),\"\"),\"\")","v":""},{"$f":"+IFERROR(IF(COUNT(Q16),ROUND(Q16/('Shareholding Pattern'!$P$58)*100,2),\"\"),0)","v":""},{"$f":"+IFERROR(IF(COUNT(S14:S15),ROUND(SUM(S14:S15),0),\"\"),\"\")","v":""},{"$f":"+IFERROR(IF(COUNT(T14:T15),ROUND(SUM(T14:T15),0),\"\"),\"\")","v":""},{"$f":"+IFERROR(IF(COUNT(U14:U15),ROUND(SUM(U14:U15),0),\"\"),\"\")","v":""},{"$f":"+IFERROR(IF(COUNT(M16,U16),ROUND(SUM(U16,M16)/SUM('Shareholding Pattern'!$L$57,'Shareholding Pattern'!$T$57)*100,2),\"\"),0)","v":""},{"$f":"+IFERROR(IF(COUNT(W14:W15),ROUND(SUM(W14:W15),0),\"\"),\"\")","v":""},{"$f":"+IFERROR(IF(COUNT(W16,J16),ROUND(SUM(W16)/SUM(M16)*100,2),\"\"),0)","v":""},{"$f":"+IFERROR(IF(COUNT(Y14:Y15),ROUND(SUM(Y14:Y15),0),\"\"),\"\")","v":""},{"$f":"+IFERROR(IF(COUNT(Y16,J16),ROUND(SUM(Y16)/SUM(M16)*100,2),\"\"),0)","v":""},{"$f":"+IFERROR(IF(COUNT(AA14:AA15),ROUND(SUM(AA14:AA15),0),\"\"),\"\")","v":""}]

{"sheet":"MutuaFund","index":16,"n_rows":16,"n_cols":44,"rows_kept":16,"hidden":true,"merged":[[8,4,10,4],[8,5,10,5],[8,6,10,6],[8,7,10,7],[8,8,10,8],[8,9,10,9],[8,10,10,10],[8,11,10,11],[8,12,8,15],[8,16,10,16],[8,17,10,17],[8,18,10,18],[8,19,10,19],[8,20,9,21],[8,22,10,22],[8,23,10,23],[9,12,9,14],[9,15,10,15]]}
[{"$nulls":8},0]
[{"$nulls":5},"Name of shareholder","Permanent account number of shareholder","Number of fully paid up equity shares","Number of partly paid-up equity shares","Number of shares underlying outstanding depository receipts","Total number of shares","Shareholding as a percentage of total number of shares held by promoters and public shareholders and custodians or DR holders","Number of voting rights held by same class of securities","Number of voting rights held by differential voting rights","Total Number of voting rights","Percentage of total number of voting rights","Number of shares underlying outstanding convertible securities","Number of warrant","Number of warrant and convertible securities","Total shareholding as a percentage assuming full conversion of convertible securities","Number of the locked-in-shares ","Locked-in-shares as a percentage of total number of shares","Number of equity shares held in dematerialized form","Reason for not providing PAN"]
[]
[]
[]
[]
[{"$nulls":43},"NRI"]
[{"$nulls":43},"Trusts"]
[{"$nulls":4},"Searial No.","Name\nof the \nShareholders\n     (I)","PAN \n(II)","No. of fully paid up equity shares held\n(IV)","No. Of Partly paid-up equity shares held\n(V)","No. Of shares underlying Depository Receipts\n(VI)","Total nos. shares\nheld\n(VII) = (IV)+(V)+ (VI)","Shareholding as a % of total no. of shares (calculated as per SCRR, 1957)\n(VIII)\nAs a % of (A+B+C2)","Number of Voting Rights held in each class of securities\n(IX)",{"$nulls":3},"No. Of Shares Underlying Outstanding convertible securities\n(X)","No. of Shares Underlying Outstanding Warrants (Xi)","No. Of Shares Underlying Outstanding convertible securities and No. Of Warrants\n(Xi) (a)","Shareholding , as a % assuming full conversion of convertible securities (as a percentage of diluted share capital)\n(XI)= (VII)+(X)\nAs a % of (A+B+C2)","Number of Locked in shares\n(XII)",null,"Number of equity shares held in dematerialized form \n(XIV)","Reason for not providing PAN",{"$nulls":19},"Market Maker"]
[{"$nulls":12},"No of Voting (XIV)\nRights",null,null,"Total as\na % of\nTotal\nVoting\nrights",{"$nulls":27},"HUF"]
[{"$nulls":12},"Class\neg:\nX","Class\neg:y","Total",{"$nulls":5},"No.\n(a)","As a % of total Shares held\n(b)",{"$nulls":21},"Clearing Members"]
[{"$nulls":4},"B1(a)","Mutual Funds",{"$nulls":37},"NSDL or CDSL transit"]
[{"$nulls":10},{"$f":"+IFERROR(IF(COUNT(H13:J13),ROUND(SUM(H13:J13),0),\"\"),\"\")","v":""},{"$f":"+IFERROR(IF(COUNT(K13),ROUND(K13/'Shareholding Pattern'!$L$57*100,2),\"\"),\"\")","v":""},{"$f":"IF(H13=\"\",\"\",H13)","v":""},null,{"$f":"+IFERROR(IF(COUNT(M13:N13),ROUND(SUM(M13,N13),2),\"\"),\"\")","v":""},{"$f":"+IFERROR(IF(COUNT(O13),ROUND(O13/('Shareholding Pattern'!$P$58)*100,2),\"\"),\"\")","v":""},null,null,{"$f":"+IFERROR(IF(COUNT(Q13:R13),ROUND(SUM(Q13:R13),0),\"\"),\"\")","v":""},{"$f":"+IFERROR(IF(COUNT(K13,S13),ROUND(SUM(S13,K13)/SUM('Shareholding Pattern'!$L$57,'Shareholding Pattern'!$T$57)*100,2),\"\"),\"\")","v":""},null,{"$f":"+IFERROR(IF(COUNT(U13),ROUND(SUM(U13)/SUM(K13)*100,2),\"\"),0)","v":""},{"$nulls":6},{"$f":"IF(SUM(H13:W13)>0,1,0)","v":0},{"$f":"SUM(AC15:AC65535)","v":0},{"$nulls":13},"Employee welfare fund"]
[{"$nulls":6},"Disclosure of shareholder holding more than 1% of total number of shares",{"$nulls":36},"Overseas corporate bodies"]
[]
[{"$nulls":5},"Click here to go back","Total",{"$f":"+IFERROR(IF(COUNT(H14:H15),ROUND(SUM(H14:H15),0),\"\"),\"\")","v":""},{"$f":"+IFERROR(IF(COUNT(I14:I15),ROUND(SUM(I14:I15),0),\"\"),\"\")","v":""},{"$f":"+IFERROR(IF(COUNT(J14:J15),ROUND(SUM(J14:J15),0),\"\"),\"\")","v":""},{"$f":"+IFERROR(IF(COUNT(K14:K15),ROUND(SUM(K14:K15),0),\"\"),\"\")","v":""},{"$f":"+IFERROR(IF(COUNT(K16),ROUND(K16/'Shareholding Pattern'!$L$57*100,2),\"\"),\"\")","v":""},{"$f":"+IFERROR(IF(COUNT(M14:M15),ROUND(SUM(M14:M15),0),\"\"),\"\")","v":""},{"$f":"+IFERROR(IF(COUNT(N14:N15),ROUND(SUM(N14:N15),0),\"\"),\"\")","v":""},{"$f":"+IFERROR(IF(COUNT(O14:O15),ROUND(SUM(O14:O15),0),\"\"),\"\")","v":""},{"$f":"+IFERROR(IF(COUNT(O16),ROUND(O16/('Shareholding Pattern'!$P$58)*100,2),\"\"),\"\")","v":""},{"$f":"+IFERROR(IF(COUNT(Q14:Q15),ROUND(SUM(Q14:Q15),0),\"\"),\"\")","v":""},{"$f":"+IFERROR(IF(COUNT(R14:R15),ROUND(SUM(R14:R15),0),\"\"),\"\")","v":""},{"$f":"+IFERROR(IF(COUNT(S14:S15),ROUND(SUM(S14:S15),0),\"\"),\"\")","v":""},{"$f":"+IFERROR(IF(COUNT(K16,S16),ROUND(SUM(S16,K16)/SUM('Shareholding Pattern'!$L$57,'Shareholding Pattern'!$T$57)*100,2),\"\"),\"\")","v":""},{"$f":"+IFERROR(IF(COUNT(U14:U15),ROUND(SUM(U14:U15),0),\"\"),\"\")","v":""},{"$f":"+IFERROR(IF(COUNT(U16),ROUND(SUM(U16)/SUM(K16)*100,2),\"\"),0)","v":""},{"$f":"+IFERROR(IF(COUNT(W14:W15),ROUND(SUM(W14:W15),0),\"\"),\"\")","v":""}]

{"sheet":"VentureCap","index":17,"n_rows":16,"n_cols":44,"rows_kept":16,"hidden":true,"merged":[[8,4,10,4],[8,5,10,5],[8,6,10,6],[8,7,10,7],[8,8,10,8],[8,9,10,9],[8,10,10,10],[8,11,10,11],[8,12,8,15],[8,16,10,16],[8,17,10,17],[8,18,10,18],[8,19,10,19],[8,20,9,21],[8,22,10,22],[8,23,10,23],[9,12,9,14],[9,15,10,15]]}
[{"$nulls":8},0]
[{"$nulls":5},"Name of shareholder","Permanent account number of shareholder","Number of fully paid up equity shares","Number of partly paid-up equity shares","Number of shares underlying outstanding depository receipts","Total number of shares","Shareholding as a percentage of total number of shares held by promoters and public shareholders and custodians or DR holders","Number of voting rights held by same class of securities","Number of voting rights held by differential voting rights","Total Number of voting rights","Percentage of total number of voting rights","Number of shares underlying outstanding convertible securities","Number of warrant","Number of warrant and convertible securities","Total shareholding as a percentage assuming full conversion of convertible securities","Number of the locked-in-shares ","Locked-in-shares as a percentage of total number of shares","Number of equity shares held in dematerialized form","Reason for not providing PAN"]
[]
[]
[]
[]
[{"$nulls":43},"NRI"]
[{"$nulls":43},"Trusts"]
[{"$nulls":4},"Searial No.","Name\nof the \nShareholders\n     (I)","PAN \n(II)","No. of fully paid up equity shares held\n(IV)","No. Of Partly paid-up equity shares held\n(V)","No. Of shares underlying Depository Receipts\n(VI)","Total nos. shares\nheld\n(VII) = (IV)+(V)+ (VI)","Shareholding as a % of total no. of shares (calculated as per SCRR, 1957)\n(VIII)\nAs a % of (A+B+C2)","Number of Voting Rights held in each class of securities\n(IX)",{"$nulls":3},"No. Of Shares Underlying Outstanding convertible securities\n(X)","No. of Shares Underlying Outstanding Warrants (Xi)","No. Of Shares Underlying Outstanding convertible securities and No. Of Warrants\n(Xi) (a)","Shareholding , as a % assuming full conversion of convertible securities (as a percentage of diluted share capital)\n(XI)= (VII)+(X)\nAs a % of (A+B+C2)","Number of Locked in shares\n(XII)",null,"Number of equity shares held in dematerialized form \n(XIV)","Reason for not providing PAN",{"$nulls":19},"Market Maker"]
[{"$nulls":12},"No of Voting (XIV)\nRights",null,null,"Total as\na % of\nTotal\nVoting\nrights",{"$nulls":27},"HUF"]
[{"$nulls":12},"Class\neg:\nX","Class\neg:y","Total",{"$nulls":5},"No.\n(a)","As a % of total Shares held\n(b)",{"$nulls":21},"Clearing Members"]
[{"$nulls":4},"B1(b)","Venture Capital Funds",{"$nulls":37},"NSDL or CDSL transit"]
[{"$nulls":10},{"$f":"+IFERROR(IF(COUNT(H13:J13),ROUND(SUM(H13:J13),0),\"\"),\"\")","v":""},{"$f":"+IFERROR(IF(COUNT(K13),ROUND(K13/'Shareholding Pattern'!$L$57*100,2),\"\"),\"\")","v":""},{"$f":"IF(H13=\"\",\"\",H13)","v":""},null,{"$f":"+IFERROR(IF(COUNT(M13:N13),ROUND(SUM(M13,N13),2),\"\"),\"\")","v":""},{"$f":"+IFERROR(IF(COUNT(O13),ROUND(O13/('Shareholding Pattern'!$P$58)*100,2),\"\"),\"\")","v":""},null,null,{"$f":"+IFERROR(IF(COUNT(Q13:R13),ROUND(SUM(Q13:R13),0),\"\"),\"\")","v":""},{"$f":"+IFERROR(IF(COUNT(K13,S13),ROUND(SUM(S13,K13)/SUM('Shareholding Pattern'!$L$57,'Shareholding Pattern'!$T$57)*100,2),\"\"),\"\")","v":""},null,{"$f":"+IFERROR(IF(COUNT(U13),ROUND(SUM(U13)/SUM(K13)*100,2),\"\"),0)","v":""},{"$nulls":6},{"$f":"IF(SUM(H13:W13)>0,1,0)","v":0},{"$f":"SUM(AC15:AC65535)","v":0},{"$nulls":13},"Employee welfare fund"]
[{"$nulls":6},"\nDisclosure of shareholder holding more than 1% of total number of shares",{"$nulls":36},"Overseas corporate bodies"]
[{"$nulls":43},"Private equity fund"]
[{"$nulls":5},"Click here to go back","Total",{"$f":"+IFERROR(IF(COUNT(H14:H15),ROUND(SUM(H14:H15),0),\"\"),\"\")","v":""},{"$f":"+IFERROR(IF(COUNT(I14:I15),ROUND(SUM(I14:I15),0),\"\"),\"\")","v":""},{"$f":"+IFERROR(IF(COUNT(J14:J15),ROUND(SUM(J14:J15),0),\"\"),\"\")","v":""},{"$f":"+IFERROR(IF(COUNT(K14:K15),ROUND(SUM(K14:K15),0),\"\"),\"\")","v":""},{"$f":"+IFERROR(IF(COUNT(K16),ROUND(K16/'Shareholding Pattern'!$L$57*100,2),\"\"),\"\")","v":""},{"$f":"+IFERROR(IF(COUNT(M14:M15),ROUND(SUM(M14:M15),0),\"\"),\"\")","v":""},{"$f":"+IFERROR(IF(COUNT(N14:N15),ROUND(SUM(N14:N15),0),\"\"),\"\")","v":""},{"$f":"+IFERROR(IF(COUNT(O14:O15),ROUND(SUM(O14:O15),0),\"\"),\"\")","v":""},{"$f":"+IFERROR(IF(COUNT(O16),ROUND(O16/('Shareholding Pattern'!$P$58)*100,2),\"\"),\"\")","v":""},{"$f":"+IFERROR(IF(COUNT(Q14:Q15),ROUND(SUM(Q14:Q15),0),\"\"),\"\")","v":""},{"$f":"+IFERROR(IF(COUNT(R14:R15),ROUND(SUM(R14:R15),0),\"\"),\"\")","v":""},{"$f":"+IFERROR(IF(COUNT(S14:S15),ROUND(SUM(S14:S15),0),\"\"),\"\")","v":""},{"$f":"+IFERROR(IF(COUNT(K16,S16),ROUND(SUM(S16,K16)/SUM('Shareholding Pattern'!$L$57,'Shareholding Pattern'!$T$57)*100,2),\"\"),\"\")","v":""},{"$f":"+IFERROR(IF(COUNT(U14:U15),ROUND(SUM(U14:U15),0),\"\"),\"\")","v":""},{"$f":"+IFERROR(IF(COUNT(U16),ROUND(SUM(U16)/SUM(K16)*100,2),\"\"),0)","v":""},{"$f":"+IFERROR(IF(COUNT(W14:W15),ROUND(SUM(W14:W15),0),\"\"),\"\")","v":""},{"$nulls":20},"Other"]

{"sheet":"AIF","index":18,"n_rows":16,"n_cols":44,"rows_kept":16,"hidden":true,"merged":[[8,4,10,4],[8,5,10,5],[8,6,10,6],[8,7,10,7],[8,8,10,8],[8,9,10,9],[8,10,10,10],[8,11,10,11],[8,12,8,15],[8,16,10,16],[8,17,10,17],[8,18,10,18],[8,19,10,19],[8,20,9,21],[8,22,10,22],[8,23,10,23],[9,12,9,14],[9,15,10,15]]}
[{"$nulls":8},0]
[{"$nulls":5},"Name of shareholder","Permanent account number of shareholder","Number of fully paid up equity shares","Number of partly paid-up equity shares","Number of shares underlying outstanding depository receipts","Total number of shares","Shareholding as a percentage of total number of shares held by promoters and public shareholders and custodians or DR holders","Number of voting rights held by same class of securities","Number of voting rights held by differential voting rights","Total Number of voting rights","Percentage of total number of voting rights","Number of shares underlying outstanding convertible securities","Number of warrant","Number of warrant and convertible securities","Total shareholding as a percentage assuming full conversion of convertible securities","Number of the locked-in-shares ","Locked-in-shares as a percentage of total number of shares","Number of equity shares held in dematerialized form","Reason for not providing PAN"]
[]
[]
[]
[]
[{"$nulls":43},"NRI"]
[{"$nulls":43},"Trusts"]
[{"$nulls":4},"Searial No.","Name\nof the \nShareholders\n     (I)","PAN \n(II)","No. of fully paid up equity shares held\n(IV)","No. Of Partly paid-up equity shares held\n(V)","No. Of shares underlying Depository Receipts\n(VI)","Total nos. shares\nheld\n(VII) = (IV)+(V)+ (VI)","Shareholding as a % of total no. of shares (calculated as per SCRR, 1957)\n(VIII)\nAs a % of (A+B+C2)","Number of Voting Rights held in each class of securities\n(IX)",{"$nulls":3},"No. Of Shares Underlying Outstanding convertible securities\n(X)","No. of Shares Underlying Outstanding Warrants (Xi)","No. Of Shares Underlying Outstanding convertible securities and No. Of Warrants\n(Xi) (a)","Shareholding , as a % assuming full conversion of convertible securities (as a percentage of diluted share capital)\n(XI)= (VII)+(X)\nAs a % of (A+B+C2)","Number of Locked in shares\n(XII)",null,"Number of equity shares held in dematerialized form \n(XIV)","Reason for not providing PAN",{"$nulls":19},"Market Maker"]
[{"$nulls":12},"No of Voting (XIV)\nRights",null,null,"Total as\na % of\nTotal\nVoting\nrights",{"$nulls":27},"HUF"]
[{"$nulls":12},"Class\neg:\nX","Class\neg:y","Total",{"$nulls":5},"No.\n(a)","As a % of total Shares held\n(b)",{"$nulls":21},"Clearing Members"]
[{"$nulls":4},"B1(c)","Alternate Investment Funds",{"$nulls":37},"NSDL or CDSL transit"]
[{"$nulls":10},{"$f":"+IFERROR(IF(COUNT(H13:J13),ROUND(SUM(H13:J13),0),\"\"),\"\")","v":""},{"$f":"+IFERROR(IF(COUNT(K13),ROUND(K13/'Shareholding Pattern'!$L$57*100,2),\"\"),\"\")","v":""},{"$f":"IF(H13=\"\",\"\",H13)","v":""},null,{"$f":"+IFERROR(IF(COUNT(M13:N13),ROUND(SUM(M13,N13),2),\"\"),\"\")","v":""},{"$f":"+IFERROR(IF(COUNT(O13),ROUND(O13/('Shareholding Pattern'!$P$58)*100,2),\"\"),\"\")","v":""},null,null,{"$f":"+IFERROR(IF(COUNT(Q13:R13),ROUND(SUM(Q13:R13),0),\"\"),\"\")","v":""},{"$f":"+IFERROR(IF(COUNT(K13,S13),ROUND(SUM(S13,K13)/SUM('Shareholding Pattern'!$L$57,'Shareholding Pattern'!$T$57)*100,2),\"\"),\"\")","v":""},null,{"$f":"+IFERROR(IF(COUNT(U13),ROUND(SUM(U13)/SUM(K13)*100,2),\"\"),0)","v":""},{"$nulls":6},{"$f":"IF(SUM(H13:W13)>0,1,0)","v":0},{"$f":"SUM(AC15:AC65535)","v":0},{"$nulls":13},"Employee welfare fund"]
[{"$nulls":6},"Disclosure of shareholder holding more than 1% of total number of shares",{"$nulls":36},"Overseas corporate bodies"]
[{"$nulls":43},"Private equity fund"]
[{"$nulls":5},"Click here to go back","Total",{"$f":"+IFERROR(IF(COUNT(H14:H15),ROUND(SUM(H14:H15),0),\"\"),\"\")","v":""},{"$f":"+IFERROR(IF(COUNT(I14:I15),ROUND(SUM(I14:I15),0),\"\"),\"\")","v":""},{"$f":"+IFERROR(IF(COUNT(J14:J15),ROUND(SUM(J14:J15),0),\"\"),\"\")","v":""},{"$f":"+IFERROR(IF(COUNT(K14:K15),ROUND(SUM(K14:K15),0),\"\"),\"\")","v":""},{"$f":"+IFERROR(IF(COUNT(K16),ROUND(K16/'Shareholding Pattern'!$L$57*100,2),\"\"),\"\")","v":""},{"$f":"+IFERROR(IF(COUNT(M14:M15),ROUND(SUM(M14:M15),0),\"\"),\"\")","v":""},{"$f":"+IFERROR(IF(COUNT(N14:N15),ROUND(SUM(N14:N15),0),\"\"),\"\")","v":""},{"$f":"+IFERROR(IF(COUNT(O14:O15),ROUND(SUM(O14:O15),0),\"\"),\"\")","v":""},{"$f":"+IFERROR(IF(COUNT(O16),ROUND(O16/('Shareholding Pattern'!$P$58)*100,2),\"\"),\"\")","v":""},{"$f":"+IFERROR(IF(COUNT(Q14:Q15),ROUND(SUM(Q14:Q15),0),\"\"),\"\")","v":""},{"$f":"+IFERROR(IF(COUNT(R14:R15),ROUND(SUM(R14:R15),0),\"\"),\"\")","v":""},{"$f":"+IFERROR(IF(COUNT(S14:S15),ROUND(SUM(S14:S15),0),\"\"),\"\")","v":""},{"$f":"+IFERROR(IF(COUNT(K16,S16),ROUND(SUM(S16,K16)/SUM('Shareholding Pattern'!$L$57,'Shareholding Pattern'!$T$57)*100,2),\"\"),\"\")","v":""},{"$f":"+IFERROR(IF(COUNT(U14:U15),ROUND(SUM(U14:U15),0),\"\"),\"\")","v":""},{"$f":"+IFERROR(IF(COUNT(U16),ROUND(SUM(U16)/SUM(K16)*100,2),\"\"),0)","v":""},{"$f":"+IFERROR(IF(COUNT(W14:W15),ROUND(SUM(W14:W15),0),\"\"),\"\")","v":""},{"$nulls":20},"Other"]

{"sheet":"FVC","index":19,"n_rows":16,"n_cols":44,"rows_kept":16,"hidden":true,"merged":[[8,4,10,4],[8,5,10,5],[8,6,10,6],[8,7,10,7],[8,8,10,8],[8,9,10,9],[8,10,10,10],[8,11,10,11],[8,12,8,15],[8,16,10,16],[8,17,10,17],[8,18,10,18],[8,19,10,19],[8,20,9,21],[8,22,10,22],[8,23,10,23],[9,12,9,14],[9,15,10,15]]}
[{"$nulls":8},0]
[{"$nulls":5},"Name of shareholder","Permanent account number of shareholder","Number of fully paid up equity shares","Number of partly paid-up equity shares","Number of shares underlying outstanding depository receipts","Total number of shares","Shareholding as a percentage of total number of shares held by promoters and public shareholders and custodians or DR holders","Number of voting rights held by same class of securities","Number of voting rights held by differential voting rights","Total Number of voting rights","Percentage of total number of voting rights","Number of shares underlying outstanding convertible securities","Number of warrant","Number of warrant and convertible securities","Total shareholding as a percentage assuming full conversion of convertible securities","Number of the locked-in-shares ","Locked-in-shares as a percentage of total number of shares","Number of equity shares held in dematerialized form","Reason for not providing PAN"]
[]
[]
[]
[]
[{"$nulls":43},"NRI"]
[{"$nulls":43},"Trusts"]
[{"$nulls":4},"Searial No.","Name\nof the \nShareholders\n     (I)","PAN \n(II)","No. of fully paid up equity shares held\n(IV)","No. Of Partly paid-up equity shares held\n(V)","No. Of shares underlying Depository Receipts\n(VI)","Total nos. shares\nheld\n(VII) = (IV)+(V)+ (VI)","Shareholding as a % of total no. of shares (calculated as per SCRR, 1957)\n(VIII)\nAs a % of (A+B+C2)","Number of Voting Rights held in each class of securities\n(IX)",{"$nulls":3},"No. Of Shares Underlying Outstanding convertible securities\n(X)","No. of Shares Underlying Outstanding Warrants (Xi)","No. Of Shares Underlying Outstanding convertible securities and No. Of Warrants\n(Xi) (a)","Shareholding , as a % assuming full conversion of convertible securities (as a percentage of diluted share capital)\n(XI)= (VII)+(X)\nAs a % of (A+B+C2)","Number of Locked in shares\n(XII)",null,"Number of equity shares held in dematerialized form \n(XIV)","Reason for not providing PAN",{"$nulls":19},"Market Maker"]
[{"$nulls":12},"No of Voting (XIV)\nRights",null,null,"Total as\na % of\nTotal\nVoting\nrights",{"$nulls":27},"HUF"]
[{"$nulls":12},"Class\neg:\nX","Class\neg:y","Total",{"$nulls":5},"No.\n(a)","As a % of total Shares held\n(b)",{"$nulls":21},"Clearing Members"]
[{"$nulls":4},"B1(d)","Foreign Venture Capital Investors",{"$nulls":37},"NSDL or CDSL transit"]
[{"$nulls":10},{"$f":"+IFERROR(IF(COUNT(H13:J13),ROUND(SUM(H13:J13),0),\"\"),\"\")","v":""},{"$f":"+IFERROR(IF(COUNT(K13),ROUND(K13/'Shareholding Pattern'!$L$57*100,2),\"\"),\"\")","v":""},{"$f":"IF(H13=\"\",\"\",H13)","v":""},null,{"$f":"+IFERROR(IF(COUNT(M13:N13),ROUND(SUM(M13,N13),2),\"\"),\"\")","v":""},{"$f":"+IFERROR(IF(COUNT(O13),ROUND(O13/('Shareholding Pattern'!$P$58)*100,2),\"\"),\"\")","v":""},null,null,{"$f":"+IFERROR(IF(COUNT(Q13:R13),ROUND(SUM(Q13:R13),0),\"\"),\"\")","v":""},{"$f":"+IFERROR(IF(COUNT(K13,S13),ROUND(SUM(S13,K13)/SUM('Shareholding Pattern'!$L$57,'Shareholding Pattern'!$T$57)*100,2),\"\"),\"\")","v":""},null,{"$f":"+IFERROR(IF(COUNT(U13),ROUND(SUM(U13)/SUM(K13)*100,2),\"\"),0)","v":""},{"$nulls":6},{"$f":"IF(SUM(H13:W13)>0,1,0)","v":0},{"$f":"SUM(AC13:AC65535)","v":0},{"$nulls":13},"Employee welfare fund"]
[{"$nulls":6},"Disclosure of shareholder holding more than 1% of total number of shares",{"$nulls":36},"Overseas corporate bodies"]
[{"$nulls":43},"Private equity fund"]
[{"$nulls":5},"Click here to go back","Total",{"$f":"+IFERROR(IF(COUNT(H14:H15),ROUND(SUM(H14:H15),0),\"\"),\"\")","v":""},{"$f":"+IFERROR(IF(COUNT(I14:I15),ROUND(SUM(I14:I15),0),\"\"),\"\")","v":""},{"$f":"+IFERROR(IF(COUNT(J14:J15),ROUND(SUM(J14:J15),0),\"\"),\"\")","v":""},{"$f":"+IFERROR(IF(COUNT(K14:K15),ROUND(SUM(K14:K15),0),\"\"),\"\")","v":""},{"$f":"+IFERROR(IF(COUNT(K16),ROUND(K16/'Shareholding Pattern'!$L$57*100,2),\"\"),\"\")","v":""},{"$f":"+IFERROR(IF(COUNT(M14:M15),ROUND(SUM(M14:M15),0),\"\"),\"\")","v":""},{"$f":"+IFERROR(IF(COUNT(N14:N15),ROUND(SUM(N14:N15),0),\"\"),\"\")","v":""},{"$f":"+IFERROR(IF(COUNT(O14:O15),ROUND(SUM(O14:O15),0),\"\"),\"\")","v":""},{"$f":"+IFERROR(IF(COUNT(O16),ROUND(O16/('Shareholding Pattern'!$P$58)*100,2),\"\"),\"\")","v":""},{"$f":"+IFERROR(IF(COUNT(Q14:Q15),ROUND(SUM(Q14:Q15),0),\"\"),\"\")","v":""},{"$f":"+IFERROR(IF(COUNT(R14:R15),ROUND(SUM(R14:R15),0),\"\"),\"\")","v":""},{"$f":"+IFERROR(IF(COUNT(S14:S15),ROUND(SUM(S14:S15),0),\"\"),\"\")","v":""},{"$f":"+IFERROR(IF(COUNT(K16,S16),ROUND(SUM(S16,K16)/SUM('Shareholding Pattern'!$L$57,'Shareholding Pattern'!$T$57)*100,2),\"\"),\"\")","v":""},{"$f":"+IFERROR(IF(COUNT(U14:U15),ROUND(SUM(U14:U15),0),\"\"),\"\")","v":""},{"$f":"+IFERROR(IF(COUNT(U16),ROUND(SUM(U16)/SUM(K16)*100,2),\"\"),0)","v":""},{"$f":"+IFERROR(IF(COUNT(W14:W15),ROUND(SUM(W14:W15),0),\"\"),\"\")","v":""},{"$nulls":20},"Other"]

{"sheet":"FPI_Insti","index":20,"n_rows":16,"n_cols":44,"rows_kept":16,"hidden":true,"merged":[[8,4,10,4],[8,5,10,5],[8,6,10,6],[8,7,10,7],[8,8,10,8],[8,9,10,9],[8,10,10,10],[8,11,10,11],[8,12,8,15],[8,16,10,16],[8,17,10,17],[8,18,10,18],[8,19,10,19],[8,20,9,21],[8,22,10,22],[8,23,10,23],[9,12,9,14],[9,15,10,15]]}
[{"$nulls":8},0]
[{"$nulls":5},"Name of shareholder","Permanent account number of shareholder","Number of fully paid up equity shares","Number of partly paid-up equity shares","Number of shares underlying outstanding depository receipts","Total number of shares","Shareholding as a percentage of total number of shares held by promoters and public shareholders and custodians or DR holders","Number of voting rights held by same class of securities","Number of voting rights held by differential voting rights","Total Number of voting rights","Percentage of total number of voting rights","Number of shares underlying outstanding convertible securities","Number of warrant","Number of warrant and convertible securities","Total shareholding as a percentage assuming full conversion of convertible securities","Number of the locked-in-shares ","Locked-in-shares as a percentage of total number of shares","Number of equity shares held in dematerialized form","Reason for not providing PAN"]
[]
[]
[]
[]
[{"$nulls":43},"NRI"]
[{"$nulls":43},"Trusts"]
[{"$nulls":4},"Searial No.","Name\nof the \nShareholders\n     (I)","PAN \n(II)","No. of fully paid up equity shares held\n(IV)","No. Of Partly paid-up equity shares held\n(V)","No. Of shares underlying Depository Receipts\n(VI)","Total nos. shares\nheld\n(VII) = (IV)+(V)+ (VI)","Shareholding as a % of total no. of shares (calculated as per SCRR, 1957)\n(VIII)\nAs a % of (A+B+C2)","Number of Voting Rights held in each class of securities\n(IX)",{"$nulls":3},"No. Of Shares Underlying Outstanding convertible securities\n(X)","No. of Shares Underlying Outstanding Warrants (Xi)","No. Of Shares Underlying Outstanding convertible securities and No. Of Warrants\n(Xi) (a)","Shareholding , as a % assuming full conversion of convertible securities (as a percentage of diluted share capital)\n(XI)= (VII)+(X)\nAs a % of (A+B+C2)","Number of Locked in shares\n(XII)",null,"Number of equity shares held in dematerialized form \n(XIV)","Reason for not providing PAN",{"$nulls":19},"Market Maker"]
[{"$nulls":12},"No of Voting (XIV)\nRights",null,null,"Total as\na % of\nTotal\nVoting\nrights",{"$nulls":27},"HUF"]
[{"$nulls":12},"Class\neg:\nX","Class\neg:y","Total",{"$nulls":5},"No.\n(a)","As a % of total Shares held\n(b)",{"$nulls":21},"Clearing Members"]
[{"$nulls":4},"B1(e)","Foreign Portfolio Investors",{"$nulls":37},"NSDL or CDSL transit"]
[{"$nulls":10},{"$f":"+IFERROR(IF(COUNT(H13:J13),ROUND(SUM(H13:J13),0),\"\"),\"\")","v":""},{"$f":"+IFERROR(IF(COUNT(K13),ROUND(K13/'Shareholding Pattern'!$L$57*100,2),\"\"),\"\")","v":""},{"$f":"IF(H13=\"\",\"\",H13)","v":""},null,{"$f":"+IFERROR(IF(COUNT(M13:N13),ROUND(SUM(M13,N13),2),\"\"),\"\")","v":""},{"$f":"+IFERROR(IF(COUNT(O13),ROUND(O13/('Shareholding Pattern'!$P$58)*100,2),\"\"),\"\")","v":""},null,null,{"$f":"+IFERROR(IF(COUNT(Q13:R13),ROUND(SUM(Q13:R13),0),\"\"),\"\")","v":""},{"$f":"+IFERROR(IF(COUNT(K13,S13),ROUND(SUM(S13,K13)/SUM('Shareholding Pattern'!$L$57,'Shareholding Pattern'!$T$57)*100,2),\"\"),\"\")","v":""},null,{"$f":"+IFERROR(IF(COUNT(U13),ROUND(SUM(U13)/SUM(K13)*100,2),\"\"),0)","v":""},{"$nulls":6},{"$f":"IF(SUM(H13:W13)>0,1,0)","v":0},{"$f":"SUM(AC15:AC65535)","v":0},{"$nulls":13},"Employee welfare fund"]
[{"$nulls":6},"Disclosure of shareholder holding more than 1% of total number of shares",{"$nulls":36},"Overseas corporate bodies"]
[{"$nulls":43},"Private equity fund"]
[{"$nulls":5},"Click here to go back","Total",{"$f":"+IFERROR(IF(COUNT(H14:H15),ROUND(SUM(H14:H15),0),\"\"),\"\")","v":""},{"$f":"+IFERROR(IF(COUNT(I14:I15),ROUND(SUM(I14:I15),0),\"\"),\"\")","v":""},{"$f":"+IFERROR(IF(COUNT(J14:J15),ROUND(SUM(J14:J15),0),\"\"),\"\")","v":""},{"$f":"+IFERROR(IF(COUNT(K14:K15),ROUND(SUM(K14:K15),0),\"\"),\"\")","v":""},{"$f":"+IFERROR(IF(COUNT(K16),ROUND(K16/'Shareholding Pattern'!$L$57*100,2),\"\"),\"\")","v":""},{"$f":"+IFERROR(IF(COUNT(M14:M15),ROUND(SUM(M14:M15),0),\"\"),\"\")","v":""},{"$f":"+IFERROR(IF(COUNT(N14:N15),ROUND(SUM(N14:N15),0),\"\"),\"\")","v":""},{"$f":"+IFERROR(IF(COUNT(O14:O15),ROUND(SUM(O14:O15),0),\"\"),\"\")","v":""},{"$f":"+IFERROR(IF(COUNT(O16),ROUND(O16/('Shareholding Pattern'!$P$58)*100,2),\"\"),\"\")","v":""},{"$f":"+IFERROR(IF(COUNT(Q14:Q15),ROUND(SUM(Q14:Q15),0),\"\"),\"\")","v":""},{"$f":"+IFERROR(IF(COUNT(R14:R15),ROUND(SUM(R14:R15),0),\"\"),\"\")","v":""},{"$f":"+IFERROR(IF(COUNT(S14:S15),ROUND(SUM(S14:S15),0),\"\"),\"\")","v":""},{"$f":"+IFERROR(IF(COUNT(K16,S16),ROUND(SUM(S16,K16)/SUM('Shareholding Pattern'!$L$57,'Shareholding Pattern'!$T$57)*100,2),\"\"),\"\")","v":""},{"$f":"+IFERROR(IF(COUNT(U14:U15),ROUND(SUM(U14:U15),0),\"\"),\"\")","v":""},{"$f":"+IFERROR(IF(COUNT(U16),ROUND(SUM(U16)/SUM(K16)*100,2),\"\"),0)","v":""},{"$f":"+IFERROR(IF(COUNT(W14:W15),ROUND(SUM(W14:W15),0),\"\"),\"\")","v":""},{"$nulls":20},"Other"]

{"sheet":"Bank_Insti","index":21,"n_rows":16,"n_cols":44,"rows_kept":16,"hidden":true,"merged":[[8,4,10,4],[8,5,10,5],[8,6,10,6],[8,7,10,7],[8,8,10,8],[8,9,10,9],[8,10,10,10],[8,11,10,11],[8,12,8,15],[8,16,10,16],[8,17,10,17],[8,18,10,18],[8,19,10,19],[8,20,9,21],[8,22,10,22],[8,23,10,23],[9,12,9,14],[9,15,10,15]]}
[{"$nulls":8},0]
[{"$nulls":5},"Name of shareholder","Permanent account number of shareholder","Number of fully paid up equity shares","Number of partly paid-up equity shares","Number of shares underlying outstanding depository receipts","Total number of shares","Shareholding as a percentage of total number of shares held by promoters and public shareholders and custodians or DR holders","Number of voting rights held by same class of securities","Number of voting rights held by differential voting rights","Total Number of voting rights","Percentage of total number of voting rights","Number of shares underlying outstanding convertible securities","Number of warrant","Number of warrant and convertible securities","Total shareholding as a percentage assuming full conversion of convertible securities","Number of the locked-in-shares ","Locked-in-shares as a percentage of total number of shares","Number of equity shares held in dematerialized form","Reason for not providing PAN"]
[]
[]
[]
[]
[{"$nulls":43},"NRI"]
[{"$nulls":43},"Trusts"]
[{"$nulls":4},"Searial No.","Name\nof the \nShareholders\n     (I)","PAN \n(II)","No. of fully paid up equity shares held\n(IV)","No. Of Partly paid-up equity shares held\n(V)","No. Of shares underlying Depository Receipts\n(VI)","Total nos. shares\nheld\n(VII) = (IV)+(V)+ (VI)","Shareholding as a % of total no. of shares (calculated as per SCRR, 1957)\n(VIII)\nAs a % of (A+B+C2)","Number of Voting Rights held in each class of securities\n(IX)",{"$nulls":3},"No. Of Shares Underlying Outstanding convertible securities\n(X)","No. of Shares Underlying Outstanding Warrants (Xi)","No. Of Shares Underlying Outstanding convertible securities and No. Of Warrants\n(Xi) (a)","Shareholding , as a % assuming full conversion of convertible securities (as a percentage of diluted share capital)\n(XI)= (VII)+(X)\nAs a % of (A+B+C2)","Number of Locked in shares\n(XII)",null,"Number of equity shares held in dematerialized form \n(XIV)","Reason for not providing PAN",{"$nulls":19},"Market Maker"]
[{"$nulls":12},"No of Voting (XIV)\nRights",null,null,"Total as\na % of\nTotal\nVoting\nrights",{"$nulls":27},"HUF"]
[{"$nulls":12},"Class\neg:\nX","Class\neg:y","Total",{"$nulls":5},"No.\n(a)","As a % of total Shares held\n(b)",{"$nulls":21},"Clearing Members"]
[{"$nulls":4},"B1(f)","Financial  Institutions/ Banks",{"$nulls":37},"NSDL or CDSL transit"]
[{"$nulls":10},{"$f":"+IFERROR(IF(COUNT(H13:J13),ROUND(SUM(H13:J13),0),\"\"),\"\")","v":""},{"$f":"+IFERROR(IF(COUNT(K13),ROUND(K13/'Shareholding Pattern'!$L$57*100,2),\"\"),\"\")","v":""},{"$f":"IF(H13=\"\",\"\",H13)","v":""},null,{"$f":"+IFERROR(IF(COUNT(M13:N13),ROUND(SUM(M13,N13),2),\"\"),\"\")","v":""},{"$f":"+IFERROR(IF(COUNT(O13),ROUND(O13/('Shareholding Pattern'!$P$58)*100,2),\"\"),\"\")","v":""},null,null,{"$f":"+IFERROR(IF(COUNT(Q13:R13),ROUND(SUM(Q13:R13),0),\"\"),\"\")","v":""},{"$f":"+IFERROR(IF(COUNT(K13,S13),ROUND(SUM(S13,K13)/SUM('Shareholding Pattern'!$L$57,'Shareholding Pattern'!$T$57)*100,2),\"\"),\"\")","v":""},null,{"$f":"+IFERROR(IF(COUNT(U13),ROUND(SUM(U13)/SUM(K13)*100,2),\"\"),0)","v":""},{"$nulls":6},{"$f":"IF(SUM(H13:W13)>0,1,0)","v":0},{"$f":"SUM(AC15:AC65535)","v":0},{"$nulls":13},"Employee welfare fund"]
[{"$nulls":6},"Disclosure of shareholder holding more than 1% of total number of shares",{"$nulls":36},"Overseas corporate bodies"]
[{"$nulls":43},"Private equity fund"]
[{"$nulls":5},"Click here to go back","Total",{"$f":"+IFERROR(IF(COUNT(H14:H15),ROUND(SUM(H14:H15),0),\"\"),\"\")","v":""},{"$f":"+IFERROR(IF(COUNT(I14:I15),ROUND(SUM(I14:I15),0),\"\"),\"\")","v":""},{"$f":"+IFERROR(IF(COUNT(J14:J15),ROUND(SUM(J14:J15),0),\"\"),\"\")","v":""},{"$f":"+IFERROR(IF(COUNT(K14:K15),ROUND(SUM(K14:K15),0),\"\"),\"\")","v":""},{"$f":"+IFERROR(IF(COUNT(K16),ROUND(K16/'Shareholding Pattern'!$L$57*100,2),\"\"),\"\")","v":""},{"$f":"+IFERROR(IF(COUNT(M14:M15),ROUND(SUM(M14:M15),0),\"\"),\"\")","v":""},{"$f":"+IFERROR(IF(COUNT(N14:N15),ROUND(SUM(N14:N15),0),\"\"),\"\")","v":""},{"$f":"+IFERROR(IF(COUNT(O14:O15),ROUND(SUM(O14:O15),0),\"\"),\"\")","v":""},{"$f":"+IFERROR(IF(COUNT(O16),ROUND(O16/('Shareholding Pattern'!$P$58)*100,2),\"\"),\"\")","v":""},{"$f":"+IFERROR(IF(COUNT(Q14:Q15),ROUND(SUM(Q14:Q15),0),\"\"),\"\")","v":""},{"$f":"+IFERROR(IF(COUNT(R14:R15),ROUND(SUM(R14:R15),0),\"\"),\"\")","v":""},{"$f":"+IFERROR(IF(COUNT(S14:S15),ROUND(SUM(S14:S15),0),\"\"),\"\")","v":""},{"$f":"+IFERROR(IF(COUNT(K16,S16),ROUND(SUM(S16,K16)/SUM('Shareholding Pattern'!$L$57,'Shareholding Pattern'!$T$57)*100,2),\"\"),\"\")","v":""},{"$f":"+IFERROR(IF(COUNT(U14:U15),ROUND(SUM(U14:U15),0),\"\"),\"\")","v":""},{"$f":"+IFERROR(IF(COUNT(U16),ROUND(SUM(U16)/SUM(K16)*100,2),\"\"),0)","v":""},{"$f":"+IFERROR(IF(COUNT(W14:W15),ROUND(SUM(W14:W15),0),\"\"),\"\")","v":""},{"$nulls":20},"Other"]

{"sheet":"Insurance","index":22,"n_rows":16,"n_cols":44,"rows_kept":16,"hidden":true,"merged":[[8,4,10,4],[8,5,10,5],[8,6,10,6],[8,7,10,7],[8,8,10,8],[8,9,10,9],[8,10,10,10],[8,11,10,11],[8,12,8,15],[8,16,10,16],[8,17,10,17],[8,18,10,18],[8,19,10,19],[8,20,9,21],[8,22,10,22],[8,23,10,23],[9,12,9,14],[9,15,10,15]]}
[{"$nulls":8},0]
[{"$nulls":5},"Name of shareholder","Permanent account number of shareholder","Number of fully paid up equity shares","Number of partly paid-up equity shares","Number of shares underlying outstanding depository receipts","Total number of shares","Shareholding as a percentage of total number of shares held by promoters and public shareholders and custodians or DR holders","Number of voting rights held by same class of securities","Number of voting rights held by differential voting rights","Total Number of voting rights","Percentage of total number of voting rights","Number of shares underlying outstanding convertible securities","Number of warrant","Number of warrant and convertible securities","Total shareholding as a percentage assuming full conversion of convertible securities","Number of the locked-in-shares ","Locked-in-shares as a percentage of total number of shares","Number of equity shares held in dematerialized form","Reason for not providing PAN"]
[]
[]
[]
[]
[{"$nulls":43},"NRI"]
[{"$nulls":43},"Trusts"]
[{"$nulls":4},"Searial No.","Name\nof the \nShareholders\n     (I)","PAN \n(II)","No. of fully paid up equity shares held\n(IV)","No. Of Partly paid-up equity shares held\n(V)","No. Of shares underlying Depository Receipts\n(VI)","Total nos. shares\nheld\n(VII) = (IV)+(V)+ (VI)","Shareholding as a % of total no. of shares (calculated as per SCRR, 1957)\n(VIII)\nAs a % of (A+B+C2)","Number of Voting Rights held in each class of securities\n(IX)",{"$nulls":3},"No. Of Shares Underlying Outstanding convertible securities\n(X)","No. of Shares Underlying Outstanding Warrants (Xi)","No. Of Shares Underlying Outstanding convertible securities and No. Of Warrants\n(Xi) (a)","Shareholding , as a % assuming full conversion of convertible securities (as a percentage of diluted share capital)\n(XI)= (VII)+(X)\nAs a % of (A+B+C2)","Number of Locked in shares\n(XII)",null,"Number of equity shares held in dematerialized form \n(XIV)","Reason for not providing PAN",{"$nulls":19},"Market Maker"]
[{"$nulls":12},"No of Voting (XIV)\nRights",null,null,"Total as\na % of\nTotal\nVoting\nrights",{"$nulls":27},"HUF"]
[{"$nulls":12},"Class\neg:\nX","Class\neg:y","Total",{"$nulls":5},"No.\n(a)","As a % of total Shares held\n(b)",{"$nulls":21},"Clearing Members"]
[{"$nulls":4},"B1(g)","Insurance  Companies",{"$nulls":37},"NSDL or CDSL transit"]
[{"$nulls":10},{"$f":"+IFERROR(IF(COUNT(H13:J13),ROUND(SUM(H13:J13),0),\"\"),\"\")","v":""},{"$f":"+IFERROR(IF(COUNT(K13),ROUND(K13/'Shareholding Pattern'!$L$57*100,2),\"\"),\"\")","v":""},{"$f":"IF(H13=\"\",\"\",H13)","v":""},null,{"$f":"+IFERROR(IF(COUNT(M13:N13),ROUND(SUM(M13,N13),2),\"\"),\"\")","v":""},{"$f":"+IFERROR(IF(COUNT(O13),ROUND(O13/('Shareholding Pattern'!$P$58)*100,2),\"\"),\"\")","v":""},null,null,{"$f":"+IFERROR(IF(COUNT(Q13:R13),ROUND(SUM(Q13:R13),0),\"\"),\"\")","v":""},{"$f":"+IFERROR(IF(COUNT(K13,S13),ROUND(SUM(S13,K13)/SUM('Shareholding Pattern'!$L$57,'Shareholding Pattern'!$T$57)*100,2),\"\"),\"\")","v":""},null,{"$f":"+IFERROR(IF(COUNT(U13),ROUND(SUM(U13)/SUM(K13)*100,2),\"\"),0)","v":""},{"$nulls":6},{"$f":"IF(SUM(H13:W13)>0,1,0)","v":0},{"$f":"SUM(AC15:AC65535)","v":0},{"$nulls":13},"Employee welfare fund"]
[{"$nulls":6},"\nDisclosure of shareholder holding more than 1% of total number of shares",{"$nulls":36},"Overseas corporate bodies"]
[{"$nulls":43},"Private equity fund"]
[{"$nulls":5},"Click here to go back","Total",{"$f":"+IFERROR(IF(COUNT(H14:H15),ROUND(SUM(H14:H15),0),\"\"),\"\")","v":""},{"$f":"+IFERROR(IF(COUNT(I14:I15),ROUND(SUM(I14:I15),0),\"\"),\"\")","v":""},{"$f":"+IFERROR(IF(COUNT(J14:J15),ROUND(SUM(J14:J15),0),\"\"),\"\")","v":""},{"$f":"+IFERROR(IF(COUNT(K14:K15),ROUND(SUM(K14:K15),0),\"\"),\"\")","v":""},{"$f":"+IFERROR(IF(COUNT(K16),ROUND(K16/'Shareholding Pattern'!$L$57*100,2),\"\"),\"\")","v":""},{"$f":"+IFERROR(IF(COUNT(M14:M15),ROUND(SUM(M14:M15),0),\"\"),\"\")","v":""},{"$f":"+IFERROR(IF(COUNT(N14:N15),ROUND(SUM(N14:N15),0),\"\"),\"\")","v":""},{"$f":"+IFERROR(IF(COUNT(O14:O15),ROUND(SUM(O14:O15),0),\"\"),\"\")","v":""},{"$f":"+IFERROR(IF(COUNT(O16),ROUND(O16/('Shareholding Pattern'!$P$58)*100,2),\"\"),\"\")","v":""},{"$f":"+IFERROR(IF(COUNT(Q14:Q15),ROUND(SUM(Q14:Q15),0),\"\"),\"\")","v":""},{"$f":"+IFERROR(IF(COUNT(R14:R15),ROUND(SUM(R14:R15),0),\"\"),\"\")","v":""},{"$f":"+IFERROR(IF(COUNT(S14:S15),ROUND(SUM(S14:S15),0),\"\"),\"\")","v":""},{"$f":"+IFERROR(IF(COUNT(K16,S16),ROUND(SUM(S16,K16)/SUM('Shareholding Pattern'!$L$57,'Shareholding Pattern'!$T$57)*100,2),\"\"),\"\")","v":""},{"$f":"+IFERROR(IF(COUNT(U14:U15),ROUND(SUM(U14:U15),0),\"\"),\"\")","v":""},{"$f":"+IFERROR(IF(COUNT(U16),ROUND(SUM(U16)/SUM(K16)*100,2),\"\"),0)","v":""},{"$f":"+IFERROR(IF(COUNT(W14:W15),ROUND(SUM(W14:W15),0),\"\"),\"\")","v":""},{"$nulls":20},"Other"]

{"sheet":"Pension","index":23,"n_rows":16,"n_cols":44,"rows_kept":16,"hidden":true,"merged":[[8,4,10,4],[8,5,10,5],[8,6,10,6],[8,7,10,7],[8,8,10,8],[8,9,10,9],[8,10,10,10],[8,11,10,11],[8,12,8,15],[8,16,10,16],[8,17,10,17],[8,18,10,18],[8,19,10,19],[8,20,9,21],[8,22,10,22],[8,23,10,23],[9,12,9,14],[9,15,10,15]]}
[{"$nulls":8},0]
[{"$nulls":5},"Name of shareholder","Permanent account number of shareholder","Number of fully paid up equity shares","Number of partly paid-up equity shares","Number of shares underlying outstanding depository receipts","Total number of shares","Shareholding as a percentage of total number of shares held by promoters and public shareholders and custodians or DR holders","Number of voting rights held by same class of securities","Number of voting rights held by differential voting rights","Total Number of voting rights","Percentage of total number of voting rights","Number of shares underlying outstanding convertible securities","Number of warrant","Number of warrant and convertible securities","Total shareholding as a percentage assuming full conversion of convertible securities","Number of the locked-in-shares ","Locked-in-shares as a percentage of total number of shares","Number of equity shares held in dematerialized form","Reason for not providing PAN"]
[]
[]
[]
[]
[{"$nulls":43},"NRI"]
[{"$nulls":43},"Trusts"]
[{"$nulls":4},"Searial No.","Name\nof the \nShareholders\n     (I)","PAN \n(II)","No. of fully paid up equity shares held\n(IV)","No. Of Partly paid-up equity shares held\n(V)","No. Of shares underlying Depository Receipts\n(VI)","Total nos. shares\nheld\n(VII) = (IV)+(V)+ (VI)","Shareholding as a % of total no. of shares (calculated as per SCRR, 1957)\n(VIII)\nAs a % of (A+B+C2)","Number of Voting Rights held in each class of securities\n(IX)",{"$nulls":3},"No. of Shares Underlying Outstanding Warrants (Xi)","No. Of Warrants\n(Xi)","No. Of Shares Underlying Outstanding convertible securities and No. Of Warrants\n(Xi) (a)","Shareholding , as a % assuming full conversion of convertible securities (as a percentage of diluted share capital)\n(XI)= (VII)+(X)\nAs a % of (A+B+C2)","Number of Locked in shares\n(XII)",null,"Number of equity shares held in dematerialized form \n(XIV)","Reason for not providing PAN",{"$nulls":19},"Market Maker"]
[{"$nulls":12},"No of Voting (XIV)\nRights",null,null,"Total as\na % of\nTotal\nVoting\nrights",{"$nulls":27},"HUF"]
[{"$nulls":12},"Class\neg:\nX","Class\neg:y","Total",{"$nulls":5},"No.\n(a)","As a % of total Shares held\n(b)",{"$nulls":21},"Clearing Members"]
[{"$nulls":4},"B1(h)","Provident Funds/ Pension Funds",{"$nulls":37},"NSDL or CDSL transit"]
[{"$nulls":10},{"$f":"+IFERROR(IF(COUNT(H13:J13),ROUND(SUM(H13:J13),0),\"\"),\"\")","v":""},{"$f":"+IFERROR(IF(COUNT(K13),ROUND(K13/'Shareholding Pattern'!$L$57*100,2),\"\"),\"\")","v":""},{"$f":"IF(H13=\"\",\"\",H13)","v":""},null,{"$f":"+IFERROR(IF(COUNT(M13:N13),ROUND(SUM(M13,N13),2),\"\"),\"\")","v":""},{"$f":"+IFERROR(IF(COUNT(O13),ROUND(O13/('Shareholding Pattern'!$P$58)*100,2),\"\"),\"\")","v":""},null,null,{"$f":"+IFERROR(IF(COUNT(Q13:R13),ROUND(SUM(Q13:R13),0),\"\"),\"\")","v":""},{"$f":"+IFERROR(IF(COUNT(K13,S13),ROUND(SUM(S13,K13)/SUM('Shareholding Pattern'!$L$57,'Shareholding Pattern'!$T$57)*100,2),\"\"),\"\")","v":""},null,{"$f":"+IFERROR(IF(COUNT(U13),ROUND(SUM(U13)/SUM(K13)*100,2),\"\"),0)","v":""},{"$nulls":6},{"$f":"IF(SUM(H13:W13)>0,1,0)","v":0},{"$f":"SUM(AC15:AC65535)","v":0},{"$nulls":13},"Employee welfare fund"]
[{"$nulls":6},"Disclosure of shareholder holding more than 1% of total number of shares",{"$nulls":36},"Overseas corporate bodies"]
[{"$nulls":43},"Private equity fund"]
[{"$nulls":5},"Click here to go back","Total",{"$f":"+IFERROR(IF(COUNT(H14:H15),ROUND(SUM(H14:H15),0),\"\"),\"\")","v":""},{"$f":"+IFERROR(IF(COUNT(I14:I15),ROUND(SUM(I14:I15),0),\"\"),\"\")","v":""},{"$f":"+IFERROR(IF(COUNT(J14:J15),ROUND(SUM(J14:J15),0),\"\"),\"\")","v":""},{"$f":"+IFERROR(IF(COUNT(K14:K15),ROUND(SUM(K14:K15),0),\"\"),\"\")","v":""},{"$f":"+IFERROR(IF(COUNT(K16),ROUND(K16/'Shareholding Pattern'!$L$57*100,2),\"\"),\"\")","v":""},{"$f":"+IFERROR(IF(COUNT(M14:M15),ROUND(SUM(M14:M15),0),\"\"),\"\")","v":""},{"$f":"+IFERROR(IF(COUNT(N14:N15),ROUND(SUM(N14:N15),0),\"\"),\"\")","v":""},{"$f":"+IFERROR(IF(COUNT(O14:O15),ROUND(SUM(O14:O15),0),\"\"),\"\")","v":""},{"$f":"+IFERROR(IF(COUNT(O16),ROUND(O16/('Shareholding Pattern'!$P$58)*100,2),\"\"),\"\")","v":""},{"$f":"+IFERROR(IF(COUNT(Q14:Q15),ROUND(SUM(Q14:Q15),0),\"\"),\"\")","v":""},{"$f":"+IFERROR(IF(COUNT(R14:R15),ROUND(SUM(R14:R15),0),\"\"),\"\")","v":""},{"$f":"+IFERROR(IF(COUNT(S14:S15),ROUND(SUM(S14:S15),0),\"\"),\"\")","v":""},{"$f":"+IFERROR(IF(COUNT(K16,S16),ROUND(SUM(S16,K16)/SUM('Shareholding Pattern'!$L$57,'Shareholding Pattern'!$T$57)*100,2),\"\"),\"\")","v":""},{"$f":"+IFERROR(IF(COUNT(U14:U15),ROUND(SUM(U14:U15),0),\"\"),\"\")","v":""},{"$f":"+IFERROR(IF(COUNT(U16),ROUND(SUM(U16)/SUM(K16)*100,2),\"\"),0)","v":""},{"$f":"+IFERROR(IF(COUNT(W14:W15),ROUND(SUM(W14:W15),0),\"\"),\"\")","v":""},{"$nulls":20},"Other"]

{"sheet":"Other_Insti","index":24,"n_rows":16,"n_cols":57,"rows_kept":16,"hidden":true,"merged":[[8,3,10,3],[8,4,10,4],[8,5,10,5],[8,6,10,6],[8,7,10,7],[8,8,10,8],[8,9,10,9],[8,10,10,10],[8,11,10,11],[8,12,10,12],[8,13,10,13],[8,14,8,17],[8,18,10,18],[8,19,10,19],[8,20,10,20],[8,21,10,21],[8,22,9,23],[8,24,10,24],[8,25,10,25],[9,14,9,16],[9,17,10,17]]}
[{"$nulls":8},0,{"$nulls":34},"State industrial development Corporation","Provident Fund","Pension Fund","National Investment Fund","Insurance Companies","Bodies Corporate","Clearing Member","Employee Welfare Fund","Overseas Corporate Bodies","Private Equity Fund","Societies","Trust","Venture Capital Fund","Other"]
[{"$nulls":4},"Category of other institutions","Category or more than one percentage","Name of shareholder","Permanent account number of shareholder","Number of shareholders","Number of fully paid up equity shares","Number of partly paid-up equity shares","Number of shares underlying outstanding depository receipts","Total number of shares","Shareholding as a percentage of total number of shares held by promoters and public shareholders and custodians or DR holders","Number of voting rights held by same class of securities","Number of voting rights held by differential voting rights","Total Number of voting rights","Percentage of total number of voting rights","Number of shares underlying outstanding convertible securities","Number of warrant","Number of warrant and convertible securities","Total shareholding as a percentage assuming full conversion of convertible securities","Number of the locked-in-shares ","Locked-in-shares as a percentage of total number of shares","Number of equity shares held in dematerialized form","Reason for not providing PAN"]
[{"$nulls":8},{"$f":"+IFERROR(IF(COUNT(I13:I15),ROUND(SUMIF($F$13:I15,\"Category\",I13:I15),0),\"\"),\"\")","v":""},{"$f":"+IFERROR(IF(COUNT(J13:J15),ROUND(SUMIF($F$13:J15,\"Category\",J13:J15),0),\"\"),\"\")","v":""},{"$f":"+IFERROR(IF(COUNT(K13:K15),ROUND(SUMIF($F$13:K15,\"Category\",K13:K15),0),\"\"),\"\")","v":""},{"$f":"+IFERROR(IF(COUNT(L13:L15),ROUND(SUMIF($F$13:L15,\"Category\",L13:L15),0),\"\"),\"\")","v":""},{"$f":"+IFERROR(IF(COUNT(M13:M15),ROUND(SUMIF($F$13:M15,\"Category\",M13:M15),0),\"\"),\"\")","v":""},{"$f":"+IFERROR(IF(COUNT(N13:N15),ROUND(SUMIF($F$13:N15,\"Category\",N13:N15),2),\"\"),\"\")","v":""},{"$f":"+IFERROR(IF(COUNT(O13:O15),ROUND(SUMIF($F$13:O15,\"Category\",O13:O15),2),\"\"),\"\")","v":""},{"$f":"+IFERROR(IF(COUNT(P13:P15),ROUND(SUMIF($F$13:P15,\"Category\",P13:P15),0),\"\"),\"\")","v":""},{"$f":"+IFERROR(IF(COUNT(Q13:Q15),ROUND(SUMIF($F$13:Q15,\"Category\",Q13:Q15),0),\"\"),\"\")","v":""},{"$f":"+IFERROR(IF(COUNT(R13:R15),ROUND(SUMIF($F$13:R15,\"Category\",R13:R15),2),\"\"),\"\")","v":""},{"$f":"+IFERROR(IF(COUNT(S13:S15),ROUND(SUMIF($F$13:S15,\"Category\",S13:S15),0),\"\"),\"\")","v":""},{"$f":"+IFERROR(IF(COUNT(T13:T15),ROUND(SUMIF($F$13:T15,\"Category\",T13:T15),0),\"\"),\"\")","v":""},{"$f":"+IFERROR(IF(COUNT(U13:U15),ROUND(SUMIF($F$13:U15,\"Category\",U13:U15),0),\"\"),\"\")","v":""},{"$f":"+IFERROR(IF(COUNT(V13:V15),ROUND(SUMIF($F$13:V15,\"Category\",V13:V15),2),\"\"),\"\")","v":""},{"$f":"+IFERROR(IF(COUNT(W13:W15),ROUND(SUMIF($F$13:W15,\"Category\",W13:W15),0),\"\"),\"\")","v":""},{"$f":"+IFERROR(IF(COUNT(X13:X15),ROUND(SUMIF($F$13:X15,\"Category\",X13:X15),2),\"\"),\"\")","v":""},{"$f":"+IFERROR(IF(COUNT(Y13:Y15),ROUND(SUMIF($F$13:Y15,\"Category\",Y13:Y15),0),\"\"),\"\")","v":""}]
[{"$nulls":31},"NRI"]
[{"$nulls":31},"Trusts"]
[{"$nulls":31},"Market Maker"]
[{"$nulls":31},"HUF"]
[{"$nulls":31},"Clearing Members"]
[{"$nulls":3},"Searial No.","Category","Category / More than 1 percentage","Name\nof the \nShareholders\n     (I)","PAN \n(II)","No.\nof the \nShareholders\n     (I)","No. of fully paid up equity shares held\n(IV)","No. Of Partly paid-up equity shares held\n(V)","No. Of shares underlying Depository Receipts\n(VI)","Total nos. shares\nheld\n(VII) = (IV)+(V)+ (VI)","Shareholding as a % of total no. of shares (calculated as per SCRR, 1957)\n(VIII)\nAs a % of (A+B+C2)","Number of Voting Rights held in each class of securities\n(IX)",{"$nulls":3},"No. Of Shares Underlying Outstanding convertible securities\n(X)","No. of Shares Underlying Outstanding Warrants (Xi)","No. Of Shares Underlying Outstanding convertible securities and Warrants\n(X)","Shareholding , as a % assuming full conversion of convertible securities (as a percentage of diluted share capital)\n(XI)= (VII)+(X)\nAs a % of (A+B+C2)","Number of Locked in shares\n(XII)",null,"Number of equity shares held in dematerialized form \n(XIV)","Reason for not providing PAN",{"$nulls":6},"NSDL or CDSL transit",{"$nulls":14},"Category"]
[{"$nulls":14},"No of Voting (XIV)\nRights",null,null,"Total as\na % of\nTotal\nVoting\nrights",{"$nulls":14},"Employee welfare fund",{"$nulls":14},"More than 1 percentage of shareholding"]
[{"$nulls":14},"Class\neg:\nX","Class\neg:y","Total",{"$nulls":5},"No.\n(a)","As a % of total Shares held\n(b)",{"$nulls":8},"Overseas corporate bodies"]
[{"$nulls":3},"B1(i)","Any Other (specify)",{"$nulls":26},"Private equity fund"]
[{"$nulls":12},{"$f":"+IFERROR(IF(COUNT(J13:L13),ROUND(SUM(J13:L13),0),\"\"),\"\")","v":""},{"$f":"+IFERROR(IF(COUNT(M13),ROUND(M13/'Shareholding Pattern'!$L$57*100,2),\"\"),\"\")","v":""},{"$f":"IF(J13=\"\",\"\",J13)","v":""},null,{"$f":"+IFERROR(IF(COUNT(O13:P13),ROUND(SUM(O13,P13),2),\"\"),\"\")","v":""},{"$f":"+IFERROR(IF(COUNT(Q13),ROUND(Q13/('Shareholding Pattern'!$P$58)*100,2),\"\"),\"\")","v":""},null,null,{"$f":"+IFERROR(IF(COUNT(S13:T13),ROUND(SUM(S13:T13),0),\"\"),\"\")","v":""},{"$f":"+IFERROR(IF(COUNT(M13,U13),ROUND(SUM(U13,M13)/SUM('Shareholding Pattern'!$L$57,'Shareholding Pattern'!$T$57)*100,2),\"\"),\"\")","v":""},null,{"$f":"+IFERROR(IF(COUNT(W13),ROUND(SUM(W13)/SUM(M13)*100,2),\"\"),0)","v":""},{"$nulls":4},{"$f":"IF(SUM(H13:Y13)>0,1,0)","v":0},{"$f":"SUM(AC15:AC65535)","v":0},null,"Other"]
[]
[]
[{"$nulls":5},"Click here to go back",null,"Total",{"$f":"+IFERROR(IF(COUNT(I13:I15),ROUND(SUMIF($F$13:I15,\"Category\",I13:I15),0),\"\"),\"\")","v":""},{"$f":"+IFERROR(IF(COUNT(J13:J15),ROUND(SUMIF($F$13:J15,\"Category\",J13:J15),0),\"\"),\"\")","v":""},{"$f":"+IFERROR(IF(COUNT(K13:K15),ROUND(SUMIF($F$13:K15,\"Category\",K13:K15),0),\"\"),\"\")","v":""},{"$f":"+IFERROR(IF(COUNT(L13:L15),ROUND(SUMIF($F$13:L15,\"Category\",L13:L15),0),\"\"),\"\")","v":""},{"$f":"+IFERROR(IF(COUNT(M13:M15),ROUND(SUMIF($F$13:M15,\"Category\",M13:M15),0),\"\"),\"\")","v":""},{"$f":"+IFERROR(IF(COUNT(N13:N15),ROUND(SUMIF($F$13:N15,\"Category\",N13:N15),2),\"\"),\"\")","v":""},{"$f":"+IFERROR(IF(COUNT(O13:O15),ROUND(SUMIF($F$13:O15,\"Category\",O13:O15),0),\"\"),\"\")","v":""},{"$f":"+IFERROR(IF(COUNT(P13:P15),ROUND(SUMIF($F$13:P15,\"Category\",P13:P15),0),\"\"),\"\")","v":""},{"$f":"+IFERROR(IF(COUNT(Q13:Q15),ROUND(SUMIF($F$13:Q15,\"Category\",Q13:Q15),0),\"\"),\"\")","v":""},{"$f":"+IFERROR(IF(COUNT(R13:R15),ROUND(SUMIF($F$13:R15,\"Category\",R13:R15),2),\"\"),\"\")","v":""},{"$f":"+IFERROR(IF(COUNT(S13:S15),ROUND(SUMIF($F$13:S15,\"Category\",S13:S15),0),\"\"),\"\")","v":""},{"$f":"+IFERROR(IF(COUNT(T13:T15),ROUND(SUMIF($F$13:T15,\"Category\",T13:T15),0),\"\"),\"\")","v":""},{"$f":"+IFERROR(IF(COUNT(U13:U15),ROUND(SUMIF($F$13:U15,\"Category\",U13:U15),0),\"\"),\"\")","v":""},{"$f":"+IFERROR(IF(COUNT(V13:V15),ROUND(SUMIF($F$13:V15,\"Category\",V13:V15),2),\"\"),\"\")","v":""},{"$f":"+IFERROR(IF(COUNT(W13:W15),ROUND(SUMIF($F$13:W15,\"Category\",W13:W15),0),\"\"),\"\")","v":""},{"$f":"+IFERROR(IF(COUNT(W16),ROUND(SUM(W16)/SUM(M16)*100,2),\"\"),0)","v":""},{"$f":"+IFERROR(IF(COUNT(Y13:Y15),ROUND(SUMIF($F$13:Y15,\"Category\",Y13:Y15),0),\"\"),\"\")","v":""}]

{"sheet":"CG&SG&PI","index":25,"n_rows":16,"n_cols":30,"rows_kept":16,"hidden":true,"merged":[[8,4,10,4],[8,5,10,5],[8,6,10,6],[8,7,10,7],[8,8,10,8],[8,9,10,9],[8,10,10,10],[8,11,10,11],[8,12,8,15],[8,16,10,16],[8,17,10,17],[8,18,10,18],[8,19,10,19],[8,20,9,21],[8,22,10,22],[8,23,10,23],[9,12,9,14],[9,15,10,15]]}
[{"$nulls":8},0]
[{"$nulls":5},"Name of shareholder","Permanent account number of shareholder","Number of fully paid up equity shares","Number of partly paid-up equity shares","Number of shares underlying outstanding depository receipts","Total number of shares","Shareholding as a percentage of total number of shares held by promoters and public shareholders and custodians or DR holders","Number of voting rights held by same class of securities","Number of voting rights held by differential voting rights","Total Number of voting rights","Percentage of total number of voting rights","Number of shares underlying outstanding convertible securities","Number of warrant","Number of warrant and convertible securities","Total shareholding as a percentage assuming full conversion of convertible securities","Number of the locked-in-shares ","Locked-in-shares as a percentage of total number of shares","Number of equity shares held in dematerialized form","Reason for not providing PAN"]
[]
[]
[]
[]
[]
[]
[{"$nulls":4},"Searial No.","Name\nof the \nShareholders\n     (I)","PAN \n(II)","No. of fully paid up equity shares held\n(IV)","No. Of Partly paid-up equity shares held\n(V)","No. Of shares underlying Depository Receipts\n(VI)","Total nos. shares\nheld\n(VII) = (IV)+(V)+ (VI)","Shareholding as a % of total no. of shares (calculated as per SCRR, 1957)\n(VIII)\nAs a % of (A+B+C2)","Number of Voting Rights held in each class of securities\n(IX)",{"$nulls":3},"No. Of Shares Underlying Outstanding convertible securities\n(X)","No. of Shares Underlying Outstanding Warrants (Xi)","No. Of Shares Underlying Outstanding convertible securities and No. Of Warrants\n(Xi) (a)","Shareholding , as a % assuming full conversion of convertible securities (as a percentage of diluted share capital)\n(XI)= (VII)+(X)\nAs a % of (A+B+C2)","Number of Locked in shares\n(XII)",null,"Number of equity shares held in dematerialized form \n(XIV)","Reason for not providing PAN"]
[{"$nulls":12},"No of Voting (XIV)\nRights",null,null,"Total as\na % of\nTotal\nVoting\nrights"]
[{"$nulls":12},"Class\neg:\nX","Class\neg:y","Total",{"$nulls":5},"No.\n(a)","As a % of total Shares held\n(b)"]
[{"$nulls":4},"B2","Central  Government/  State  Government(s)/ President of India"]
[{"$nulls":10},{"$f":"+IFERROR(IF(COUNT(H13:J13),ROUND(SUM(H13:J13),0),\"\"),\"\")","v":""},{"$f":"+IFERROR(IF(COUNT(K13),ROUND(K13/'Shareholding Pattern'!$L$57*100,2),\"\"),\"\")","v":""},{"$f":"IF(H13=\"\",\"\",H13)","v":""},null,{"$f":"+IFERROR(IF(COUNT(M13:N13),ROUND(SUM(M13,N13),2),\"\"),\"\")","v":""},{"$f":"+IFERROR(IF(COUNT(O13),ROUND(O13/('Shareholding Pattern'!$P$58)*100,2),\"\"),\"\")","v":""},null,null,{"$f":"+IFERROR(IF(COUNT(Q13:R13),ROUND(SUM(Q13:R13),0),\"\"),\"\")","v":""},{"$f":"+IFERROR(IF(COUNT(K13,S13),ROUND(SUM(S13,K13)/SUM('Shareholding Pattern'!$L$57,'Shareholding Pattern'!$T$57)*100,2),\"\"),\"\")","v":""},null,{"$f":"+IFERROR(IF(COUNT(U13),ROUND(SUM(U13)/SUM(K13)*100,2),\"\"),0)","v":""},{"$nulls":6},{"$f":"IF(SUM(H13:W13)>0,1,0)","v":0},{"$f":"SUM(AC15:AC65535)","v":0}]
[{"$nulls":6},"Disclosure of shareholder holding more than 1% of total number of shares"]
[]
[{"$nulls":5},"Click here to go back","Total",{"$f":"+IFERROR(IF(COUNT(H14:H15),ROUND(SUM(H14:H15),0),\"\"),\"\")","v":""},{"$f":"+IFERROR(IF(COUNT(I14:I15),ROUND(SUM(I14:I15),0),\"\"),\"\")","v":""},{"$f":"+IFERROR(IF(COUNT(J14:J15),ROUND(SUM(J14:J15),0),\"\"),\"\")","v":""},{"$f":"+IFERROR(IF(COUNT(K14:K15),ROUND(SUM(K14:K15),0),\"\"),\"\")","v":""},{"$f":"+IFERROR(IF(COUNT(K16),ROUND(K16/'Shareholding Pattern'!$L$57*100,2),\"\"),\"\")","v":""},{"$f":"+IFERROR(IF(COUNT(M14:M15),ROUND(SUM(M14:M15),0),\"\"),\"\")","v":""},{"$f":"+IFERROR(IF(COUNT(N14:N15),ROUND(SUM(N14:N15),0),\"\"),\"\")","v":""},{"$f":"+IFERROR(IF(COUNT(O14:O15),ROUND(SUM(O14:O15),0),\"\"),\"\")","v":""},{"$f":"+IFERROR(IF(COUNT(O16),ROUND(O16/('Shareholding Pattern'!$P$58)*100,2),\"\"),\"\")","v":""},{"$f":"+IFERROR(IF(COUNT(Q14:Q15),ROUND(SUM(Q14:Q15),0),\"\"),\"\")","v":""},{"$f":"+IFERROR(IF(COUNT(R14:R15),ROUND(SUM(R14:R15),0),\"\"),\"\")","v":""},{"$f":"+IFERROR(IF(COUNT(S14:S15),ROUND(SUM(S14:S15),0),\"\"),\"\")","v":""},{"$f":"+IFERROR(IF(COUNT(K16,S16),ROUND(SUM(S16,K16)/SUM('Shareholding Pattern'!$L$57,'Shareholding Pattern'!$T$57)*100,2),\"\"),\"\")","v":""},{"$f":"+IFERROR(IF(COUNT(U14:U15),ROUND(SUM(U14:U15),0),\"\"),\"\")","v":""},{"$f":"+IFERROR(IF(COUNT(U16),ROUND(SUM(U16)/SUM(K16)*100,2),\"\"),0)","v":""},{"$f":"+IFERROR(IF(COUNT(W14:W15),ROUND(SUM(W14:W15),0),\"\"),\"\")","v":""}]

{"sheet":"Indivisual(aI)","index":26,"n_rows":16,"n_cols":30,"rows_kept":16,"hidden":true,"merged":[[8,4,10,4],[8,5,10,5],[8,6,10,6],[8,7,10,7],[8,8,10,8],[8,9,10,9],[8,10,10,10],[8,11,10,11],[8,12,8,15],[8,16,10,16],[8,17,10,17],[8,18,10,18],[8,19,10,19],[8,20,9,21],[8,22,10,22],[8,23,10,23],[9,12,9,14],[9,15,10,15]]}
[{"$nulls":8},0]
[{"$nulls":5},"Name of shareholder","Permanent account number of shareholder","Number of fully paid up equity shares","Number of partly paid-up equity shares","Number of shares underlying outstanding depository receipts","Total number of shares","Shareholding as a percentage of total number of shares held by promoters and public shareholders and custodians or DR holders","Number of voting rights held by same class of securities","Number of voting rights held by differential voting rights","Total Number of voting rights","Percentage of total number of voting rights","Number of shares underlying outstanding convertible securities","Number of warrant","Number of warrant and convertible securities","Total shareholding as a percentage assuming full conversion of convertible securities","Number of the locked-in-shares ","Locked-in-shares as a percentage of total number of shares","Number of equity shares held in dematerialized form","Reason for not providing PAN"]
[]
[]
[]
[]
[]
[]
[{"$nulls":4},"Searial No.","Name\nof the \nShareholders\n     (I)","PAN \n(II)","No. of fully paid up equity shares held\n(IV)","No. Of Partly paid-up equity shares held\n(V)","No. Of shares underlying Depository Receipts\n(VI)","Total nos. shares\nheld\n(VII) = (IV)+(V)+ (VI)","Shareholding as a % of total no. of shares (calculated as per SCRR, 1957)\n(VIII)\nAs a % of (A+B+C2)","Number of Voting Rights held in each class of securities\n(IX)",{"$nulls":3},"No. Of Shares Underlying Outstanding convertible securities\n(X)","No. of Shares Underlying Outstanding Warrants (Xi)","No. Of Shares Underlying Outstanding convertible securities and No. Of Warrants\n(Xi) (a)","Shareholding , as a % assuming full conversion of convertible securities (as a percentage of diluted share capital)\n(XI)= (VII)+(X)\nAs a % of (A+B+C2)","Number of Locked in shares\n(XII)",null,"Number of equity shares held in dematerialized form \n(XIV)","Reason for not providing PAN"]
[{"$nulls":12},"No of Voting (XIV)\nRights",null,null,"Total as\na % of\nTotal\nVoting\nrights"]
[{"$nulls":12},"Class\neg:\nX","Class\neg:y","Total",{"$nulls":5},"No.\n(a)","As a % of total Shares held\n(b)"]
[{"$nulls":4},"B3(a(i))","Individuals -  i.Individual shareholders holding nominal share capital up to Rs. 2 lakhs. "]
[{"$nulls":10},{"$f":"+IFERROR(IF(COUNT(H13:J13),ROUND(SUM(H13:J13),0),\"\"),\"\")","v":""},{"$f":"+IFERROR(IF(COUNT(K13),ROUND(K13/'Shareholding Pattern'!$L$57*100,2),\"\"),\"\")","v":""},{"$f":"IF(H13=\"\",\"\",H13)","v":""},null,{"$f":"+IFERROR(IF(COUNT(M13:N13),ROUND(SUM(M13,N13),2),\"\"),\"\")","v":""},{"$f":"+IFERROR(IF(COUNT(O13),ROUND(O13/('Shareholding Pattern'!$P$58)*100,2),\"\"),\"\")","v":""},null,null,{"$f":"+IFERROR(IF(COUNT(Q13:R13),ROUND(SUM(Q13:R13),0),\"\"),\"\")","v":""},{"$f":"+IFERROR(IF(COUNT(K13,S13),ROUND(SUM(S13,K13)/SUM('Shareholding Pattern'!$L$57,'Shareholding Pattern'!$T$57)*100,2),\"\"),\"\")","v":""},null,{"$f":"+IFERROR(IF(COUNT(U13),ROUND(SUM(U13)/SUM(K13)*100,2),\"\"),0)","v":""},{"$nulls":6},{"$f":"IF(SUM(H13:W13)>0,1,0)","v":0},{"$f":"SUM(AC15:AC65535)","v":0}]
[{"$nulls":6},"Disclosure of shareholder holding more than 1% of total number of shares"]
[]
[{"$nulls":5},"Click here to go back","Total",{"$f":"+IFERROR(IF(COUNT(H13:H15),ROUND(SUM(H13:H15),0),\"\"),\"\")","v":""},{"$f":"+IFERROR(IF(COUNT(I13:I15),ROUND(SUM(I13:I15),0),\"\"),\"\")","v":""},{"$f":"+IFERROR(IF(COUNT(J13:J15),ROUND(SUM(J13:J15),0),\"\"),\"\")","v":""},{"$f":"+IFERROR(IF(COUNT(K13:K15),ROUND(SUM(K13:K15),0),\"\"),\"\")","v":""},{"$f":"+IFERROR(IF(COUNT(K16),ROUND(K16/'Shareholding Pattern'!$L$57*100,2),\"\"),\"\")","v":""},{"$f":"+IFERROR(IF(COUNT(M13:M15),ROUND(SUM(M13:M15),0),\"\"),\"\")","v":""},{"$f":"+IFERROR(IF(COUNT(N13:N15),ROUND(SUM(N13:N15),0),\"\"),\"\")","v":""},{"$f":"+IFERROR(IF(COUNT(O13:O15),ROUND(SUM(O13:O15),0),\"\"),\"\")","v":""},{"$f":"+IFERROR(IF(COUNT(O16),ROUND(O16/('Shareholding Pattern'!$P$58)*100,2),\"\"),\"\")","v":""},{"$f":"+IFERROR(IF(COUNT(Q13:Q15),ROUND(SUM(Q13:Q15),0),\"\"),\"\")","v":""},{"$f":"+IFERROR(IF(COUNT(R13:R15),ROUND(SUM(R13:R15),0),\"\"),\"\")","v":""},{"$f":"+IFERROR(IF(COUNT(S13:S15),ROUND(SUM(S13:S15),0),\"\"),\"\")","v":""},{"$f":"+IFERROR(IF(COUNT(K16,S16),ROUND(SUM(S16,K16)/SUM('Shareholding Pattern'!$L$57,'Shareholding Pattern'!$T$57)*100,2),\"\"),\"\")","v":""},{"$f":"+IFERROR(IF(COUNT(U13:U15),ROUND(SUM(U13:U15),0),\"\"),\"\")","v":""},{"$f":"+IFERROR(IF(COUNT(U16),ROUND(SUM(U16)/SUM(K16)*100,2),\"\"),0)","v":""},{"$f":"+IFERROR(IF(COUNT(W13:W15),ROUND(SUM(W13:W15),0),\"\"),\"\")","v":""}]

{"sheet":"Indivisual(aII)","index":27,"n_rows":16,"n_cols":30,"rows_kept":16,"hidden":true,"merged":[[8,4,10,4],[8,5,10,5],[8,6,10,6],[8,7,10,7],[8,8,10,8],[8,9,10,9],[8,10,10,10],[8,11,10,11],[8,12,8,15],[8,16,10,16],[8,17,10,17],[8,18,10,18],[8,19,10,19],[8,20,9,21],[8,22,10,22],[8,23,10,23],[9,12,9,14],[9,15,10,15]]}
[{"$nulls":8},0]
[{"$nulls":5},"Name of shareholder","Permanent account number of shareholder","Number of fully paid up equity shares","Number of partly paid-up equity shares","Number of shares underlying outstanding depository receipts","Total number of shares","Shareholding as a percentage of total number of shares held by promoters and public shareholders and custodians or DR holders","Number of voting rights held by same class of securities","Number of voting rights held by differential voting rights","Total Number of voting rights","Percentage of total number of voting rights","Number of shares underlying outstanding convertible securities","Number of warrant","Number of warrant and convertible securities","Total shareholding as a percentage assuming full conversion of convertible securities","Number of the locked-in-shares ","Locked-in-shares as a percentage of total number of shares","Number of equity shares held in dematerialized form","Reason for not providing PAN"]
[]
[]
[]
[]
[]
[]
[{"$nulls":4},"Searial No.","Name\nof the \nShareholders\n     (I)","PAN \n(II)","No. of fully paid up equity shares held\n(IV)","No. Of Partly paid-up equity shares held\n(V)","No. Of shares underlying Depository Receipts\n(VI)","Total nos. shares\nheld\n(VII) = (IV)+(V)+ (VI)","Shareholding as a % of total no. of shares (calculated as per SCRR, 1957)\n(VIII)\nAs a % of (A+B+C2)","Number of Voting Rights held in each class of securities\n(IX)",{"$nulls":3},"No. Of Shares Underlying Outstanding convertible securities\n(X)","No. of Shares Underlying Outstanding Warrants (Xi)","No. Of Shares Underlying Outstanding convertible securities and No. Of Warrants\n(Xi) (a)","Shareholding , as a % assuming full conversion of convertible securities (as a percentage of diluted share capital)\n(XI)= (VII)+(X)\nAs a % of (A+B+C2)","Number of Locked in shares\n(XII)",null,"Number of equity shares held in dematerialized form \n(XIV)","Reason for not providing PAN"]
[{"$nulls":12},"No of Voting (XIV)\nRights",null,null,"Total as\na % of\nTotal\nVoting\nrights"]
[{"$nulls":12},"Class\neg:\nX","Class\neg:y","Total",{"$nulls":5},"No.\n(a)","As a % of total Shares held\n(b)"]
[{"$nulls":4},"B3(a(iI))","Individuals - ii. Individual shareholders holding nominal share capital in excess of Rs. 2 lakhs."]
[{"$nulls":10},{"$f":"+IFERROR(IF(COUNT(H13:J13),ROUND(SUM(H13:J13),0),\"\"),\"\")","v":""},{"$f":"+IFERROR(IF(COUNT(K13),ROUND(K13/'Shareholding Pattern'!$L$57*100,2),\"\"),\"\")","v":""},{"$f":"IF(H13=\"\",\"\",H13)","v":""},null,{"$f":"+IFERROR(IF(COUNT(M13:N13),ROUND(SUM(M13,N13),2),\"\"),\"\")","v":""},{"$f":"+IFERROR(IF(COUNT(O13),ROUND(O13/('Shareholding Pattern'!$P$58)*100,2),\"\"),\"\")","v":""},null,null,{"$f":"+IFERROR(IF(COUNT(Q13:R13),ROUND(SUM(Q13:R13),0),\"\"),\"\")","v":""},{"$f":"+IFERROR(IF(COUNT(K13,S13),ROUND(SUM(S13,K13)/SUM('Shareholding Pattern'!$L$57,'Shareholding Pattern'!$T$57)*100,2),\"\"),\"\")","v":""},null,{"$f":"+IFERROR(IF(COUNT(U13),ROUND(SUM(U13)/SUM(K13)*100,2),\"\"),0)","v":""},{"$nulls":6},{"$f":"IF(SUM(H13:W13)>0,1,0)","v":0},{"$f":"SUM(AC15:AC65535)","v":0}]
[{"$nulls":6},"\nDisclosure of shareholder holding more than 1% of total number of shares\n"]
[]
[{"$nulls":5},"Click here to go back","Total",{"$f":"+IFERROR(IF(COUNT(H14:H15),ROUND(SUM(H14:H15),0),\"\"),\"\")","v":""},{"$f":"+IFERROR(IF(COUNT(I14:I15),ROUND(SUM(I14:I15),0),\"\"),\"\")","v":""},{"$f":"+IFERROR(IF(COUNT(J14:J15),ROUND(SUM(J14:J15),0),\"\"),\"\")","v":""},{"$f":"+IFERROR(IF(COUNT(K14:K15),ROUND(SUM(K14:K15),0),\"\"),\"\")","v":""},{"$f":"+IFERROR(IF(COUNT(K16),ROUND(K16/'Shareholding Pattern'!$L$57*100,2),\"\"),\"\")","v":""},{"$f":"+IFERROR(IF(COUNT(M14:M15),ROUND(SUM(M14:M15),0),\"\"),\"\")","v":""},{"$f":"+IFERROR(IF(COUNT(N14:N15),ROUND(SUM(N14:N15),0),\"\"),\"\")","v":""},{"$f":"+IFERROR(IF(COUNT(O14:O15),ROUND(SUM(O14:O15),0),\"\"),\"\")","v":""},{"$f":"+IFERROR(IF(COUNT(O16),ROUND(O16/('Shareholding Pattern'!$P$58)*100,2),\"\"),\"\")","v":""},{"$f":"+IFERROR(IF(COUNT(Q14:Q15),ROUND(SUM(Q14:Q15),0),\"\"),\"\")","v":""},{"$f":"+IFERROR(IF(COUNT(R14:R15),ROUND(SUM(R14:R15),0),\"\"),\"\")","v":""},{"$f":"+IFERROR(IF(COUNT(S14:S15),ROUND(SUM(S14:S15),0),\"\"),\"\")","v":""},{"$f":"+IFERROR(IF(COUNT(K16,S16),ROUND(SUM(S16,K16)/SUM('Shareholding Pattern'!$L$57,'Shareholding Pattern'!$T$57)*100,2),\"\"),\"\")","v":""},{"$f":"+IFERROR(IF(COUNT(U14:U15),ROUND(SUM(U14:U15),0),\"\"),\"\")","v":""},{"$f":"+IFERROR(IF(COUNT(U16),ROUND(SUM(U16)/SUM(K16)*100,2),\"\"),0)","v":""},{"$f":"+IFERROR(IF(COUNT(W14:W15),ROUND(SUM(W14:W15),0),\"\"),\"\")","v":""}]

{"sheet":"NBFC","index":28,"n_rows":16,"n_cols":30,"rows_kept":16,"hidden":true,"merged":[[8,4,10,4],[8,5,10,5],[8,6,10,6],[8,7,10,7],[8,8,10,8],[8,9,10,9],[8,10,10,10],[8,11,10,11],[8,12,8,15],[8,16,10,16],[8,17,10,17],[8,18,10,18],[8,19,10,19],[8,20,9,21],[8,22,10,22],[8,23,10,23],[9,12,9,14],[9,15,10,15]]}
[{"$nulls":8},0]
[{"$nulls":5},"Name of shareholder","Permanent account number of shareholder","Number of fully paid up equity shares","Number of partly paid-up equity shares","Number of shares underlying outstanding depository receipts","Total number of shares","Shareholding as a percentage of total number of shares held by promoters and public shareholders and custodians or DR holders","Number of voting rights held by same class of securities","Number of voting rights held by differential voting rights","Total Number of voting rights","Percentage of total number of voting rights","Number of shares underlying outstanding convertible securities","Number of warrant","Number of warrant and convertible securities","Total shareholding as a percentage assuming full conversion of convertible securities","Number of the locked-in-shares ","Locked-in-shares as a percentage of total number of shares","Number of equity shares held in dematerialized form","Reason for not providing PAN"]
[]
[]
[]
[]
[]
[]
[{"$nulls":4},"Searial No.","Name\nof the \nShareholders\n     (I)","PAN \n(II)","No. of fully paid up equity shares held\n(IV)","No. Of Partly paid-up equity shares held\n(V)","No. Of shares underlying Depository Receipts\n(VI)","Total nos. shares\nheld\n(VII) = (IV)+(V)+ (VI)","Shareholding as a % of total no. of shares (calculated as per SCRR, 1957)\n(VIII)\nAs a % of (A+B+C2)","Number of Voting Rights held in each class of securities\n(IX)",{"$nulls":3},"No. Of Shares Underlying Outstanding convertible securities\n(X)","No. of Shares Underlying Outstanding Warrants (Xi)","No. Of Shares Underlying Outstanding convertible securities and No. Of Warrants\n(Xi) (a)","Shareholding , as a % assuming full conversion of convertible securities (as a percentage of diluted share capital)\n(XI)= (VII)+(X)\nAs a % of (A+B+C2)","Number of Locked in shares\n(XII)",null,"Number of equity shares held in dematerialized form \n(XIV)","Reason for not providing PAN"]
[{"$nulls":12},"No of Voting (XIV)\nRights",null,null,"Total as\na % of\nTotal\nVoting\nrights"]
[{"$nulls":12},"Class\neg:\nX","Class\neg:y","Total",{"$nulls":5},"No.\n(a)","As a % of total Shares held\n(b)"]
[{"$nulls":4},"B3(b)","NBFCs registered with RBI"]
[{"$nulls":10},{"$f":"+IFERROR(IF(COUNT(H13:J13),ROUND(SUM(H13:J13),0),\"\"),\"\")","v":""},{"$f":"+IFERROR(IF(COUNT(K13),ROUND(K13/'Shareholding Pattern'!$L$57*100,2),\"\"),\"\")","v":""},{"$f":"IF(H13=\"\",\"\",H13)","v":""},null,{"$f":"+IFERROR(IF(COUNT(M13:N13),ROUND(SUM(M13,N13),2),\"\"),\"\")","v":""},{"$f":"+IFERROR(IF(COUNT(O13),ROUND(O13/('Shareholding Pattern'!$P$58)*100,2),\"\"),\"\")","v":""},null,null,{"$f":"+IFERROR(IF(COUNT(Q13:R13),ROUND(SUM(Q13:R13),0),\"\"),\"\")","v":""},{"$f":"+IFERROR(IF(COUNT(K13,S13),ROUND(SUM(S13,K13)/SUM('Shareholding Pattern'!$L$57,'Shareholding Pattern'!$T$57)*100,2),\"\"),\"\")","v":""},null,{"$f":"+IFERROR(IF(COUNT(U13),ROUND(SUM(U13)/SUM(K13)*100,2),\"\"),0)","v":""},{"$nulls":6},{"$f":"IF(SUM(H13:W13)>0,1,0)","v":0},{"$f":"SUM(AC15:AC65535)","v":0}]
[{"$nulls":6},"\nDisclosure of shareholder holding more than 1% of total number of shares\n"]
[]
[{"$nulls":5},"Click here to go back","Total",{"$f":"+IFERROR(IF(COUNT(H13:H15),ROUND(SUM(H13:H15),0),\"\"),\"\")","v":""},{"$f":"+IFERROR(IF(COUNT(I13:I15),ROUND(SUM(I13:I15),0),\"\"),\"\")","v":""},{"$f":"+IFERROR(IF(COUNT(J13:J15),ROUND(SUM(J13:J15),0),\"\"),\"\")","v":""},{"$f":"+IFERROR(IF(COUNT(K13:K15),ROUND(SUM(K13:K15),0),\"\"),\"\")","v":""},{"$f":"+IFERROR(IF(COUNT(K16),ROUND(K16/'Shareholding Pattern'!$L$57*100,2),\"\"),\"\")","v":""},{"$f":"+IFERROR(IF(COUNT(M13:M15),ROUND(SUM(M13:M15),0),\"\"),\"\")","v":""},{"$f":"+IFERROR(IF(COUNT(N13:N15),ROUND(SUM(N13:N15),0),\"\"),\"\")","v":""},{"$f":"+IFERROR(IF(COUNT(O13:O15),ROUND(SUM(O13:O15),0),\"\"),\"\")","v":""},{"$f":"+IFERROR(IF(COUNT(O16),ROUND(O16/('Shareholding Pattern'!$P$58)*100,2),\"\"),\"\")","v":""},{"$f":"+IFERROR(IF(COUNT(Q13:Q15),ROUND(SUM(Q13:Q15),0),\"\"),\"\")","v":""},{"$f":"+IFERROR(IF(COUNT(R13:R15),ROUND(SUM(R13:R15),0),\"\"),\"\")","v":""},{"$f":"+IFERROR(IF(COUNT(S13:S15),ROUND(SUM(S13:S15),0),\"\"),\"\")","v":""},{"$f":"+IFERROR(IF(COUNT(K16,S16),ROUND(SUM(S16,K16)/SUM('Shareholding Pattern'!$L$57,'Shareholding Pattern'!$T$57)*100,2),\"\"),\"\")","v":""},{"$f":"+IFERROR(IF(COUNT(U13:U15),ROUND(SUM(U13:U15),0),\"\"),\"\")","v":""},{"$f":"+IFERROR(IF(COUNT(U16),ROUND(SUM(U16)/SUM(K16)*100,2),\"\"),0)","v":""},{"$f":"+IFERROR(IF(COUNT(W13:W15),ROUND(SUM(W13:W15),0),\"\"),\"\")","v":""}]

{"sheet":"EmpTrust","index":29,"n_rows":16,"n_cols":30,"rows_kept":16,"hidden":true,"merged":[[8,4,10,4],[8,5,10,5],[8,6,10,6],[8,7,10,7],[8,8,10,8],[8,9,10,9],[8,10,10,10],[8,11,10,11],[8,12,8,15],[8,16,10,16],[8,17,10,17],[8,18,10,18],[8,19,10,19],[8,20,9,21],[8,22,10,22],[8,23,10,23],[9,12,9,14],[9,15,10,15]]}
[{"$nulls":8},0]
[{"$nulls":5},"Name of shareholder","Permanent account number of shareholder","Number of fully paid up equity shares","Number of partly paid-up equity shares","Number of shares underlying outstanding depository receipts","Total number of shares","Shareholding as a percentage of total number of shares held by promoters and public shareholders and custodians or DR holders","Number of voting rights held by same class of securities","Number of voting rights held by differential voting rights","Total Number of voting rights","Percentage of total number of voting rights","Number of shares underlying outstanding convertible securities","Number of warrant","Number of warrant and convertible securities","Total shareholding as a percentage assuming full conversion of convertible securities","Number of the locked-in-shares ","Locked-in-shares as a percentage of total number of shares","Number of equity shares held in dematerialized form","Reason for not providing PAN"]
[]
[]
[]
[]
[]
[]
[{"$nulls":4},"Searial No.","Name\nof the \nShareholders\n     (I)","PAN \n(II)","No. of fully paid up equity shares held\n(IV)","No. Of Partly paid-up equity shares held\n(V)","No. Of shares underlying Depository Receipts\n(VI)","Total nos. shares\nheld\n(VII) = (IV)+(V)+ (VI)","Shareholding as a % of total no. of shares (calculated as per SCRR, 1957)\n(VIII)\nAs a % of (A+B+C2)","Number of Voting Rights held in each class of securities\n(IX)",{"$nulls":3},"No. Of Shares Underlying Outstanding convertible securities\n(X)","No. of Shares Underlying Outstanding Warrants (Xi)","No. Of Shares Underlying Outstanding convertible securities and No. Of Warrants\n(Xi) (a)","Shareholding , as a % assuming full conversion of convertible securities (as a percentage of diluted share capital)\n(XI)= (VII)+(X)\nAs a % of (A+B+C2)","Number of Locked in shares\n(XII)",null,"Number of equity shares held in dematerialized form \n(XIV)","Reason for not providing PAN"]
[{"$nulls":12},"No of Voting (XIV)\nRights",null,null,"Total as\na % of\nTotal\nVoting\nrights"]
[{"$nulls":12},"Class\neg:\nX","Class\neg:y","Total",{"$nulls":5},"No.\n(a)","As a % of total Shares held\n(b)"]
[{"$nulls":4},"B3(c)","Employee Trusts"]
[{"$nulls":10},{"$f":"+IFERROR(IF(COUNT(H13:J13),ROUND(SUM(H13:J13),0),\"\"),\"\")","v":""},{"$f":"+IFERROR(IF(COUNT(K13),ROUND(K13/'Shareholding Pattern'!$L$57*100,2),\"\"),\"\")","v":""},{"$f":"IF(H13=\"\",\"\",H13)","v":""},null,{"$f":"+IFERROR(IF(COUNT(M13:N13),ROUND(SUM(M13,N13),2),\"\"),\"\")","v":""},{"$f":"+IFERROR(IF(COUNT(O13),ROUND(O13/('Shareholding Pattern'!$P$58)*100,2),\"\"),\"\")","v":""},null,null,{"$f":"+IFERROR(IF(COUNT(Q13:R13),ROUND(SUM(Q13:R13),0),\"\"),\"\")","v":""},{"$f":"+IFERROR(IF(COUNT(K13,S13),ROUND(SUM(S13,K13)/SUM('Shareholding Pattern'!$L$57,'Shareholding Pattern'!$T$57)*100,2),\"\"),\"\")","v":""},null,{"$f":"+IFERROR(IF(COUNT(U13),ROUND(SUM(U13)/SUM(K13)*100,2),\"\"),0)","v":""},{"$nulls":6},{"$f":"IF(SUM(H13:W13)>0,1,0)","v":0},{"$f":"SUM(AC15:AC65535)","v":0}]
[{"$nulls":6},"Disclosure of shareholder holding more than 1% of total number of shares"]
[]
[{"$nulls":5},"Click here to go back","Total",{"$f":"+IFERROR(IF(COUNT(H13:H15),ROUND(SUM(H13:H15),0),\"\"),\"\")","v":""},{"$f":"+IFERROR(IF(COUNT(I13:I15),ROUND(SUM(I13:I15),0),\"\"),\"\")","v":""},{"$f":"+IFERROR(IF(COUNT(J13:J15),ROUND(SUM(J13:J15),0),\"\"),\"\")","v":""},{"$f":"+IFERROR(IF(COUNT(K13:K15),ROUND(SUM(K13:K15),0),\"\"),\"\")","v":""},{"$f":"+IFERROR(IF(COUNT(K16),ROUND(K16/'Shareholding Pattern'!$L$57*100,2),\"\"),\"\")","v":""},{"$f":"+IFERROR(IF(COUNT(M13:M15),ROUND(SUM(M13:M15),0),\"\"),\"\")","v":""},{"$f":"+IFERROR(IF(COUNT(N13:N15),ROUND(SUM(N13:N15),0),\"\"),\"\")","v":""},{"$f":"+IFERROR(IF(COUNT(O13:O15),ROUND(SUM(O13:O15),0),\"\"),\"\")","v":""},{"$f":"+IFERROR(IF(COUNT(O16),ROUND(O16/('Shareholding Pattern'!$P$58)*100,2),\"\"),\"\")","v":""},{"$f":"+IFERROR(IF(COUNT(Q13:Q15),ROUND(SUM(Q13:Q15),0),\"\"),\"\")","v":""},{"$f":"+IFERROR(IF(COUNT(R13:R15),ROUND(SUM(R13:R15),0),\"\"),\"\")","v":""},{"$f":"+IFERROR(IF(COUNT(S13:S15),ROUND(SUM(S13:S15),0),\"\"),\"\")","v":""},{"$f":"+IFERROR(IF(COUNT(K16,S16),ROUND(SUM(S16,K16)/SUM('Shareholding Pattern'!$L$57,'Shareholding Pattern'!$T$57)*100,2),\"\"),\"\")","v":""},{"$f":"+IFERROR(IF(COUNT(U13:U15),ROUND(SUM(U13:U15),0),\"\"),\"\")","v":""},{"$f":"+IFERROR(IF(COUNT(U16),ROUND(SUM(U16)/SUM(K16)*100,2),\"\"),0)","v":""},{"$f":"+IFERROR(IF(COUNT(W13:W15),ROUND(SUM(W13:W15),0),\"\"),\"\")","v":""}]

{"sheet":"OD","index":30,"n_rows":16,"n_cols":30,"rows_kept":16,"hidden":true,"merged":[[8,4,10,4],[8,5,10,5],[8,6,10,6],[8,7,10,7],[8,8,10,8],[8,9,10,9],[8,10,10,10],[8,11,10,11],[8,12,8,15],[8,16,10,16],[8,17,10,17],[8,18,10,18],[8,19,10,19],[8,20,9,21],[8,22,10,22],[8,23,10,23],[9,12,9,14],[9,15,10,15]]}
[{"$nulls":8},0]
[{"$nulls":5},"Name of shareholder","Permanent account number of shareholder","Number of fully paid up equity shares","Number of partly paid-up equity shares","Number of shares underlying outstanding depository receipts","Total number of shares","Shareholding as a percentage of total number of shares held by promoters and public shareholders and custodians or DR holders","Number of voting rights held by same class of securities","Number of voting rights held by differential voting rights","Total Number of voting rights","Percentage of total number of voting rights","Number of shares underlying outstanding convertible securities","Number of warrant","Number of warrant and convertible securities","Total shareholding as a percentage assuming full conversion of convertible securities","Number of the locked-in-shares ","Locked-in-shares as a percentage of total number of shares","Number of equity shares held in dematerialized form","Reason for not providing PAN"]
[]
[]
[]
[]
[]
[]
[{"$nulls":4},"Searial No.","Name\nof the \nShareholders\n     (I)","PAN \n(II)","No. of fully paid up equity shares held\n(IV)","No. Of Partly paid-up equity shares held\n(V)","No. Of shares underlying Depository Receipts\n(VI)","Total nos. shares\nheld\n(VII) = (IV)+(V)+ (VI)","Shareholding as a % of total no. of shares (calculated as per SCRR, 1957)\n(VIII)\nAs a % of (A+B+C2)","Number of Voting Rights held in each class of securities\n(IX)",{"$nulls":3},"No. Of Shares Underlying Outstanding convertible securities\n(X)","No. of Shares Underlying Outstanding Warrants (Xi)","No. Of Shares Underlying Outstanding convertible securities and No. Of Warrants\n(Xi) (a)","Shareholding , as a % assuming full conversion of convertible securities (as a percentage of diluted share capital)\n(XI)= (VII)+(X)\nAs a % of (A+B+C2)","Number of Locked in shares\n(XII)",null,"Number of equity shares held in dematerialized form \n(XIV)","Reason for not providing PAN"]
[{"$nulls":12},"No of Voting (XIV)\nRights",null,null,"Total as\na % of\nTotal\nVoting\nrights"]
[{"$nulls":12},"Class\neg:\nX","Class\neg:y","Total",{"$nulls":5},"No.\n(a)","As a % of total Shares held\n(b)"]
[{"$nulls":4},"B3(d)","Overseas Depositories (holding DRs) (balancing figure)"]
[{"$nulls":10},{"$f":"+IFERROR(IF(COUNT(H13:J13),ROUND(SUM(H13:J13),0),\"\"),\"\")","v":""},{"$f":"+IFERROR(IF(COUNT(K13),ROUND(K13/'Shareholding Pattern'!$L$57*100,2),\"\"),\"\")","v":""},{"$f":"IF(H13=\"\",\"\",H13)","v":""},null,{"$f":"+IFERROR(IF(COUNT(M13:N13),ROUND(SUM(M13,N13),2),\"\"),\"\")","v":""},{"$f":"+IFERROR(IF(COUNT(O13),ROUND(O13/('Shareholding Pattern'!$P$58)*100,2),\"\"),\"\")","v":""},null,null,{"$f":"+IFERROR(IF(COUNT(Q13:R13),ROUND(SUM(Q13:R13),0),\"\"),\"\")","v":""},{"$f":"+IFERROR(IF(COUNT(K13,S13),ROUND(SUM(S13,K13)/SUM('Shareholding Pattern'!$L$57,'Shareholding Pattern'!$T$57)*100,2),\"\"),\"\")","v":""},null,{"$f":"+IFERROR(IF(COUNT(U13),ROUND(SUM(U13)/SUM(K13)*100,2),\"\"),0)","v":""},{"$nulls":6},{"$f":"IF(SUM(H13:W13)>0,1,0)","v":0},{"$f":"SUM(AC15:AC65535)","v":0}]
[{"$nulls":6},"Disclosure of shareholder holding more than 1% of total number of shares"]
[]
[{"$nulls":5},"Click here to go back","Total",{"$f":"+IFERROR(IF(COUNT(H13:H15),ROUND(SUM(H13:H15),0),\"\"),\"\")","v":""},{"$f":"+IFERROR(IF(COUNT(I13:I15),ROUND(SUM(I13:I15),0),\"\"),\"\")","v":""},{"$f":"+IFERROR(IF(COUNT(J13:J15),ROUND(SUM(J13:J15),0),\"\"),\"\")","v":""},{"$f":"+IFERROR(IF(COUNT(K13:K15),ROUND(SUM(K13:K15),0),\"\"),\"\")","v":""},{"$f":"+IFERROR(IF(COUNT(K16),ROUND(K16/'Shareholding Pattern'!$L$57*100,2),\"\"),\"\")","v":""},{"$f":"+IFERROR(IF(COUNT(M13:M15),ROUND(SUM(M13:M15),0),\"\"),\"\")","v":""},{"$f":"+IFERROR(IF(COUNT(N13:N15),ROUND(SUM(N13:N15),0),\"\"),\"\")","v":""},{"$f":"+IFERROR(IF(COUNT(O13:O15),ROUND(SUM(O13:O15),0),\"\"),\"\")","v":""},{"$f":"+IFERROR(IF(COUNT(O16),ROUND(O16/('Shareholding Pattern'!$P$58)*100,2),\"\"),\"\")","v":""},{"$f":"+IFERROR(IF(COUNT(Q13:Q15),ROUND(SUM(Q13:Q15),0),\"\"),\"\")","v":""},{"$f":"+IFERROR(IF(COUNT(R13:R15),ROUND(SUM(R13:R15),0),\"\"),\"\")","v":""},{"$f":"+IFERROR(IF(COUNT(S13:S15),ROUND(SUM(S13:S15),0),\"\"),\"\")","v":""},{"$f":"+IFERROR(IF(COUNT(K16,S16),ROUND(SUM(S16,K16)/SUM('Shareholding Pattern'!$L$57,'Shareholding Pattern'!$T$57)*100,2),\"\"),\"\")","v":""},{"$f":"+IFERROR(IF(COUNT(U13:U15),ROUND(SUM(U13:U15),0),\"\"),\"\")","v":""},{"$f":"+IFERROR(IF(COUNT(U16),ROUND(SUM(U16)/SUM(K16)*100,2),\"\"),0)","v":""},{"$f":"+IFERROR(IF(COUNT(W13:W15),ROUND(SUM(W13:W15),0),\"\"),\"\")","v":""}]

{"sheet":"Other_NonInsti","index":31,"n_rows":16,"n_cols":54,"rows_kept":16,"hidden":true,"merged":[[8,3,10,3],[8,4,10,4],[8,5,10,5],[8,6,10,6],[8,7,10,7],[8,8,10,8],[8,9,10,9],[8,10,10,10],[8,11,10,11],[8,12,10,12],[8,13,10,13],[8,14,8,17],[8,18,10,18],[8,19,10,19],[8,20,10,20],[8,21,10,21],[8,22,9,23],[8,24,10,24],[8,25,10,25],[9,14,9,16],[9,17,10,17]]}
[{"$nulls":8},0,0,{"$nulls":20},"Angel Investors","Bodies Corporate","Clearing Members","Director or Director's Relatives","Employee Welfare Fund","Employees","Enemy Property","ESOP or ESOS or ESPS","FCCB","Firm","Foreign Nationals","Foreign Portfolio Investor (Category - III)","HUF","IEPF","LLP","Market Maker","Non-Resident Indian (NRI)","NSDL or CDSL Transit","Others","Overseas Corporate Bodies","Private Equity Fund","Societies","Trusts","Unclaimed or Suspense or Escrow Account"]
[{"$nulls":4},"Category of other non-institutions","Category or more than one percentage","Name of shareholder","Permanent account number of shareholder","Number of shareholders","Number of fully paid up equity shares","Number of partly paid-up equity shares","Number of shares underlying outstanding depository receipts","Total number of shares","Shareholding as a percentage of total number of shares held by promoters and public shareholders and custodians or DR holders","Number of voting rights held by same class of securities","Number of voting rights held by differential voting rights","Total Number of voting rights","Percentage of total number of voting rights","Number of shares underlying outstanding convertible securities","Number of warrant","Number of warrant and convertible securities","Total shareholding as a percentage assuming full conversion of convertible securities","Number of the locked-in-shares ","Locked-in-shares as a percentage of total number of shares","Number of equity shares held in dematerialized form","Reason for not providing PAN"]
[{"$nulls":8},{"$f":"+IFERROR(IF(COUNT(I13:I15),ROUND(SUMIF($F$13:I15,\"Category\",I13:I15),0),\"\"),\"\")","v":""},{"$f":"+IFERROR(IF(COUNT(J13:J15),ROUND(SUMIF($F$13:J15,\"Category\",J13:J15),0),\"\"),\"\")","v":""},{"$f":"+IFERROR(IF(COUNT(K13:K15),ROUND(SUMIF($F$13:K15,\"Category\",K13:K15),0),\"\"),\"\")","v":""},{"$f":"+IFERROR(IF(COUNT(L13:L15),ROUND(SUMIF($F$13:L15,\"Category\",L13:L15),0),\"\"),\"\")","v":""},{"$f":"+IFERROR(IF(COUNT(M13:M15),ROUND(SUMIF($F$13:M15,\"Category\",M13:M15),0),\"\"),\"\")","v":""},{"$f":"+IFERROR(IF(COUNT(N13:N15),ROUND(SUMIF($F$13:N15,\"Category\",N13:N15),2),\"\"),\"\")","v":""},{"$f":"+IFERROR(IF(COUNT(O13:O15),ROUND(SUMIF($F$13:O15,\"Category\",O13:O15),0),\"\"),\"\")","v":""},{"$f":"+IFERROR(IF(COUNT(P13:P15),ROUND(SUMIF($F$13:P15,\"Category\",P13:P15),0),\"\"),\"\")","v":""},{"$f":"+IFERROR(IF(COUNT(Q13:Q15),ROUND(SUMIF($F$13:Q15,\"Category\",Q13:Q15),0),\"\"),\"\")","v":""},{"$f":"+IFERROR(IF(COUNT(R13:R15),ROUND(SUMIF($F$13:R15,\"Category\",R13:R15),2),\"\"),\"\")","v":""},{"$f":"+IFERROR(IF(COUNT(S13:S15),ROUND(SUMIF($F$13:S15,\"Category\",S13:S15),0),\"\"),\"\")","v":""},{"$f":"+IFERROR(IF(COUNT(T13:T15),ROUND(SUMIF($F$13:T15,\"Category\",T13:T15),0),\"\"),\"\")","v":""},{"$f":"+IFERROR(IF(COUNT(U13:U15),ROUND(SUMIF($F$13:U15,\"Category\",U13:U15),0),\"\"),\"\")","v":""},{"$f":"+IFERROR(IF(COUNT(V13:V15),ROUND(SUMIF($F$13:V15,\"Category\",V13:V15),2),\"\"),\"\")","v":""},{"$f":"+IFERROR(IF(COUNT(W13:W15),ROUND(SUMIF($F$13:W15,\"Category\",W13:W15),0),\"\"),\"\")","v":""},{"$f":"+IFERROR(IF(COUNT(X13:X15),ROUND(SUMIF($F$13:X15,\"Category\",X13:X15),2),\"\"),\"\")","v":""},{"$f":"+IFERROR(IF(COUNT(Y13:Y15),ROUND(SUMIF($F$13:Y15,\"Category\",Y13:Y15),0),\"\"),\"\")","v":""}]
[]
[]
[]
[]
[]
[{"$nulls":3},"Searial No.","Category","Category / More than 1 percentage","Name\nof the \nShareholders\n     (I)","PAN \n(II)","No.\nof the \nShareholders\n     (I)","No. of fully paid up equity shares held\n(IV)","No. Of Partly paid-up equity shares held\n(V)","No. Of shares underlying Depository Receipts\n(VI)","Total nos. shares\nheld\n(VII) = (IV)+(V)+ (VI)","Shareholding as a % of total no. of shares (calculated as per SCRR, 1957)\n(VIII)\nAs a % of (A+B+C2)","Number of Voting Rights held in each class of securities\n(IX)",{"$nulls":3},"No. Of Shares Underlying Outstanding convertible securities\n(X)","No. of Shares Underlying Outstanding Warrants (Xi)","No. Of Shares Underlying Outstanding convertible securities and No. Of Warrants\n(Xi) (a)","Shareholding , as a % assuming full conversion of convertible securities (as a percentage of diluted share capital)\n(XI)= (VII)+(X)\nAs a % of (A+B+C2)","Number of Locked in shares\n(XII)",null,"Number of equity shares held in dematerialized form \n(XIV)","Reason for not providing PAN",{"$nulls":21},"Category"]
[{"$nulls":14},"No of Voting (XIV)\nRights",null,null,"Total as\na % of\nTotal\nVoting\nrights",{"$nulls":29},"More than 1 percentage of shareholding"]
[{"$nulls":14},"Class\neg:\nX","Class\neg:y","Total",{"$nulls":5},"No.\n(a)","As a % of total Shares held\n(b)"]
[{"$nulls":3},"B3(e)","Any Other (specify)"]
[{"$nulls":12},{"$f":"+IFERROR(IF(COUNT(J13:L13),ROUND(SUM(J13:L13),0),\"\"),\"\")","v":""},{"$f":"+IFERROR(IF(COUNT(M13),ROUND(M13/'Shareholding Pattern'!$L$57*100,2),\"\"),\"\")","v":""},{"$f":"IF(J13=\"\",\"\",J13)","v":""},null,{"$f":"+IFERROR(IF(COUNT(O13:P13),ROUND(SUM(O13,P13),2),\"\"),\"\")","v":""},{"$f":"+IFERROR(IF(COUNT(Q13),ROUND(Q13/('Shareholding Pattern'!$P$58)*100,2),\"\"),\"\")","v":""},null,null,{"$f":"+IFERROR(IF(COUNT(S13:T13),ROUND(SUM(S13:T13),0),\"\"),\"\")","v":""},{"$f":"+IFERROR(IF(COUNT(M13,U13),ROUND(SUM(U13,M13)/SUM('Shareholding Pattern'!$L$57,'Shareholding Pattern'!$T$57)*100,2),\"\"),\"\")","v":""},null,{"$f":"+IFERROR(IF(COUNT(W13),ROUND(SUM(W13)/SUM(M13)*100,2),\"\"),0)","v":""},{"$nulls":4},{"$f":"IF(SUM(H13:Y13)>0,1,0)","v":0},{"$f":"SUM(AC15:AC65534)","v":0}]
[]
[]
[{"$nulls":6},"Click here to go back","Total",{"$f":"+IFERROR(IF(COUNT(I13:I15),ROUND(SUMIF($F$13:I15,\"Category\",I13:I15),0),\"\"),\"\")","v":""},{"$f":"+IFERROR(IF(COUNT(J13:J15),ROUND(SUMIF($F$13:J15,\"Category\",J13:J15),0),\"\"),\"\")","v":""},{"$f":"+IFERROR(IF(COUNT(K13:K15),ROUND(SUMIF($F$13:K15,\"Category\",K13:K15),0),\"\"),\"\")","v":""},{"$f":"+IFERROR(IF(COUNT(L13:L15),ROUND(SUMIF($F$13:L15,\"Category\",L13:L15),0),\"\"),\"\")","v":""},{"$f":"+IFERROR(IF(COUNT(M13:M15),ROUND(SUMIF($F$13:M15,\"Category\",M13:M15),0),\"\"),\"\")","v":""},{"$f":"+IFERROR(IF(COUNT(N13:N15),ROUND(SUMIF($F$13:N15,\"Category\",N13:N15),2),\"\"),\"\")","v":""},{"$f":"+IFERROR(IF(COUNT(O13:O15),ROUND(SUMIF($F$13:O15,\"Category\",O13:O15),0),\"\"),\"\")","v":""},{"$f":"+IFERROR(IF(COUNT(P13:P15),ROUND(SUMIF($F$13:P15,\"Category\",P13:P15),0),\"\"),\"\")","v":""},{"$f":"+IFERROR(IF(COUNT(Q13:Q15),ROUND(SUMIF($F$13:Q15,\"Category\",Q13:Q15),0),\"\"),\"\")","v":""},{"$f":"+IFERROR(IF(COUNT(R13:R15),ROUND(SUMIF($F$13:R15,\"Category\",R13:R15),2),\"\"),\"\")","v":""},{"$f":"+IFERROR(IF(COUNT(S13:S15),ROUND(SUMIF($F$13:S15,\"Category\",S13:S15),0),\"\"),\"\")","v":""},{"$f":"+IFERROR(IF(COUNT(T13:T15),ROUND(SUMIF($F$13:T15,\"Category\",T13:T15),0),\"\"),\"\")","v":""},{"$f":"+IFERROR(IF(COUNT(U13:U15),ROUND(SUMIF($F$13:U15,\"Category\",U13:U15),0),\"\"),\"\")","v":""},{"$f":"+IFERROR(IF(COUNT(V13:V15),ROUND(SUMIF($F$13:V15,\"Category\",V13:V15),2),\"\"),\"\")","v":""},{"$f":"+IFERROR(IF(COUNT(W13:W15),ROUND(SUMIF($F$13:W15,\"Category\",W13:W15),0),\"\"),\"\")","v":""},{"$f":"+IFERROR(IF(COUNT(W16),ROUND(SUM(W16)/SUM(M16)*100,2),\"\"),0)","v":""},{"$f":"+IFERROR(IF(COUNT(Y13:Y15),ROUND(SUMIF($F$13:Y15,\"Category\",Y13:Y15),0),\"\"),\"\")","v":""}]

{"sheet":"DRHolder","index":32,"n_rows":16,"n_cols":30,"rows_kept":16,"hidden":true,"merged":[[8,2,10,2],[8,3,10,3],[8,4,10,4],[8,5,10,5],[8,6,10,6],[8,7,10,7],[8,8,10,8],[8,9,10,9],[8,10,10,10],[8,11,10,11],[8,12,10,12],[8,13,8,16],[8,17,10,17],[8,18,10,18],[8,19,10,19],[8,20,10,20],[8,21,9,22],[8,23,10,23],[8,24,10,24],[9,13,9,15],[9,16,10,16]]}
[{"$nulls":8},0]
[{"$nulls":3},"Type of depository receipts","Name of the bank","Name of shareholder","Permanent account number of shareholder","Number of shareholders","Number of fully paid up equity shares","Number of partly paid-up equity shares","Number of shares underlying outstanding depository receipts","Total number of shares","Shareholding as a percentage of total number of shares held by promoters and public shareholders and custodians or DR holders","Number of voting rights held by same class of securities","Number of voting rights held by differential voting rights","Total Number of voting rights","Percentage of total number of voting rights","Number of shares underlying outstanding convertible securities","Number of warrant","Number of warrant and convertible securities","Total shareholding as a percentage assuming full conversion of convertible securities","Number of the locked-in-shares ","Locked-in-shares as a percentage of total number of shares","Number of equity shares held in dematerialized form","Reason for not providing PAN",{"$nulls":3},"GDR"]
[{"$nulls":28},"GDS"]
[{"$nulls":28},"ADR"]
[{"$nulls":28},"ADS"]
[{"$nulls":28},"SDR"]
[{"$nulls":28},"Other"]
[]
[null,null,"Serial No.","Category","Bank Name","Name\nof the \nShareholders\n     (I)","PAN \n(II)","No.\nof the \nShareholders\n     (I)","No. of fully paid up equity shares held\n(IV)","No. Of Partly paid-up equity shares held\n(V)","No. Of shares underlying Depository Receipts\n(VI)","Total nos. shares\nheld\n(VII) = (IV)+(V)+ (VI)","Shareholding as a % of total no. of shares (calculated as per SCRR, 1957)\n(VIII)\nAs a % of (A+B+C2)","Number of Voting Rights held in each class of securities\n(IX)",{"$nulls":3},"No. Of Shares Underlying Outstanding convertible securities\n(X)","No. of Shares Underlying Outstanding Warrants (Xi)","No. Of Shares Underlying Outstanding convertible securities and No. Of Warrants\n(Xi) (a)","Shareholding , as a % assuming full conversion of convertible securities (as a percentage of diluted share capital)\n(XI)= (VII)+(X)\nAs a % of (A+B+C2)","Number of Locked in shares\n(XII)",null,"Number of equity shares held in dematerialized form \n(XIV)","Reason for not providing PAN"]
[{"$nulls":13},"No of Voting (XIV)\nRights",null,null,"Total as\na % of\nTotal\nVoting\nrights"]
[{"$nulls":13},"Class\neg:\nX","Class\neg:y","Total",{"$nulls":5},"No.\n(a)","As a % of total Shares held\n(b)"]
[null,null,"C1","Custodian/DR  Holder - Name of DR Holders  (If Available)"]
[{"$nulls":7},1,{"$nulls":3},{"$f":"+IFERROR(IF(COUNT(I13:K13),ROUND(SUM(I13:K13),0),\"\"),\"\")","v":""},null,{"$f":"IF(I13=\"\",\"\",I13)","v":""},null,{"$f":"+IFERROR(IF(COUNT(N13:O13),ROUND(SUM(N13,O13),2),\"\"),\"\")","v":""},{"$f":"+IFERROR(IF(COUNT(P13),ROUND(P13/('Shareholding Pattern'!$P$58)*100,2),\"\"),\"\")","v":""},null,null,{"$f":"+IFERROR(IF(COUNT(R13:S13),ROUND(SUM(R13:S13),2),\"\"),\"\")","v":""},null,null,{"$f":"+IFERROR(IF(V13=\"\",\"\",(+IF(V13=0,0,IF(COUNT(V13,L13),ROUND(SUM(V13)/SUM(L13)*100,2),\"\")))),\"\")","v":""},{"$nulls":5},{"$f":"IF(SUM(H13:X13)>0,1,0)","v":1},{"$f":"SUM(AC15:AC65535)","v":0}]
[{"$nulls":4},"Disclosure of shareholder holding more than 1% of total number of shares"]
[{"$nulls":12},{"$f":"+IFERROR(IF(COUNT(L15),ROUND(L15/('Shareholding Pattern'!$L$57)*100,2),\"\"),\"\")","v":""},{"$nulls":3},{"$f":"+IFERROR(IF(COUNT(P15),ROUND(P15/('Shareholding Pattern'!$P$58)*100,2),\"\"),\"\")","v":""},{"$nulls":3},{"$f":"+IFERROR(IF(COUNT(L15,T15),ROUND(SUM(T15,L15)/SUM('Shareholding Pattern'!$L$57,'Shareholding Pattern'!$T$57)*100,2),\"\"),\"\")","v":""}]
[{"$nulls":5},"Click here to go back","Total",{"$f":"+IFERROR(IF(COUNT(H14:H15),ROUND(SUM(H14:H15),0),\"\"),\"\")","v":""},{"$f":"+IFERROR(IF(COUNT(I13:I15),ROUND(SUM(I13:I15),0),\"\"),\"\")","v":""},{"$f":"+IFERROR(IF(COUNT(J13:J15),ROUND(SUM(J13:J15),0),\"\"),\"\")","v":""},{"$f":"+IFERROR(IF(COUNT(K13:K15),ROUND(SUM(K13:K15),0),\"\"),\"\")","v":""},{"$f":"+IFERROR(IF(COUNT(L13:L15),ROUND(SUM(L13:L15),0),\"\"),\"\")","v":""},null,{"$f":"+IFERROR(IF(COUNT(N13:N15),ROUND(SUM(N13:N15),0),\"\"),\"\")","v":""},{"$f":"+IFERROR(IF(COUNT(O13:O15),ROUND(SUM(O13:O15),0),\"\"),\"\")","v":""},{"$f":"+IFERROR(IF(COUNT(P13:P15),ROUND(SUM(P13:P15),0),\"\"),\"\")","v":""},{"$f":"+IFERROR(IF(COUNT(P16),ROUND(P16/('Shareholding Pattern'!$P$58)*100,2),\"\"),\"\")","v":""},{"$f":"+IFERROR(IF(COUNT(R13:R15),ROUND(SUM(R13:R15),0),\"\"),\"\")","v":""},{"$f":"+IFERROR(IF(COUNT(S13:S15),ROUND(SUM(S13:S15),0),\"\"),\"\")","v":""},{"$f":"+IFERROR(IF(COUNT(T13:T15),ROUND(SUM(T13:T15),0),\"\"),\"\")","v":""},null,{"$f":"+IFERROR(IF(COUNT(V13:V15),ROUND(SUM(V13:V15),0),\"\"),\"\")","v":""},{"$f":"+IFERROR(IF(V16=\"\",\"\",(+IF(V16=0,0,IF(COUNT(V16,L16),ROUND(SUM(V16)/SUM(L16)*100,2),\"\")))),\"\")","v":""},{"$f":"+IFERROR(IF(COUNT(X13:X15),ROUND(SUM(X13:X15),0),\"\"),\"\")","v":""}]

{"sheet":"EBT","index":33,"n_rows":16,"n_cols":30,"rows_kept":16,"hidden":true,"merged":[[8,3,10,3],[8,4,10,4],[8,5,10,5],[8,6,10,6],[8,7,10,7],[8,8,10,8],[8,9,10,9],[8,10,10,10],[8,11,10,11],[8,12,8,15],[8,16,10,16],[8,17,10,17],[8,18,10,18],[8,19,10,19],[8,20,9,21],[8,22,10,22],[8,23,10,23],[9,12,9,14],[9,15,10,15]]}
[{"$nulls":8},0]
[{"$nulls":4},"Name of shareholder","Permanent account number of shareholder","Number of shareholders","Number of fully paid up equity shares","Number of partly paid-up equity shares","Number of shares underlying outstanding depository receipts","Total number of shares","Shareholding as a percentage of total number of shares held by promoters and public shareholders and custodians or DR holders","Number of voting rights held by same class of securities","Number of voting rights held by differential voting rights","Total Number of voting rights","Percentage of total number of voting rights","Number of shares underlying outstanding convertible securities","Number of warrant","Number of warrant and convertible securities","Total shareholding as a percentage assuming full conversion of convertible securities","Number of the locked-in-shares ","Locked-in-shares as a percentage of total number of shares","Number of equity shares held in dematerialized form","Reason for not providing PAN"]
[]
[]
[]
[]
[]
[]
[{"$nulls":3},"Searial No.","Name\nof the \nShareholders\n     (I)","PAN \n(II)","No.\nof the \nShareholders\n     (I)","No. of fully paid up equity shares held\n(IV)","No. Of Partly paid-up equity shares held\n(V)","No. Of shares underlying Depository Receipts\n(VI)","Total nos. shares\nheld\n(VII) = (IV)+(V)+ (VI)","Shareholding as a % of total no. of shares (calculated as per SCRR, 1957)\n(VIII)\nAs a % of (A+B+C2)","Number of Voting Rights held in each class of securities\n(IX)",{"$nulls":3},"No. Of Shares Underlying Outstanding convertible securities\n(X)","No. of Shares Underlying Outstanding Warrants (Xi)","No. Of Shares Underlying Outstanding convertible securities and No. Of Warrants\n(Xi) (a)","Shareholding , as a % assuming full conversion of convertible securities (as a percentage of diluted share capital)\n(XI)= (VII)+(X)\nAs a % of (A+B+C2)","Number of Locked in shares\n(XII)",null,"Number of equity shares held in dematerialized form \n(XIV)","Reason for not providing PAN"]
[{"$nulls":12},"No of Voting (XIV)\nRights",null,null,"Total as\na % of\nTotal\nVoting\nrights"]
[{"$nulls":12},"Class\neg:\nX","Class\neg:y","Total",{"$nulls":5},"No.\n(a)","As a % of total Shares held\n(b)"]
[{"$nulls":3},"C2","Employee Benefit Trust (under SEBI (Share based Employee Benefit) Regulations, 2014)"]
[{"$nulls":6},1,{"$nulls":3},{"$f":"+IFERROR(IF(COUNT(H13:J13),ROUND(SUM(H13:J13),0),\"\"),\"\")","v":""},{"$f":"+IFERROR(IF(COUNT(K13),ROUND(K13/'Shareholding Pattern'!$L$57*100,2),\"\"),\"\")","v":""},{"$f":"IF(H13=\"\",\"\",H13)","v":""},null,{"$f":"+IFERROR(IF(COUNT(M13:N13),ROUND(SUM(M13,N13),0),\"\"),\"\")","v":""},{"$f":"+IFERROR(IF(COUNT(O13),ROUND(O13/('Shareholding Pattern'!$P$58)*100,2),\"\"),\"\")","v":""},null,null,{"$f":"+IFERROR(IF(COUNT(Q13:R13),ROUND(SUM(Q13:R13),0),\"\"),\"\")","v":""},{"$f":"+IFERROR(IF(COUNT(K13,S13),ROUND(SUM(S13,K13)/SUM('Shareholding Pattern'!$L$57,'Shareholding Pattern'!$T$57)*100,2),\"\"),\"\")","v":""},null,{"$f":"+IFERROR(IF(U13=\"\",\"\",(IF(COUNT(U13,K13),ROUND(SUM(U13)/SUM(K13)*100,2),\"\"))),\"\")","v":""},{"$nulls":6},{"$f":"IF(SUM(H13:W13)>0,1,0)","v":0},{"$f":"SUM(AC15:AC65535)","v":0}]
[{"$nulls":5},"Disclosure of shareholder holding more than 1% of total number of shares\n"]
[]
[{"$nulls":4},"Click here to go back","Total",{"$f":"+IFERROR(IF(COUNT(G14:G15),ROUND(SUM(G14:G15),0),\"\"),\"\")","v":""},{"$f":"+IFERROR(IF(COUNT(H13:H15),ROUND(SUM(H13:H15),0),\"\"),\"\")","v":""},{"$f":"+IFERROR(IF(COUNT(I13:I15),ROUND(SUM(I13:I15),0),\"\"),\"\")","v":""},{"$f":"+IFERROR(IF(COUNT(J13:J15),ROUND(SUM(J13:J15),0),\"\"),\"\")","v":""},{"$f":"+IFERROR(IF(COUNT(K13:K15),ROUND(SUM(K13:K15),0),\"\"),\"\")","v":""},{"$f":"+IFERROR(IF(COUNT(K16),ROUND(K16/'Shareholding Pattern'!$L$57*100,2),\"\"),\"\")","v":""},{"$f":"+IFERROR(IF(COUNT(M13:M15),ROUND(SUM(M13:M15),0),\"\"),\"\")","v":""},{"$f":"+IFERROR(IF(COUNT(N13:N15),ROUND(SUM(N13:N15),0),\"\"),\"\")","v":""},{"$f":"+IFERROR(IF(COUNT(O13:O15),ROUND(SUM(O13:O15),0),\"\"),\"\")","v":""},{"$f":"+IFERROR(IF(COUNT(O16),ROUND(O16/('Shareholding Pattern'!$P$58)*100,2),\"\"),\"\")","v":""},{"$f":"+IFERROR(IF(COUNT(Q13:Q15),ROUND(SUM(Q13:Q15),0),\"\"),\"\")","v":""},{"$f":"+IFERROR(IF(COUNT(R13:R15),ROUND(SUM(R13:R15),0),\"\"),\"\")","v":""},{"$f":"+IFERROR(IF(COUNT(S13:S15),ROUND(SUM(S13:S15),0),\"\"),\"\")","v":""},{"$f":"+IFERROR(IF(COUNT(K16,S16),ROUND(SUM(S16,K16)/SUM('Shareholding Pattern'!$L$57,'Shareholding Pattern'!$T$57)*100,2),\"\"),\"\")","v":""},{"$f":"+IFERROR(IF(COUNT(U13:U15),ROUND(SUM(U13:U15),0),\"\"),\"\")","v":""},{"$f":"+IFERROR(IF(COUNT(U16,K16),ROUND(SUM(U16)/SUM(K16)*100,2),\"\"),0)","v":""},{"$f":"+IFERROR(IF(COUNT(W13:W15),ROUND(SUM(W13:W15),0),\"\"),\"\")","v":""}]

{"sheet":"Unclaimed_Prom","index":34,"n_rows":14,"n_cols":9,"rows_kept":14,"hidden":true,"merged":[[8,4,8,8],[9,4,11,4],[9,5,11,5],[9,6,11,6],[9,7,11,7],[9,8,11,8]]}
[{"$nulls":8},0]
{"$rows_empty":7}
[{"$nulls":4},"Details of Shares which remain unclaimed for Promoter & Promoter Group                    "]
[{"$nulls":4},"Searial No.","Number of shareholders","Outstanding shares held in demat or unclaimed suspense account","Voting rights which are frozen","Disclosure of notes on shares which remain unclaimed for promoter and promoter group"]
[]
[]
[]
[{"$nulls":8},"Click here to go back "]

{"sheet":"TextBlock","index":35,"n_rows":18,"n_cols":5,"rows_kept":18,"hidden":true}
[{"$nulls":4},18]
[]
[]
[]
[null,"083111112104105101032065104109101100032104111108100115032115104097114101115032105110032109111114101032116104097110032111110101032100101109097116032097099099111117110116046032065115032112101114032083069066073032067105114099117108097114032110111046032067073082047067070068047067077068047049051047050048049053032100097116101100032051048032078111118101109098101114032050048049053044032115104097114101104111108100105110103032111102032112114111109111116101114032097110100032112114111109111116101114032103114111117112032105115032116111032098101032099111110115111108105100097116101100032111110032116104101032098097115105115032111102032080065078032040102105114115116032104111108100101114032105110032099097115101032111102032106111105110116032115104097114101104111108100105110103041046032073110032066083069032088066082076032102105108105105110103032115121115116101109044032105102032116104101032115104097114101104111108100105110103032105115032099108117098098101100032116104101110032105116032114101115117108116115032105110032116104101032100105102102101114101110099101032105110032116104101032110117109098101114032111102032115104097114101104111108100101114115032097115032112101114032097099116117097108032115104097114101104111108100105110103032112097116116101114110032097115032097103097105110115116032116104101032110117109098101114032111102032115104097114101104111108100101114115032103101110101114097116101100032098121032066083069032088066082076032102105108105110103032115121115116101109046032072101110099101044032115104097114101104111108100105110103032104097115032098101101110032115104111119110032115101112097114097116101108121032105110032066083069032088066082076032102105108105110103032115121115116101109046032084104101032098114101097107045117112032100101116097105108115032111102032115104097114101104111108100105110103032111102032083111112104105101032065104109101100032097115032111110032051048116104032083101112116101109098101114044032050048049056032105115032097115032117110100101114058010010049046032078097109101032111102032115104097114101104111108100101114115058032040105041032083111112104105101032065104109101100032040105105041032070097114097104032066097114117097059032078111046032111102032115104097114101115058032049053044052055049044048048048032115104097114101115010050046032078097109101032111102032115104097114101104111108100101114115058032040105041032083111112104105101032065104109101100032040105105041032077111110105115104097032065104109101100059032078111046032111102032115104097114101115058032049053044052055049044048048048032115104097114101115010051046032078097109101032111102032115104097114101104111108100101114115058032040105041032083111112104105101032065104109101100032040105105041032083097114097032065104109101100059032078111046032111102032115104097114101115058032049049044051050050044050053048032115104097114101115010052046032078097109101032111102032115104097114101104111108100101114115058032040105041032083111112104105101032065104109101100032040105105041032070097114097104032066097114117097032040105105105041032077111110105115104097032065104109101100059032078111046032111102032115104097114101115058032051044055049055044055053048032115104097114101115"]
[null,"083111112104105101032065104109101100032104111108100115032115104097114101115032105110032109111114101032116104097110032111110101032100101109097116032097099099111117110116046032065115032112101114032083069066073032067105114099117108097114032110111046032067073082047067070068047067077068047049051047050048049053032100097116101100032051048032078111118101109098101114032050048049053044032115104097114101104111108100105110103032111102032112114111109111116101114032097110100032112114111109111116101114032103114111117112032105115032116111032098101032099111110115111108105100097116101100032111110032116104101032098097115105115032111102032080065078032040102105114115116032104111108100101114032105110032099097115101032111102032106111105110116032115104097114101104111108100105110103041046032073110032066083069032088066082076032102105108105105110103032115121115116101109044032105102032116104101032115104097114101104111108100105110103032105115032099108117098098101100032116104101110032105116032114101115117108116115032105110032116104101032100105102102101114101110099101032105110032116104101032110117109098101114032111102032115104097114101104111108100101114115032097115032112101114032097099116117097108032115104097114101104111108100105110103032112097116116101114110032097115032097103097105110115116032116104101032110117109098101114032111102032115104097114101104111108100101114115032103101110101114097116101100032098121032066083069032088066082076032102105108105110103032115121115116101109046032072101110099101044032115104097114101104111108100105110103032104097115032098101101110032115104111119110032115101112097114097116101108121032105110032066083069032088066082076032102105108105110103032115121115116101109046032084104101032098114101097107045117112032100101116097105108115032111102032115104097114101104111108100105110103032111102032083111112104105101032065104109101100032097115032111110032051048116104032083101112116101109098101114044032050048049056032105115032097115032117110100101114058010010049046032078097109101032111102032115104097114101104111108100101114115058032040105041032083111112104105101032065104109101100032040105105041032070097114097104032066097114117097059032078111046032111102032115104097114101115058032049053044052055049044048048048032115104097114101115010050046032078097109101032111102032115104097114101104111108100101114115058032040105041032083111112104105101032065104109101100032040105105041032077111110105115104097032065104109101100059032078111046032111102032115104097114101115058032049053044052055049044048048048032115104097114101115010051046032078097109101032111102032115104097114101104111108100101114115058032040105041032083111112104105101032065104109101100032040105105041032083097114097032065104109101100059032078111046032111102032115104097114101115058032049049044051050050044050053048032115104097114101115010052046032078097109101032111102032115104097114101104111108100101114115058032040105041032083111112104105101032065104109101100032040105105041032070097114097104032066097114117097032040105105105041032077111110105115104097032065104109101100059032078111046032111102032115104097114101115058032051044055049055044055053048032115104097114101115"]
[null,"083111112104105101032065104109101100032104111108100115032115104097114101115032105110032109111114101032116104097110032111110101032100101109097116032097099099111117110116046032065115032112101114032083069066073032067105114099117108097114032110111046032067073082047067070068047067077068047049051047050048049053032100097116101100032051048032078111118101109098101114032050048049053044032115104097114101104111108100105110103032111102032112114111109111116101114032097110100032112114111109111116101114032103114111117112032105115032116111032098101032099111110115111108105100097116101100032111110032116104101032098097115105115032111102032080065078032040102105114115116032104111108100101114032105110032099097115101032111102032106111105110116032115104097114101104111108100105110103041046032073110032066083069032088066082076032102105108105105110103032115121115116101109044032105102032116104101032115104097114101104111108100105110103032105115032099108117098098101100032116104101110032105116032114101115117108116115032105110032116104101032100105102102101114101110099101032105110032116104101032110117109098101114032111102032115104097114101104111108100101114115032097115032112101114032097099116117097108032115104097114101104111108100105110103032112097116116101114110032097115032097103097105110115116032116104101032110117109098101114032111102032115104097114101104111108100101114115032103101110101114097116101100032098121032066083069032088066082076032102105108105110103032115121115116101109046032072101110099101044032115104097114101104111108100105110103032104097115032098101101110032115104111119110032115101112097114097116101108121032105110032066083069032088066082076032102105108105110103032115121115116101109046032084104101032098114101097107045117112032100101116097105108115032111102032115104097114101104111108100105110103032111102032083111112104105101032065104109101100032097115032111110032051048116104032083101112116101109098101114044032050048049056032105115032097115032117110100101114058010010049046032078097109101032111102032115104097114101104111108100101114115058032040105041032083111112104105101032065104109101100032040105105041032070097114097104032066097114117097059032078111046032111102032115104097114101115058032049053044052055049044048048048032115104097114101115010050046032078097109101032111102032115104097114101104111108100101114115058032040105041032083111112104105101032065104109101100032040105105041032077111110105115104097032065104109101100059032078111046032111102032115104097114101115058032049053044052055049044048048048032115104097114101115010051046032078097109101032111102032115104097114101104111108100101114115058032040105041032083111112104105101032065104109101100032040105105041032083097114097032065104109101100059032078111046032111102032115104097114101115058032049049044051050050044050053048032115104097114101115010052046032078097109101032111102032115104097114101104111108100101114115058032040105041032083111112104105101032065104109101100032040105105041032070097114097104032066097114117097032040105105105041032077111110105115104097032065104109101100059032078111046032111102032115104097114101115058032051044055049055044055053048032115104097114101115"]
[null,"082117109097110097032072097109105101100032104111108100115032115104097114101115032105110032109111114101032116104097110032111110101032100101109097116032097099099111117110116046032065115032112101114032083069066073032067105114099117108097114032110111046032067073082047067070068047067077068047049051047050048049053032100097116101100032051048032078111118101109098101114032050048049053044032115104097114101104111108100105110103032111102032112114111109111116101114032097110100032112114111109111116101114032103114111117112032105115032116111032098101032099111110115111108105100097116101100032111110032116104101032098097115105115032111102032080065078032040102105114115116032104111108100101114032105110032099097115101032111102032106111105110116032115104097114101104111108100105110103041046032073110032066083069032088066082076032102105108105105110103032115121115116101109044032105102032116104101032115104097114101104111108100105110103032105115032099108117098098101100032116104101110032105116032114101115117108116115032105110032116104101032100105102102101114101110099101032105110032116104101032110117109098101114032111102032115104097114101104111108100101114115032097115032112101114032097099116117097108032115104097114101104111108100105110103032112097116116101114110032097115032097103097105110115116032116104101032110117109098101114032111102032115104097114101104111108100101114115032103101110101114097116101100032098121032066083069032088066082076032102105108105110103032115121115116101109046032072101110099101044032115104097114101104111108100105110103032104097115032098101101110032115104111119110032115101112097114097116101108121032105110032066083069032088066082076032102105108105110103032115121115116101109046032084104101032098114101097107045117112032100101116097105108115032111102032115104097114101104111108100105110103032097115032111110032051048116104032083101112116101109098101114044032050048049056032105115032097115032117110100101114058010010049046032078097109101032111102032115104097114101104111108100101114058032082117109097110097032072097109105101100059032078111046032111102032115104097114101115058032053044052055050044048048048032115104097114101115010050046032078097109101032111102032115104097114101104111108100101114115058032040105041032082117109097110097032072097109105101100032040105105041032083104105114105110032072097109105101100059032078111046032111102032115104097114101115058032052044052049052044053048048"]
[null,"083097109105110097032086097122105114097108108105032104111108100115032115104097114101115032105110032109111114101032116104097110032111110101032100101109097116032097099099111117110116046032065115032112101114032083069066073032067105114099117108097114032110111046032067073082047067070068047067077068047049051047050048049053032100097116101100032051048032078111118101109098101114032050048049053044032115104097114101104111108100105110103032111102032112114111109111116101114032097110100032112114111109111116101114032103114111117112032105115032116111032098101032099111110115111108105100097116101100032111110032116104101032098097115105115032111102032080065078032040102105114115116032104111108100101114032105110032099097115101032111102032106111105110116032115104097114101104111108100105110103041046032073110032066083069032088066082076032102105108105105110103032115121115116101109044032105102032116104101032115104097114101104111108100105110103032105115032099108117098098101100032116104101110032105116032114101115117108116115032105110032116104101032100105102102101114101110099101032105110032116104101032110117109098101114032111102032115104097114101104111108100101114115032097115032112101114032097099116117097108032115104097114101104111108100105110103032112097116116101114110032097115032097103097105110115116032116104101032110117109098101114032111102032115104097114101104111108100101114115032103101110101114097116101100032098121032066083069032088066082076032102105108105110103032115121115116101109046032072101110099101044032115104097114101104111108100105110103032104097115032098101101110032115104111119110032115101112097114097116101108121032105110032066083069032088066082076032102105108105110103032115121115116101109046032084104101032098114101097107045117112032100101116097105108115032111102032115104097114101104111108100105110103032097115032111110032051048116104032083101112116101109098101114044032050048049056032105115032097115032117110100101114058010010049046032078097109101032111102032115104097114101104111108100101114058032083097109105110097032086097122105114097108108105059032078111046032111102032115104097114101115058032049051044053051049044048048048032115104097114101115010050046032078097109101032111102032115104097114101104111108100101114058032040105041032083097109105110097032086097122105114097108108105032040105105041032083104105114105110032072097109105101100059032078111046032111102032115104097114101115058032052044051055056044053048048032115104097114101115"]
[null,"075097109105108032072097109105101100032104111108100115032115104097114101115032105110032109111114101032116104097110032111110101032100101109097116032097099099111117110116046032065115032112101114032083069066073032067105114099117108097114032110111046032067073082047067070068047067077068047049051047050048049053032100097116101100032051048032078111118101109098101114032050048049053044032115104097114101104111108100105110103032111102032112114111109111116101114032097110100032112114111109111116101114032103114111117112032105115032116111032098101032099111110115111108105100097116101100032111110032116104101032098097115105115032111102032080065078032040102105114115116032104111108100101114032105110032099097115101032111102032106111105110116032115104097114101104111108100105110103041046032073110032066083069032088066082076032102105108105105110103032115121115116101109044032105102032116104101032115104097114101104111108100105110103032105115032099108117098098101100032116104101110032105116032114101115117108116115032105110032116104101032100105102102101114101110099101032105110032116104101032110117109098101114032111102032115104097114101104111108100101114115032097115032112101114032097099116117097108032115104097114101104111108100105110103032112097116116101114110032097115032097103097105110115116032116104101032110117109098101114032111102032115104097114101104111108100101114115032103101110101114097116101100032098121032066083069032088066082076032102105108105110103032115121115116101109046032072101110099101044032115104097114101104111108100105110103032104097115032098101101110032115104111119110032115101112097114097116101108121032105110032066083069032088066082076032102105108105110103032115121115116101109046032084104101032098114101097107045117112032100101116097105108115032111102032115104097114101104111108100105110103032097115032111110032051048116104032083101112116101109098101114044032050048049056032105115032097115032117110100101114058010010049046032078097109101032111102032115104097114101104111108100101114058032075097109105108032072097109105101100059032078111046032111102032115104097114101115058032054044051053052044048048048032115104097114101115010050046032078097109101032111102032115104097114101104111108100101114115058032040105041032075097109105108032072097109105101100032040105105041032083104105114105110032072097109105101100059032078111046032111102032115104097114101115058032052044052057053044053048048032115104097114101115010051046032078097109101032111102032115104097114101104111108100101114115058032040105041032075097109105108032072097109105101100032040105105041032082117109097110097032072097109105101100032040105105105041032083097109105110097032086097122105114097108108105059032078111046032111102032115104097114101115058032057048044048048048032115104097114101115"]
[null,"075097109105108032072097109105101100032104111108100115032115104097114101115032105110032109111114101032116104097110032111110101032100101109097116032097099099111117110116046032065115032112101114032083069066073032067105114099117108097114032110111046032067073082047067070068047067077068047049051047050048049053032100097116101100032051048032078111118101109098101114032050048049053044032115104097114101104111108100105110103032111102032112114111109111116101114032097110100032112114111109111116101114032103114111117112032105115032116111032098101032099111110115111108105100097116101100032111110032116104101032098097115105115032111102032080065078032040102105114115116032104111108100101114032105110032099097115101032111102032106111105110116032115104097114101104111108100105110103041046032073110032066083069032088066082076032102105108105105110103032115121115116101109044032105102032116104101032115104097114101104111108100105110103032105115032099108117098098101100032116104101110032105116032114101115117108116115032105110032116104101032100105102102101114101110099101032105110032116104101032110117109098101114032111102032115104097114101104111108100101114115032097115032112101114032097099116117097108032115104097114101104111108100105110103032112097116116101114110032097115032097103097105110115116032116104101032110117109098101114032111102032115104097114101104111108100101114115032103101110101114097116101100032098121032066083069032088066082076032102105108105110103032115121115116101109046032072101110099101044032115104097114101104111108100105110103032104097115032098101101110032115104111119110032115101112097114097116101108121032105110032066083069032088066082076032102105108105110103032115121115116101109046032084104101032098114101097107045117112032100101116097105108115032111102032115104097114101104111108100105110103032097115032111110032051048116104032083101112116101109098101114044032050048049056032105115032097115032117110100101114058010010049046032078097109101032111102032115104097114101104111108100101114058032075097109105108032072097109105101100059032078111046032111102032115104097114101115058032054044051053052044048048048032115104097114101115010050046032078097109101032111102032115104097114101104111108100101114115058032040105041032075097109105108032072097109105101100032040105105041032083104105114105110032072097109105101100059032078111046032111102032115104097114101115058032052044052057053044053048048032115104097114101115010051046032078097109101032111102032115104097114101104111108100101114115058032040105041032075097109105108032072097109105101100032040105105041032082117109097110097032072097109105101100032040105105105041032083097109105110097032086097122105114097108108105059032078111046032111102032115104097114101115058032057048044048048048032115104097114101115"]
[null,"068101099101097115101100032083104097114101104111108100101114"]
[null,"068101099101097115101100032083104097114101104111108100101114013010"]
[null,"068101099101097115101100032083104097114101104111108100101114"]
[null,"068101099101097115101100032083104097114101104111108100101114"]
[null,"068101099101097115101100032083104097114101104111108100101114"]
[null,"077101114103101100032119105116104032110097109111107097114032109097114107101116105110103032108116100"]
[null,"078111116032085112100097116101100"]

{"sheet":"PAC_Public","index":36,"n_rows":14,"n_cols":9,"rows_kept":14,"hidden":true,"merged":[[8,3,8,7],[9,3,11,3],[9,4,11,4],[9,5,11,5],[9,6,11,6],[9,7,11,7]]}
[{"$nulls":8},0]
{"$rows_empty":7}
[{"$nulls":3},"Details of the shareholders acting as persons in Concert for Public"]
[{"$nulls":3},"Searial No.","Name of Shareholder","Name of the PAC","Number of shares","Percentage of shareholding by PAC"]
[]
[]
[]
[{"$nulls":7},"Cick here to go back"]

{"sheet":"Unclaimed_Public","index":37,"n_rows":14,"n_cols":9,"rows_kept":14,"hidden":true,"merged":[[8,4,8,7],[9,4,11,4],[9,5,11,5],[9,6,11,6],[9,7,11,7],[9,8,11,8]]}
[{"$nulls":8},0]
{"$rows_empty":7}
[{"$nulls":4},"Details of Shares which remain unclaimed for Public"]
[{"$nulls":4},"Searial No.","Number of shareholders","Outstanding shares held in demat or unclaimed suspense account","voting rights which are frozen","Disclosure of notes on shares which remain unclaimed for public shareholders"]
[]
[]
[]
[{"$nulls":8},"Click here to go back"]